Workbook

Sheet Master
A1: Miller Solar
A2: 17395 Oak Rd. Atascadero, CA 93422
A3: WORKSHEET
A5: Client:
A6: Project: | B6: TOU-C Tabulation
A7: Date: | D7: Revision:
D9: =DAY(EOMONTH([@Date],0))
A11: PVWatts: Hourly PV Performance Data
A12: Requested Location: | B12: 93422, USA
A13: Location: | B13: Lat, Lon: 35.49, -120.66
A14: Lat (deg N): | B14: 35.49
A15: Long (deg W): | B15: 120.66
A16: Elev (m): | B16: 283.480011
A17: DC System Size (kW): | B17: 4
A18: Module Type: | B18: Standard
A19: Array Type: | B19: Fixed (open rack)
A20: Array Tilt (deg): | B20: 20
A21: Array Azimuth (deg): | B21: 180
A22: System Losses: | B22: 14.08
A23: Invert Efficiency: | B23: 96
A24: DC to AC Size Ratio: | B24: 1.2
A25: Average Cost of Electricity Purchased from Utility ($/kWh): | B25: 0.156
A26: Capacity Factor (%) | B26: 19.2
N27: =SUM(TOU_CTabulation[Value $]) -> 1911.929744
A28: Month | B28: Day | C28: Hour | D28: Days in month | E28: Season | F28: DC Array Output (W) | G28: Day-Part | H28: Season+ Daypart | I28: AC System Output (W) | J28: AC System Output (kW) | K28: Month Cumm | L28: Month Base Allow | M28: Rate | N28: Value $
A29: 1 | B29: 1 | C29: 0 | D29: =DAY(EOMONTH(DATE(2021,TOU_CTabulation[[#This Row],[Month]],TOU_CTabulation[[#This Row],[Day]]),0)) -> 31 | E29: =VLOOKUP(TOU_CTabulation[[#This Row],[Month]],SeasonTable,2) -> Winter | F29: 0 | G29: =VLOOKUP(TOU_CTabulation[[#This Row],[Hour]],daypart,2) -> Off | H29: =CONCATENATE(TOU_CTabulation[[#This Row],[Season]],TOU_CTabulation[[#This Row],[Day-Part]]) -> WinterOff | I29: 0 | J29: =TOU_CTabulation[[#This Row],[AC System Output (W)]]/1000 -> 0 | K29: =IF(TOU_CTabulation[[#This Row],[Month]]=A27,K28+TOU_CTabulation[[#This Row],[AC System Output (kW)]],TOU_CTabulation[[#This Row],[AC System Output (kW)]]) -> 0 | L29: =VLOOKUP(TOU_CTabulation[[#This Row],[Season]],Baseline,2)*TOU_CTabulation[[#This Row],[Days in month]] -> 325.5 | M29: =IF(TOU_CTabulation[[#This Row],[Month Cumm]]<=TOU_CTabulation[[#This Row],[Month Base Allow]],VLOOKUP(TOU_CTabulation[[#This Row],[Season+ Daypart]],TOUC,2),VLOOKUP(TOU_CTabulation[[#This Row],[Season+ Daypart]],TOUC,2)+0.07584) -> 0.22788 | N29: =TOU_CTabulation[[#This Row],[AC System Output (kW)]]*TOU_CTabulation[[#This Row],[Rate]] -> 0
A30: 1 | B30: 1 | C30: 1 | D30: =DAY(EOMONTH(DATE(2021,TOU_CTabulation[[#This Row],[Month]],TOU_CTabulation[[#This Row],[Day]]),0)) -> 31 | E30: =VLOOKUP(TOU_CTabulation[[#This Row],[Month]],SeasonTable,2) -> Winter | F30: 0 | G30: =VLOOKUP(TOU_CTabulation[[#This Row],[Hour]],daypart,2) -> Off | H30: =CONCATENATE(TOU_CTabulation[[#This Row],[Season]],TOU_CTabulation[[#This Row],[Day-Part]]) -> WinterOff | I30: 0 | J30: =TOU_CTabulation[[#This Row],[AC System Output (W)]]/1000 -> 0 | K30: =IF(TOU_CTabulation[[#This Row],[Month]]=A28,K29+TOU_CTabulation[[#This Row],[AC System Output (kW)]],TOU_CTabulation[[#This Row],[AC System Output (kW)]]) -> 0 | L30: =VLOOKUP(TOU_CTabulation[[#This Row],[Season]],Baseline,2)*TOU_CTabulation[[#This Row],[Days in month]] -> 325.5 | M30: =IF(TOU_CTabulation[[#This Row],[Month Cumm]]<=TOU_CTabulation[[#This Row],[Month Base Allow]],VLOOKUP(TOU_CTabulation[[#This Row],[Season+ Daypart]],TOUC,2),VLOOKUP(TOU_CTabulation[[#This Row],[Season+ Daypart]],TOUC,2)+0.07584) -> 0.22788 | N30: =TOU_CTabulation[[#This Row],[AC System Output (kW)]]*TOU_CTabulation[[#This Row],[Rate]] -> 0
A31: 1 | B31: 1 | C31: 2 | D31: =DAY(EOMONTH(DATE(2021,TOU_CTabulation[[#This Row],[Month]],TOU_CTabulation[[#This Row],[Day]]),0)) -> 31 | E31: =VLOOKUP(TOU_CTabulation[[#This Row],[Month]],SeasonTable,2) -> Winter | F31: 0 | G31: =VLOOKUP(TOU_CTabulation[[#This Row],[Hour]],daypart,2) -> Off | H31: =CONCATENATE(TOU_CTabulation[[#This Row],[Season]],TOU_CTabulation[[#This Row],[Day-Part]]) -> WinterOff | I31: 0 | J31: =TOU_CTabulation[[#This Row],[AC System Output (W)]]/1000 -> 0 | K31: =IF(TOU_CTabulation[[#This Row],[Month]]=A29,K30+TOU_CTabulation[[#This Row],[AC System Output (kW)]],TOU_CTabulation[[#This Row],[AC System Output (kW)]]) -> 0 | L31: =VLOOKUP(TOU_CTabulation[[#This Row],[Season]],Baseline,2)*TOU_CTabulation[[#This Row],[Days in month]] -> 325.5 | M31: =IF(TOU_CTabulation[[#This Row],[Month Cumm]]<=TOU_CTabulation[[#This Row],[Month Base Allow]],VLOOKUP(TOU_CTabulation[[#This Row],[Season+ Daypart]],TOUC,2),VLOOKUP(TOU_CTabulation[[#This Row],[Season+ Daypart]],TOUC,2)+0.07584) -> 0.22788 | N31: =TOU_CTabulation[[#This Row],[AC System Output (kW)]]*TOU_CTabulation[[#This Row],[Rate]] -> 0
A32: 1 | B32: 1 | C32: 3 | D32: =DAY(EOMONTH(DATE(2021,TOU_CTabulation[[#This Row],[Month]],TOU_CTabulation[[#This Row],[Day]]),0)) -> 31 | E32: =VLOOKUP(TOU_CTabulation[[#This Row],[Month]],SeasonTable,2) -> Winter | F32: 0 | G32: =VLOOKUP(TOU_CTabulation[[#This Row],[Hour]],daypart,2) -> Off | H32: =CONCATENATE(TOU_CTabulation[[#This Row],[Season]],TOU_CTabulation[[#This Row],[Day-Part]]) -> WinterOff | I32: 0 | J32: =TOU_CTabulation[[#This Row],[AC System Output (W)]]/1000 -> 0 | K32: =IF(TOU_CTabulation[[#This Row],[Month]]=A30,K31+TOU_CTabulation[[#This Row],[AC System Output (kW)]],TOU_CTabulation[[#This Row],[AC System Output (kW)]]) -> 0 | L32: =VLOOKUP(TOU_CTabulation[[#This Row],[Season]],Baseline,2)*TOU_CTabulation[[#This Row],[Days in month]] -> 325.5 | M32: =IF(TOU_CTabulation[[#This Row],[Month Cumm]]<=TOU_CTabulation[[#This Row],[Month Base Allow]],VLOOKUP(TOU_CTabulation[[#This Row],[Season+ Daypart]],TOUC,2),VLOOKUP(TOU_CTabulation[[#This Row],[Season+ Daypart]],TOUC,2)+0.07584) -> 0.22788 | N32: =TOU_CTabulation[[#This Row],[AC System Output (kW)]]*TOU_CTabulation[[#This Row],[Rate]] -> 0
A33: 1 | B33: 1 | C33: 4 | D33: =DAY(EOMONTH(DATE(2021,TOU_CTabulation[[#This Row],[Month]],TOU_CTabulation[[#This Row],[Day]]),0)) -> 31 | E33: =VLOOKUP(TOU_CTabulation[[#This Row],[Month]],SeasonTable,2) -> Winter | F33: 0 | G33: =VLOOKUP(TOU_CTabulation[[#This Row],[Hour]],daypart,2) -> Off | H33: =CONCATENATE(TOU_CTabulation[[#This Row],[Season]],TOU_CTabulation[[#This Row],[Day-Part]]) -> WinterOff | I33: 0 | J33: =TOU_CTabulation[[#This Row],[AC System Output (W)]]/1000 -> 0 | K33: =IF(TOU_CTabulation[[#This Row],[Month]]=A31,K32+TOU_CTabulation[[#This Row],[AC System Output (kW)]],TOU_CTabulation[[#This Row],[AC System Output (kW)]]) -> 0 | L33: =VLOOKUP(TOU_CTabulation[[#This Row],[Season]],Baseline,2)*TOU_CTabulation[[#This Row],[Days in month]] -> 325.5 | M33: =IF(TOU_CTabulation[[#This Row],[Month Cumm]]<=TOU_CTabulation[[#This Row],[Month Base Allow]],VLOOKUP(TOU_CTabulation[[#This Row],[Season+ Daypart]],TOUC,2),VLOOKUP(TOU_CTabulation[[#This Row],[Season+ Daypart]],TOUC,2)+0.07584) -> 0.22788 | N33: =TOU_CTabulation[[#This Row],[AC System Output (kW)]]*TOU_CTabulation[[#This Row],[Rate]] -> 0
A34: 1 | B34: 1 | C34: 5 | D34: =DAY(EOMONTH(DATE(2021,TOU_CTabulation[[#This Row],[Month]],TOU_CTabulation[[#This Row],[Day]]),0)) -> 31 | E34: =VLOOKUP(TOU_CTabulation[[#This Row],[Month]],SeasonTable,2) -> Winter | F34: 0 | G34: =VLOOKUP(TOU_CTabulation[[#This Row],[Hour]],daypart,2) -> Off | H34: =CONCATENATE(TOU_CTabulation[[#This Row],[Season]],TOU_CTabulation[[#This Row],[Day-Part]]) -> WinterOff | I34: 0 | J34: =TOU_CTabulation[[#This Row],[AC System Output (W)]]/1000 -> 0 | K34: =IF(TOU_CTabulation[[#This Row],[Month]]=A32,K33+TOU_CTabulation[[#This Row],[AC System Output (kW)]],TOU_CTabulation[[#This Row],[AC System Output (kW)]]) -> 0 | L34: =VLOOKUP(TOU_CTabulation[[#This Row],[Season]],Baseline,2)*TOU_CTabulation[[#This Row],[Days in month]] -> 325.5 | M34: =IF(TOU_CTabulation[[#This Row],[Month Cumm]]<=TOU_CTabulation[[#This Row],[Month Base Allow]],VLOOKUP(TOU_CTabulation[[#This Row],[Season+ Daypart]],TOUC,2),VLOOKUP(TOU_CTabulation[[#This Row],[Season+ Daypart]],TOUC,2)+0.07584) -> 0.22788 | N34: =TOU_CTabulation[[#This Row],[AC System Output (kW)]]*TOU_CTabulation[[#This Row],[Rate]] -> 0
A35: 1 | B35: 1 | C35: 6 | D35: =DAY(EOMONTH(DATE(2021,TOU_CTabulation[[#This Row],[Month]],TOU_CTabulation[[#This Row],[Day]]),0)) -> 31 | E35: =VLOOKUP(TOU_CTabulation[[#This Row],[Month]],SeasonTable,2) -> Winter | F35: 0 | G35: =VLOOKUP(TOU_CTabulation[[#This Row],[Hour]],daypart,2) -> Off | H35: =CONCATENATE(TOU_CTabulation[[#This Row],[Season]],TOU_CTabulation[[#This Row],[Day-Part]]) -> WinterOff | I35: 0 | J35: =TOU_CTabulation[[#This Row],[AC System Output (W)]]/1000 -> 0 | K35: =IF(TOU_CTabulation[[#This Row],[Month]]=A33,K34+TOU_CTabulation[[#This Row],[AC System Output (kW)]],TOU_CTabulation[[#This Row],[AC System Output (kW)]]) -> 0 | L35: =VLOOKUP(TOU_CTabulation[[#This Row],[Season]],Baseline,2)*TOU_CTabulation[[#This Row],[Days in month]] -> 325.5 | M35: =IF(TOU_CTabulation[[#This Row],[Month Cumm]]<=TOU_CTabulation[[#This Row],[Month Base Allow]],VLOOKUP(TOU_CTabulation[[#This Row],[Season+ Daypart]],TOUC,2),VLOOKUP(TOU_CTabulation[[#This Row],[Season+ Daypart]],TOUC,2)+0.07584) -> 0.22788 | N35: =TOU_CTabulation[[#This Row],[AC System Output (kW)]]*TOU_CTabulation[[#This Row],[Rate]] -> 0
A36: 1 | B36: 1 | C36: 7 | D36: =DAY(EOMONTH(DATE(2021,TOU_CTabulation[[#This Row],[Month]],TOU_CTabulation[[#This Row],[Day]]),0)) -> 31 | E36: =VLOOKUP(TOU_CTabulation[[#This Row],[Month]],SeasonTable,2) -> Winter | F36: 324.275 | G36: =VLOOKUP(TOU_CTabulation[[#This Row],[Hour]],daypart,2) -> Off | H36: =CONCATENATE(TOU_CTabulation[[#This Row],[Season]],TOU_CTabulation[[#This Row],[Day-Part]]) -> WinterOff | I36: 297.546 | J36: =TOU_CTabulation[[#This Row],[AC System Output (W)]]/1000 -> 0.297546 | K36: =IF(TOU_CTabulation[[#This Row],[Month]]=A34,K35+TOU_CTabulation[[#This Row],[AC System Output (kW)]],TOU_CTabulation[[#This Row],[AC System Output (kW)]]) -> 0.297546 | L36: =VLOOKUP(TOU_CTabulation[[#This Row],[Season]],Baseline,2)*TOU_CTabulation[[#This Row],[Days in month]] -> 325.5 | M36: =IF(TOU_CTabulation[[#This Row],[Month Cumm]]<=TOU_CTabulation[[#This Row],[Month Base Allow]],VLOOKUP(TOU_CTabulation[[#This Row],[Season+ Daypart]],TOUC,2),VLOOKUP(TOU_CTabulation[[#This Row],[Season+ Daypart]],TOUC,2)+0.07584) -> 0.22788 | N36: =TOU_CTabulation[[#This Row],[AC System Output (kW)]]*TOU_CTabulation[[#This Row],[Rate]] -> 0.06780478248
A37: 1 | B37: 1 | C37: 8 | D37: =DAY(EOMONTH(DATE(2021,TOU_CTabulation[[#This Row],[Month]],TOU_CTabulation[[#This Row],[Day]]),0)) -> 31 | E37: =VLOOKUP(TOU_CTabulation[[#This Row],[Month]],SeasonTable,2) -> Winter | F37: 523.533 | G37: =VLOOKUP(TOU_CTabulation[[#This Row],[Hour]],daypart,2) -> Off | H37: =CONCATENATE(TOU_CTabulation[[#This Row],[Season]],TOU_CTabulation[[#This Row],[Day-Part]]) -> WinterOff | I37: 492.436 | J37: =TOU_CTabulation[[#This Row],[AC System Output (W)]]/1000 -> 0.492436 | K37: =IF(TOU_CTabulation[[#This Row],[Month]]=A35,K36+TOU_CTabulation[[#This Row],[AC System Output (kW)]],TOU_CTabulation[[#This Row],[AC System Output (kW)]]) -> 0.789982 | L37: =VLOOKUP(TOU_CTabulation[[#This Row],[Season]],Baseline,2)*TOU_CTabulation[[#This Row],[Days in month]] -> 325.5 | M37: =IF(TOU_CTabulation[[#This Row],[Month Cumm]]<=TOU_CTabulation[[#This Row],[Month Base Allow]],VLOOKUP(TOU_CTabulation[[#This Row],[Season+ Daypart]],TOUC,2),VLOOKUP(TOU_CTabulation[[#This Row],[Season+ Daypart]],TOUC,2)+0.07584) -> 0.22788 | N37: =TOU_CTabulation[[#This Row],[AC System Output (kW)]]*TOU_CTabulation[[#This Row],[Rate]] -> 0.1122163157
A38: 1 | B38: 1 | C38: 9 | D38: =DAY(EOMONTH(DATE(2021,TOU_CTabulation[[#This Row],[Month]],TOU_CTabulation[[#This Row],[Day]]),0)) -> 31 | E38: =VLOOKUP(TOU_CTabulation[[#This Row],[Month]],SeasonTable,2) -> Winter | F38: 1932.319 | G38: =VLOOKUP(TOU_CTabulation[[#This Row],[Hour]],daypart,2) -> Off | H38: =CONCATENATE(TOU_CTabulation[[#This Row],[Season]],TOU_CTabulation[[#This Row],[Day-Part]]) -> WinterOff | I38: 1859.805 | J38: =TOU_CTabulation[[#This Row],[AC System Output (W)]]/1000 -> 1.859805 | K38: =IF(TOU_CTabulation[[#This Row],[Month]]=A36,K37+TOU_CTabulation[[#This Row],[AC System Output (kW)]],TOU_CTabulation[[#This Row],[AC System Output (kW)]]) -> 2.649787 | L38: =VLOOKUP(TOU_CTabulation[[#This Row],[Season]],Baseline,2)*TOU_CTabulation[[#This Row],[Days in month]] -> 325.5 | M38: =IF(TOU_CTabulation[[#This Row],[Month Cumm]]<=TOU_CTabulation[[#This Row],[Month Base Allow]],VLOOKUP(TOU_CTabulation[[#This Row],[Season+ Daypart]],TOUC,2),VLOOKUP(TOU_CTabulation[[#This Row],[Season+ Daypart]],TOUC,2)+0.07584) -> 0.22788 | N38: =TOU_CTabulation[[#This Row],[AC System Output (kW)]]*TOU_CTabulation[[#This Row],[Rate]] -> 0.4238123634
A39: 1 | B39: 1 | C39: 10 | D39: =DAY(EOMONTH(DATE(2021,TOU_CTabulation[[#This Row],[Month]],TOU_CTabulation[[#This Row],[Day]]),0)) -> 31 | E39: =VLOOKUP(TOU_CTabulation[[#This Row],[Month]],SeasonTable,2) -> Winter | F39: 2388.073 | G39: =VLOOKUP(TOU_CTabulation[[#This Row],[Hour]],daypart,2) -> Off | H39: =CONCATENATE(TOU_CTabulation[[#This Row],[Season]],TOU_CTabulation[[#This Row],[Day-Part]]) -> WinterOff | I39: 2298.211 | J39: =TOU_CTabulation[[#This Row],[AC System Output (W)]]/1000 -> 2.298211 | K39: =IF(TOU_CTabulation[[#This Row],[Month]]=A37,K38+TOU_CTabulation[[#This Row],[AC System Output (kW)]],TOU_CTabulation[[#This Row],[AC System Output (kW)]]) -> 4.947998 | L39: =VLOOKUP(TOU_CTabulation[[#This Row],[Season]],Baseline,2)*TOU_CTabulation[[#This Row],[Days in month]] -> 325.5 | M39: =IF(TOU_CTabulation[[#This Row],[Month Cumm]]<=TOU_CTabulation[[#This Row],[Month Base Allow]],VLOOKUP(TOU_CTabulation[[#This Row],[Season+ Daypart]],TOUC,2),VLOOKUP(TOU_CTabulation[[#This Row],[Season+ Daypart]],TOUC,2)+0.07584) -> 0.22788 | N39: =TOU_CTabulation[[#This Row],[AC System Output (kW)]]*TOU_CTabulation[[#This Row],[Rate]] -> 0.5237163227
A40: 1 | B40: 1 | C40: 11 | D40: =DAY(EOMONTH(DATE(2021,TOU_CTabulation[[#This Row],[Month]],TOU_CTabulation[[#This Row],[Day]]),0)) -> 31 | E40: =VLOOKUP(TOU_CTabulation[[#This Row],[Month]],SeasonTable,2) -> Winter | F40: 1984.228 | G40: =VLOOKUP(TOU_CTabulation[[#This Row],[Hour]],daypart,2) -> Off | H40: =CONCATENATE(TOU_CTabulation[[#This Row],[Season]],TOU_CTabulation[[#This Row],[Day-Part]]) -> WinterOff | I40: 1909.836 | J40: =TOU_CTabulation[[#This Row],[AC System Output (W)]]/1000 -> 1.909836 | K40: =IF(TOU_CTabulation[[#This Row],[Month]]=A38,K39+TOU_CTabulation[[#This Row],[AC System Output (kW)]],TOU_CTabulation[[#This Row],[AC System Output (kW)]]) -> 6.857834 | L40: =VLOOKUP(TOU_CTabulation[[#This Row],[Season]],Baseline,2)*TOU_CTabulation[[#This Row],[Days in month]] -> 325.5 | M40: =IF(TOU_CTabulation[[#This Row],[Month Cumm]]<=TOU_CTabulation[[#This Row],[Month Base Allow]],VLOOKUP(TOU_CTabulation[[#This Row],[Season+ Daypart]],TOUC,2),VLOOKUP(TOU_CTabulation[[#This Row],[Season+ Daypart]],TOUC,2)+0.07584) -> 0.22788 | N40: =TOU_CTabulation[[#This Row],[AC System Output (kW)]]*TOU_CTabulation[[#This Row],[Rate]] -> 0.4352134277
A41: 1 | B41: 1 | C41: 12 | D41: =DAY(EOMONTH(DATE(2021,TOU_CTabulation[[#This Row],[Month]],TOU_CTabulation[[#This Row],[Day]]),0)) -> 31 | E41: =VLOOKUP(TOU_CTabulation[[#This Row],[Month]],SeasonTable,2) -> Winter | F41: 1887.064 | G41: =VLOOKUP(TOU_CTabulation[[#This Row],[Hour]],daypart,2) -> Off | H41: =CONCATENATE(TOU_CTabulation[[#This Row],[Season]],TOU_CTabulation[[#This Row],[Day-Part]]) -> WinterOff | I41: 1816.167 | J41: =TOU_CTabulation[[#This Row],[AC System Output (W)]]/1000 -> 1.816167 | K41: =IF(TOU_CTabulation[[#This Row],[Month]]=A39,K40+TOU_CTabulation[[#This Row],[AC System Output (kW)]],TOU_CTabulation[[#This Row],[AC System Output (kW)]]) -> 8.674001 | L41: =VLOOKUP(TOU_CTabulation[[#This Row],[Season]],Baseline,2)*TOU_CTabulation[[#This Row],[Days in month]] -> 325.5 | M41: =IF(TOU_CTabulation[[#This Row],[Month Cumm]]<=TOU_CTabulation[[#This Row],[Month Base Allow]],VLOOKUP(TOU_CTabulation[[#This Row],[Season+ Daypart]],TOUC,2),VLOOKUP(TOU_CTabulation[[#This Row],[Season+ Daypart]],TOUC,2)+0.07584) -> 0.22788 | N41: =TOU_CTabulation[[#This Row],[AC System Output (kW)]]*TOU_CTabulation[[#This Row],[Rate]] -> 0.413868136
A42: 1 | B42: 1 | C42: 13 | D42: =DAY(EOMONTH(DATE(2021,TOU_CTabulation[[#This Row],[Month]],TOU_CTabulation[[#This Row],[Day]]),0)) -> 31 | E42: =VLOOKUP(TOU_CTabulation[[#This Row],[Month]],SeasonTable,2) -> Winter | F42: 2365.446 | G42: =VLOOKUP(TOU_CTabulation[[#This Row],[Hour]],daypart,2) -> Off | H42: =CONCATENATE(TOU_CTabulation[[#This Row],[Season]],TOU_CTabulation[[#This Row],[Day-Part]]) -> WinterOff | I42: 2276.49 | J42: =TOU_CTabulation[[#This Row],[AC System Output (W)]]/1000 -> 2.27649 | K42: =IF(TOU_CTabulation[[#This Row],[Month]]=A40,K41+TOU_CTabulation[[#This Row],[AC System Output (kW)]],TOU_CTabulation[[#This Row],[AC System Output (kW)]]) -> 10.950491 | L42: =VLOOKUP(TOU_CTabulation[[#This Row],[Season]],Baseline,2)*TOU_CTabulation[[#This Row],[Days in month]] -> 325.5 | M42: =IF(TOU_CTabulation[[#This Row],[Month Cumm]]<=TOU_CTabulation[[#This Row],[Month Base Allow]],VLOOKUP(TOU_CTabulation[[#This Row],[Season+ Daypart]],TOUC,2),VLOOKUP(TOU_CTabulation[[#This Row],[Season+ Daypart]],TOUC,2)+0.07584) -> 0.22788 | N42: =TOU_CTabulation[[#This Row],[AC System Output (kW)]]*TOU_CTabulation[[#This Row],[Rate]] -> 0.5187665412
A43: 1 | B43: 1 | C43: 14 | D43: =DAY(EOMONTH(DATE(2021,TOU_CTabulation[[#This Row],[Month]],TOU_CTabulation[[#This Row],[Day]]),0)) -> 31 | E43: =VLOOKUP(TOU_CTabulation[[#This Row],[Month]],SeasonTable,2) -> Winter | F43: 1875.374 | G43: =VLOOKUP(TOU_CTabulation[[#This Row],[Hour]],daypart,2) -> Off | H43: =CONCATENATE(TOU_CTabulation[[#This Row],[Season]],TOU_CTabulation[[#This Row],[Day-Part]]) -> WinterOff | I43: 1804.892 | J43: =TOU_CTabulation[[#This Row],[AC System Output (W)]]/1000 -> 1.804892 | K43: =IF(TOU_CTabulation[[#This Row],[Month]]=A41,K42+TOU_CTabulation[[#This Row],[AC System Output (kW)]],TOU_CTabulation[[#This Row],[AC System Output (kW)]]) -> 12.755383 | L43: =VLOOKUP(TOU_CTabulation[[#This Row],[Season]],Baseline,2)*TOU_CTabulation[[#This Row],[Days in month]] -> 325.5 | M43: =IF(TOU_CTabulation[[#This Row],[Month Cumm]]<=TOU_CTabulation[[#This Row],[Month Base Allow]],VLOOKUP(TOU_CTabulation[[#This Row],[Season+ Daypart]],TOUC,2),VLOOKUP(TOU_CTabulation[[#This Row],[Season+ Daypart]],TOUC,2)+0.07584) -> 0.22788 | N43: =TOU_CTabulation[[#This Row],[AC System Output (kW)]]*TOU_CTabulation[[#This Row],[Rate]] -> 0.411298789
A44: 1 | B44: 1 | C44: 15 | D44: =DAY(EOMONTH(DATE(2021,TOU_CTabulation[[#This Row],[Month]],TOU_CTabulation[[#This Row],[Day]]),0)) -> 31 | E44: =VLOOKUP(TOU_CTabulation[[#This Row],[Month]],SeasonTable,2) -> Winter | F44: 1253.762 | G44: =VLOOKUP(TOU_CTabulation[[#This Row],[Hour]],daypart,2) -> Off | H44: =CONCATENATE(TOU_CTabulation[[#This Row],[Season]],TOU_CTabulation[[#This Row],[Day-Part]]) -> WinterOff | I44: 1203.5 | J44: =TOU_CTabulation[[#This Row],[AC System Output (W)]]/1000 -> 1.2035 | K44: =IF(TOU_CTabulation[[#This Row],[Month]]=A42,K43+TOU_CTabulation[[#This Row],[AC System Output (kW)]],TOU_CTabulation[[#This Row],[AC System Output (kW)]]) -> 13.958883 | L44: =VLOOKUP(TOU_CTabulation[[#This Row],[Season]],Baseline,2)*TOU_CTabulation[[#This Row],[Days in month]] -> 325.5 | M44: =IF(TOU_CTabulation[[#This Row],[Month Cumm]]<=TOU_CTabulation[[#This Row],[Month Base Allow]],VLOOKUP(TOU_CTabulation[[#This Row],[Season+ Daypart]],TOUC,2),VLOOKUP(TOU_CTabulation[[#This Row],[Season+ Daypart]],TOUC,2)+0.07584) -> 0.22788 | N44: =TOU_CTabulation[[#This Row],[AC System Output (kW)]]*TOU_CTabulation[[#This Row],[Rate]] -> 0.27425358
A45: 1 | B45: 1 | C45: 16 | D45: =DAY(EOMONTH(DATE(2021,TOU_CTabulation[[#This Row],[Month]],TOU_CTabulation[[#This Row],[Day]]),0)) -> 31 | E45: =VLOOKUP(TOU_CTabulation[[#This Row],[Month]],SeasonTable,2) -> Winter | F45: 449.452 | G45: =VLOOKUP(TOU_CTabulation[[#This Row],[Hour]],daypart,2) -> Peak | H45: =CONCATENATE(TOU_CTabulation[[#This Row],[Season]],TOU_CTabulation[[#This Row],[Day-Part]]) -> WinterPeak | I45: 420.022 | J45: =TOU_CTabulation[[#This Row],[AC System Output (W)]]/1000 -> 0.420022 | K45: =IF(TOU_CTabulation[[#This Row],[Month]]=A43,K44+TOU_CTabulation[[#This Row],[AC System Output (kW)]],TOU_CTabulation[[#This Row],[AC System Output (kW)]]) -> 14.378905 | L45: =VLOOKUP(TOU_CTabulation[[#This Row],[Season]],Baseline,2)*TOU_CTabulation[[#This Row],[Days in month]] -> 325.5 | M45: =IF(TOU_CTabulation[[#This Row],[Month Cumm]]<=TOU_CTabulation[[#This Row],[Month Base Allow]],VLOOKUP(TOU_CTabulation[[#This Row],[Season+ Daypart]],TOUC,2),VLOOKUP(TOU_CTabulation[[#This Row],[Season+ Daypart]],TOUC,2)+0.07584) -> 0.2452 | N45: =TOU_CTabulation[[#This Row],[AC System Output (kW)]]*TOU_CTabulation[[#This Row],[Rate]] -> 0.1029893944
A46: 1 | B46: 1 | C46: 17 | D46: =DAY(EOMONTH(DATE(2021,TOU_CTabulation[[#This Row],[Month]],TOU_CTabulation[[#This Row],[Day]]),0)) -> 31 | E46: =VLOOKUP(TOU_CTabulation[[#This Row],[Month]],SeasonTable,2) -> Winter | F46: 0 | G46: =VLOOKUP(TOU_CTabulation[[#This Row],[Hour]],daypart,2) -> Peak | H46: =CONCATENATE(TOU_CTabulation[[#This Row],[Season]],TOU_CTabulation[[#This Row],[Day-Part]]) -> WinterPeak | I46: 0 | J46: =TOU_CTabulation[[#This Row],[AC System Output (W)]]/1000 -> 0 | K46: =IF(TOU_CTabulation[[#This Row],[Month]]=A44,K45+TOU_CTabulation[[#This Row],[AC System Output (kW)]],TOU_CTabulation[[#This Row],[AC System Output (kW)]]) -> 14.378905 | L46: =VLOOKUP(TOU_CTabulation[[#This Row],[Season]],Baseline,2)*TOU_CTabulation[[#This Row],[Days in month]] -> 325.5 | M46: =IF(TOU_CTabulation[[#This Row],[Month Cumm]]<=TOU_CTabulation[[#This Row],[Month Base Allow]],VLOOKUP(TOU_CTabulation[[#This Row],[Season+ Daypart]],TOUC,2),VLOOKUP(TOU_CTabulation[[#This Row],[Season+ Daypart]],TOUC,2)+0.07584) -> 0.2452 | N46: =TOU_CTabulation[[#This Row],[AC System Output (kW)]]*TOU_CTabulation[[#This Row],[Rate]] -> 0
A47: 1 | B47: 1 | C47: 18 | D47: =DAY(EOMONTH(DATE(2021,TOU_CTabulation[[#This Row],[Month]],TOU_CTabulation[[#This Row],[Day]]),0)) -> 31 | E47: =VLOOKUP(TOU_CTabulation[[#This Row],[Month]],SeasonTable,2) -> Winter | F47: 0 | G47: =VLOOKUP(TOU_CTabulation[[#This Row],[Hour]],daypart,2) -> Peak | H47: =CONCATENATE(TOU_CTabulation[[#This Row],[Season]],TOU_CTabulation[[#This Row],[Day-Part]]) -> WinterPeak | I47: 0 | J47: =TOU_CTabulation[[#This Row],[AC System Output (W)]]/1000 -> 0 | K47: =IF(TOU_CTabulation[[#This Row],[Month]]=A45,K46+TOU_CTabulation[[#This Row],[AC System Output (kW)]],TOU_CTabulation[[#This Row],[AC System Output (kW)]]) -> 14.378905 | L47: =VLOOKUP(TOU_CTabulation[[#This Row],[Season]],Baseline,2)*TOU_CTabulation[[#This Row],[Days in month]] -> 325.5 | M47: =IF(TOU_CTabulation[[#This Row],[Month Cumm]]<=TOU_CTabulation[[#This Row],[Month Base Allow]],VLOOKUP(TOU_CTabulation[[#This Row],[Season+ Daypart]],TOUC,2),VLOOKUP(TOU_CTabulation[[#This Row],[Season+ Daypart]],TOUC,2)+0.07584) -> 0.2452 | N47: =TOU_CTabulation[[#This Row],[AC System Output (kW)]]*TOU_CTabulation[[#This Row],[Rate]] -> 0
A48: 1 | B48: 1 | C48: 19 | D48: =DAY(EOMONTH(DATE(2021,TOU_CTabulation[[#This Row],[Month]],TOU_CTabulation[[#This Row],[Day]]),0)) -> 31 | E48: =VLOOKUP(TOU_CTabulation[[#This Row],[Month]],SeasonTable,2) -> Winter | F48: 0 | G48: =VLOOKUP(TOU_CTabulation[[#This Row],[Hour]],daypart,2) -> Peak | H48: =CONCATENATE(TOU_CTabulation[[#This Row],[Season]],TOU_CTabulation[[#This Row],[Day-Part]]) -> WinterPeak | I48: 0 | J48: =TOU_CTabulation[[#This Row],[AC System Output (W)]]/1000 -> 0 | K48: =IF(TOU_CTabulation[[#This Row],[Month]]=A46,K47+TOU_CTabulation[[#This Row],[AC System Output (kW)]],TOU_CTabulation[[#This Row],[AC System Output (kW)]]) -> 14.378905 | L48: =VLOOKUP(TOU_CTabulation[[#This Row],[Season]],Baseline,2)*TOU_CTabulation[[#This Row],[Days in month]] -> 325.5 | M48: =IF(TOU_CTabulation[[#This Row],[Month Cumm]]<=TOU_CTabulation[[#This Row],[Month Base Allow]],VLOOKUP(TOU_CTabulation[[#This Row],[Season+ Daypart]],TOUC,2),VLOOKUP(TOU_CTabulation[[#This Row],[Season+ Daypart]],TOUC,2)+0.07584) -> 0.2452 | N48: =TOU_CTabulation[[#This Row],[AC System Output (kW)]]*TOU_CTabulation[[#This Row],[Rate]] -> 0
A49: 1 | B49: 1 | C49: 20 | D49: =DAY(EOMONTH(DATE(2021,TOU_CTabulation[[#This Row],[Month]],TOU_CTabulation[[#This Row],[Day]]),0)) -> 31 | E49: =VLOOKUP(TOU_CTabulation[[#This Row],[Month]],SeasonTable,2) -> Winter | F49: 0 | G49: =VLOOKUP(TOU_CTabulation[[#This Row],[Hour]],daypart,2) -> Peak | H49: =CONCATENATE(TOU_CTabulation[[#This Row],[Season]],TOU_CTabulation[[#This Row],[Day-Part]]) -> WinterPeak | I49: 0 | J49: =TOU_CTabulation[[#This Row],[AC System Output (W)]]/1000 -> 0 | K49: =IF(TOU_CTabulation[[#This Row],[Month]]=A47,K48+TOU_CTabulation[[#This Row],[AC System Output (kW)]],TOU_CTabulation[[#This Row],[AC System Output (kW)]]) -> 14.378905 | L49: =VLOOKUP(TOU_CTabulation[[#This Row],[Season]],Baseline,2)*TOU_CTabulation[[#This Row],[Days in month]] -> 325.5 | M49: =IF(TOU_CTabulation[[#This Row],[Month Cumm]]<=TOU_CTabulation[[#This Row],[Month Base Allow]],VLOOKUP(TOU_CTabulation[[#This Row],[Season+ Daypart]],TOUC,2),VLOOKUP(TOU_CTabulation[[#This Row],[Season+ Daypart]],TOUC,2)+0.07584) -> 0.2452 | N49: =TOU_CTabulation[[#This Row],[AC System Output (kW)]]*TOU_CTabulation[[#This Row],[Rate]] -> 0
A50: 1 | B50: 1 | C50: 21 | D50: =DAY(EOMONTH(DATE(2021,TOU_CTabulation[[#This Row],[Month]],TOU_CTabulation[[#This Row],[Day]]),0)) -> 31 | E50: =VLOOKUP(TOU_CTabulation[[#This Row],[Month]],SeasonTable,2) -> Winter | F50: 0 | G50: =VLOOKUP(TOU_CTabulation[[#This Row],[Hour]],daypart,2) -> Off | H50: =CONCATENATE(TOU_CTabulation[[#This Row],[Season]],TOU_CTabulation[[#This Row],[Day-Part]]) -> WinterOff | I50: 0 | J50: =TOU_CTabulation[[#This Row],[AC System Output (W)]]/1000 -> 0 | K50: =IF(TOU_CTabulation[[#This Row],[Month]]=A48,K49+TOU_CTabulation[[#This Row],[AC System Output (kW)]],TOU_CTabulation[[#This Row],[AC System Output (kW)]]) -> 14.378905 | L50: =VLOOKUP(TOU_CTabulation[[#This Row],[Season]],Baseline,2)*TOU_CTabulation[[#This Row],[Days in month]] -> 325.5 | M50: =IF(TOU_CTabulation[[#This Row],[Month Cumm]]<=TOU_CTabulation[[#This Row],[Month Base Allow]],VLOOKUP(TOU_CTabulation[[#This Row],[Season+ Daypart]],TOUC,2),VLOOKUP(TOU_CTabulation[[#This Row],[Season+ Daypart]],TOUC,2)+0.07584) -> 0.22788 | N50: =TOU_CTabulation[[#This Row],[AC System Output (kW)]]*TOU_CTabulation[[#This Row],[Rate]] -> 0
A51: 1 | B51: 1 | C51: 22 | D51: =DAY(EOMONTH(DATE(2021,TOU_CTabulation[[#This Row],[Month]],TOU_CTabulation[[#This Row],[Day]]),0)) -> 31 | E51: =VLOOKUP(TOU_CTabulation[[#This Row],[Month]],SeasonTable,2) -> Winter | F51: 0 | G51: =VLOOKUP(TOU_CTabulation[[#This Row],[Hour]],daypart,2) -> Off | H51: =CONCATENATE(TOU_CTabulation[[#This Row],[Season]],TOU_CTabulation[[#This Row],[Day-Part]]) -> WinterOff | I51: 0 | J51: =TOU_CTabulation[[#This Row],[AC System Output (W)]]/1000 -> 0 | K51: =IF(TOU_CTabulation[[#This Row],[Month]]=A49,K50+TOU_CTabulation[[#This Row],[AC System Output (kW)]],TOU_CTabulation[[#This Row],[AC System Output (kW)]]) -> 14.378905 | L51: =VLOOKUP(TOU_CTabulation[[#This Row],[Season]],Baseline,2)*TOU_CTabulation[[#This Row],[Days in month]] -> 325.5 | M51: =IF(TOU_CTabulation[[#This Row],[Month Cumm]]<=TOU_CTabulation[[#This Row],[Month Base Allow]],VLOOKUP(TOU_CTabulation[[#This Row],[Season+ Daypart]],TOUC,2),VLOOKUP(TOU_CTabulation[[#This Row],[Season+ Daypart]],TOUC,2)+0.07584) -> 0.22788 | N51: =TOU_CTabulation[[#This Row],[AC System Output (kW)]]*TOU_CTabulation[[#This Row],[Rate]] -> 0
A52: 1 | B52: 1 | C52: 23 | D52: =DAY(EOMONTH(DATE(2021,TOU_CTabulation[[#This Row],[Month]],TOU_CTabulation[[#This Row],[Day]]),0)) -> 31 | E52: =VLOOKUP(TOU_CTabulation[[#This Row],[Month]],SeasonTable,2) -> Winter | F52: 0 | G52: =VLOOKUP(TOU_CTabulation[[#This Row],[Hour]],daypart,2) -> Off | H52: =CONCATENATE(TOU_CTabulation[[#This Row],[Season]],TOU_CTabulation[[#This Row],[Day-Part]]) -> WinterOff | I52: 0 | J52: =TOU_CTabulation[[#This Row],[AC System Output (W)]]/1000 -> 0 | K52: =IF(TOU_CTabulation[[#This Row],[Month]]=A50,K51+TOU_CTabulation[[#This Row],[AC System Output (kW)]],TOU_CTabulation[[#This Row],[AC System Output (kW)]]) -> 14.378905 | L52: =VLOOKUP(TOU_CTabulation[[#This Row],[Season]],Baseline,2)*TOU_CTabulation[[#This Row],[Days in month]] -> 325.5 | M52: =IF(TOU_CTabulation[[#This Row],[Month Cumm]]<=TOU_CTabulation[[#This Row],[Month Base Allow]],VLOOKUP(TOU_CTabulation[[#This Row],[Season+ Daypart]],TOUC,2),VLOOKUP(TOU_CTabulation[[#This Row],[Season+ Daypart]],TOUC,2)+0.07584) -> 0.22788 | N52: =TOU_CTabulation[[#This Row],[AC System Output (kW)]]*TOU_CTabulation[[#This Row],[Rate]] -> 0
A53: 1 | B53: 2 | C53: 0 | D53: =DAY(EOMONTH(DATE(2021,TOU_CTabulation[[#This Row],[Month]],TOU_CTabulation[[#This Row],[Day]]),0)) -> 31 | E53: =VLOOKUP(TOU_CTabulation[[#This Row],[Month]],SeasonTable,2) -> Winter | F53: 0 | G53: =VLOOKUP(TOU_CTabulation[[#This Row],[Hour]],daypart,2) -> Off | H53: =CONCATENATE(TOU_CTabulation[[#This Row],[Season]],TOU_CTabulation[[#This Row],[Day-Part]]) -> WinterOff | I53: 0 | J53: =TOU_CTabulation[[#This Row],[AC System Output (W)]]/1000 -> 0 | K53: =IF(TOU_CTabulation[[#This Row],[Month]]=A51,K52+TOU_CTabulation[[#This Row],[AC System Output (kW)]],TOU_CTabulation[[#This Row],[AC System Output (kW)]]) -> 14.378905 | L53: =VLOOKUP(TOU_CTabulation[[#This Row],[Season]],Baseline,2)*TOU_CTabulation[[#This Row],[Days in month]] -> 325.5 | M53: =IF(TOU_CTabulation[[#This Row],[Month Cumm]]<=TOU_CTabulation[[#This Row],[Month Base Allow]],VLOOKUP(TOU_CTabulation[[#This Row],[Season+ Daypart]],TOUC,2),VLOOKUP(TOU_CTabulation[[#This Row],[Season+ Daypart]],TOUC,2)+0.07584) -> 0.22788 | N53: =TOU_CTabulation[[#This Row],[AC System Output (kW)]]*TOU_CTabulation[[#This Row],[Rate]] -> 0
A54: 1 | B54: 2 | C54: 1 | D54: =DAY(EOMONTH(DATE(2021,TOU_CTabulation[[#This Row],[Month]],TOU_CTabulation[[#This Row],[Day]]),0)) -> 31 | E54: =VLOOKUP(TOU_CTabulation[[#This Row],[Month]],SeasonTable,2) -> Winter | F54: 0 | G54: =VLOOKUP(TOU_CTabulation[[#This Row],[Hour]],daypart,2) -> Off | H54: =CONCATENATE(TOU_CTabulation[[#This Row],[Season]],TOU_CTabulation[[#This Row],[Day-Part]]) -> WinterOff | I54: 0 | J54: =TOU_CTabulation[[#This Row],[AC System Output (W)]]/1000 -> 0 | K54: =IF(TOU_CTabulation[[#This Row],[Month]]=A52,K53+TOU_CTabulation[[#This Row],[AC System Output (kW)]],TOU_CTabulation[[#This Row],[AC System Output (kW)]]) -> 14.378905 | L54: =VLOOKUP(TOU_CTabulation[[#This Row],[Season]],Baseline,2)*TOU_CTabulation[[#This Row],[Days in month]] -> 325.5 | M54: =IF(TOU_CTabulation[[#This Row],[Month Cumm]]<=TOU_CTabulation[[#This Row],[Month Base Allow]],VLOOKUP(TOU_CTabulation[[#This Row],[Season+ Daypart]],TOUC,2),VLOOKUP(TOU_CTabulation[[#This Row],[Season+ Daypart]],TOUC,2)+0.07584) -> 0.22788 | N54: =TOU_CTabulation[[#This Row],[AC System Output (kW)]]*TOU_CTabulation[[#This Row],[Rate]] -> 0
A55: 1 | B55: 2 | C55: 2 | D55: =DAY(EOMONTH(DATE(2021,TOU_CTabulation[[#This Row],[Month]],TOU_CTabulation[[#This Row],[Day]]),0)) -> 31 | E55: =VLOOKUP(TOU_CTabulation[[#This Row],[Month]],SeasonTable,2) -> Winter | F55: 0 | G55: =VLOOKUP(TOU_CTabulation[[#This Row],[Hour]],daypart,2) -> Off | H55: =CONCATENATE(TOU_CTabulation[[#This Row],[Season]],TOU_CTabulation[[#This Row],[Day-Part]]) -> WinterOff | I55: 0 | J55: =TOU_CTabulation[[#This Row],[AC System Output (W)]]/1000 -> 0 | K55: =IF(TOU_CTabulation[[#This Row],[Month]]=A53,K54+TOU_CTabulation[[#This Row],[AC System Output (kW)]],TOU_CTabulation[[#This Row],[AC System Output (kW)]]) -> 14.378905 | L55: =VLOOKUP(TOU_CTabulation[[#This Row],[Season]],Baseline,2)*TOU_CTabulation[[#This Row],[Days in month]] -> 325.5 | M55: =IF(TOU_CTabulation[[#This Row],[Month Cumm]]<=TOU_CTabulation[[#This Row],[Month Base Allow]],VLOOKUP(TOU_CTabulation[[#This Row],[Season+ Daypart]],TOUC,2),VLOOKUP(TOU_CTabulation[[#This Row],[Season+ Daypart]],TOUC,2)+0.07584) -> 0.22788 | N55: =TOU_CTabulation[[#This Row],[AC System Output (kW)]]*TOU_CTabulation[[#This Row],[Rate]] -> 0
A56: 1 | B56: 2 | C56: 3 | D56: =DAY(EOMONTH(DATE(2021,TOU_CTabulation[[#This Row],[Month]],TOU_CTabulation[[#This Row],[Day]]),0)) -> 31 | E56: =VLOOKUP(TOU_CTabulation[[#This Row],[Month]],SeasonTable,2) -> Winter | F56: 0 | G56: =VLOOKUP(TOU_CTabulation[[#This Row],[Hour]],daypart,2) -> Off | H56: =CONCATENATE(TOU_CTabulation[[#This Row],[Season]],TOU_CTabulation[[#This Row],[Day-Part]]) -> WinterOff | I56: 0 | J56: =TOU_CTabulation[[#This Row],[AC System Output (W)]]/1000 -> 0 | K56: =IF(TOU_CTabulation[[#This Row],[Month]]=A54,K55+TOU_CTabulation[[#This Row],[AC System Output (kW)]],TOU_CTabulation[[#This Row],[AC System Output (kW)]]) -> 14.378905 | L56: =VLOOKUP(TOU_CTabulation[[#This Row],[Season]],Baseline,2)*TOU_CTabulation[[#This Row],[Days in month]] -> 325.5 | M56: =IF(TOU_CTabulation[[#This Row],[Month Cumm]]<=TOU_CTabulation[[#This Row],[Month Base Allow]],VLOOKUP(TOU_CTabulation[[#This Row],[Season+ Daypart]],TOUC,2),VLOOKUP(TOU_CTabulation[[#This Row],[Season+ Daypart]],TOUC,2)+0.07584) -> 0.22788 | N56: =TOU_CTabulation[[#This Row],[AC System Output (kW)]]*TOU_CTabulation[[#This Row],[Rate]] -> 0
A57: 1 | B57: 2 | C57: 4 | D57: =DAY(EOMONTH(DATE(2021,TOU_CTabulation[[#This Row],[Month]],TOU_CTabulation[[#This Row],[Day]]),0)) -> 31 | E57: =VLOOKUP(TOU_CTabulation[[#This Row],[Month]],SeasonTable,2) -> Winter | F57: 0 | G57: =VLOOKUP(TOU_CTabulation[[#This Row],[Hour]],daypart,2) -> Off | H57: =CONCATENATE(TOU_CTabulation[[#This Row],[Season]],TOU_CTabulation[[#This Row],[Day-Part]]) -> WinterOff | I57: 0 | J57: =TOU_CTabulation[[#This Row],[AC System Output (W)]]/1000 -> 0 | K57: =IF(TOU_CTabulation[[#This Row],[Month]]=A55,K56+TOU_CTabulation[[#This Row],[AC System Output (kW)]],TOU_CTabulation[[#This Row],[AC System Output (kW)]]) -> 14.378905 | L57: =VLOOKUP(TOU_CTabulation[[#This Row],[Season]],Baseline,2)*TOU_CTabulation[[#This Row],[Days in month]] -> 325.5 | M57: =IF(TOU_CTabulation[[#This Row],[Month Cumm]]<=TOU_CTabulation[[#This Row],[Month Base Allow]],VLOOKUP(TOU_CTabulation[[#This Row],[Season+ Daypart]],TOUC,2),VLOOKUP(TOU_CTabulation[[#This Row],[Season+ Daypart]],TOUC,2)+0.07584) -> 0.22788 | N57: =TOU_CTabulation[[#This Row],[AC System Output (kW)]]*TOU_CTabulation[[#This Row],[Rate]] -> 0
A58: 1 | B58: 2 | C58: 5 | D58: =DAY(EOMONTH(DATE(2021,TOU_CTabulation[[#This Row],[Month]],TOU_CTabulation[[#This Row],[Day]]),0)) -> 31 | E58: =VLOOKUP(TOU_CTabulation[[#This Row],[Month]],SeasonTable,2) -> Winter | F58: 0 | G58: =VLOOKUP(TOU_CTabulation[[#This Row],[Hour]],daypart,2) -> Off | H58: =CONCATENATE(TOU_CTabulation[[#This Row],[Season]],TOU_CTabulation[[#This Row],[Day-Part]]) -> WinterOff | I58: 0 | J58: =TOU_CTabulation[[#This Row],[AC System Output (W)]]/1000 -> 0 | K58: =IF(TOU_CTabulation[[#This Row],[Month]]=A56,K57+TOU_CTabulation[[#This Row],[AC System Output (kW)]],TOU_CTabulation[[#This Row],[AC System Output (kW)]]) -> 14.378905 | L58: =VLOOKUP(TOU_CTabulation[[#This Row],[Season]],Baseline,2)*TOU_CTabulation[[#This Row],[Days in month]] -> 325.5 | M58: =IF(TOU_CTabulation[[#This Row],[Month Cumm]]<=TOU_CTabulation[[#This Row],[Month Base Allow]],VLOOKUP(TOU_CTabulation[[#This Row],[Season+ Daypart]],TOUC,2),VLOOKUP(TOU_CTabulation[[#This Row],[Season+ Daypart]],TOUC,2)+0.07584) -> 0.22788 | N58: =TOU_CTabulation[[#This Row],[AC System Output (kW)]]*TOU_CTabulation[[#This Row],[Rate]] -> 0
A59: 1 | B59: 2 | C59: 6 | D59: =DAY(EOMONTH(DATE(2021,TOU_CTabulation[[#This Row],[Month]],TOU_CTabulation[[#This Row],[Day]]),0)) -> 31 | E59: =VLOOKUP(TOU_CTabulation[[#This Row],[Month]],SeasonTable,2) -> Winter | F59: 0 | G59: =VLOOKUP(TOU_CTabulation[[#This Row],[Hour]],daypart,2) -> Off | H59: =CONCATENATE(TOU_CTabulation[[#This Row],[Season]],TOU_CTabulation[[#This Row],[Day-Part]]) -> WinterOff | I59: 0 | J59: =TOU_CTabulation[[#This Row],[AC System Output (W)]]/1000 -> 0 | K59: =IF(TOU_CTabulation[[#This Row],[Month]]=A57,K58+TOU_CTabulation[[#This Row],[AC System Output (kW)]],TOU_CTabulation[[#This Row],[AC System Output (kW)]]) -> 14.378905 | L59: =VLOOKUP(TOU_CTabulation[[#This Row],[Season]],Baseline,2)*TOU_CTabulation[[#This Row],[Days in month]] -> 325.5 | M59: =IF(TOU_CTabulation[[#This Row],[Month Cumm]]<=TOU_CTabulation[[#This Row],[Month Base Allow]],VLOOKUP(TOU_CTabulation[[#This Row],[Season+ Daypart]],TOUC,2),VLOOKUP(TOU_CTabulation[[#This Row],[Season+ Daypart]],TOUC,2)+0.07584) -> 0.22788 | N59: =TOU_CTabulation[[#This Row],[AC System Output (kW)]]*TOU_CTabulation[[#This Row],[Rate]] -> 0
A60: 1 | B60: 2 | C60: 7 | D60: =DAY(EOMONTH(DATE(2021,TOU_CTabulation[[#This Row],[Month]],TOU_CTabulation[[#This Row],[Day]]),0)) -> 31 | E60: =VLOOKUP(TOU_CTabulation[[#This Row],[Month]],SeasonTable,2) -> Winter | F60: 53.696 | G60: =VLOOKUP(TOU_CTabulation[[#This Row],[Hour]],daypart,2) -> Off | H60: =CONCATENATE(TOU_CTabulation[[#This Row],[Season]],TOU_CTabulation[[#This Row],[Day-Part]]) -> WinterOff | I60: 32.309 | J60: =TOU_CTabulation[[#This Row],[AC System Output (W)]]/1000 -> 0.032309 | K60: =IF(TOU_CTabulation[[#This Row],[Month]]=A58,K59+TOU_CTabulation[[#This Row],[AC System Output (kW)]],TOU_CTabulation[[#This Row],[AC System Output (kW)]]) -> 14.411214 | L60: =VLOOKUP(TOU_CTabulation[[#This Row],[Season]],Baseline,2)*TOU_CTabulation[[#This Row],[Days in month]] -> 325.5 | M60: =IF(TOU_CTabulation[[#This Row],[Month Cumm]]<=TOU_CTabulation[[#This Row],[Month Base Allow]],VLOOKUP(TOU_CTabulation[[#This Row],[Season+ Daypart]],TOUC,2),VLOOKUP(TOU_CTabulation[[#This Row],[Season+ Daypart]],TOUC,2)+0.07584) -> 0.22788 | N60: =TOU_CTabulation[[#This Row],[AC System Output (kW)]]*TOU_CTabulation[[#This Row],[Rate]] -> 0.00736257492
A61: 1 | B61: 2 | C61: 8 | D61: =DAY(EOMONTH(DATE(2021,TOU_CTabulation[[#This Row],[Month]],TOU_CTabulation[[#This Row],[Day]]),0)) -> 31 | E61: =VLOOKUP(TOU_CTabulation[[#This Row],[Month]],SeasonTable,2) -> Winter | F61: 492.24 | G61: =VLOOKUP(TOU_CTabulation[[#This Row],[Hour]],daypart,2) -> Off | H61: =CONCATENATE(TOU_CTabulation[[#This Row],[Season]],TOU_CTabulation[[#This Row],[Day-Part]]) -> WinterOff | I61: 461.854 | J61: =TOU_CTabulation[[#This Row],[AC System Output (W)]]/1000 -> 0.461854 | K61: =IF(TOU_CTabulation[[#This Row],[Month]]=A59,K60+TOU_CTabulation[[#This Row],[AC System Output (kW)]],TOU_CTabulation[[#This Row],[AC System Output (kW)]]) -> 14.873068 | L61: =VLOOKUP(TOU_CTabulation[[#This Row],[Season]],Baseline,2)*TOU_CTabulation[[#This Row],[Days in month]] -> 325.5 | M61: =IF(TOU_CTabulation[[#This Row],[Month Cumm]]<=TOU_CTabulation[[#This Row],[Month Base Allow]],VLOOKUP(TOU_CTabulation[[#This Row],[Season+ Daypart]],TOUC,2),VLOOKUP(TOU_CTabulation[[#This Row],[Season+ Daypart]],TOUC,2)+0.07584) -> 0.22788 | N61: =TOU_CTabulation[[#This Row],[AC System Output (kW)]]*TOU_CTabulation[[#This Row],[Rate]] -> 0.1052472895
A62: 1 | B62: 2 | C62: 9 | D62: =DAY(EOMONTH(DATE(2021,TOU_CTabulation[[#This Row],[Month]],TOU_CTabulation[[#This Row],[Day]]),0)) -> 31 | E62: =VLOOKUP(TOU_CTabulation[[#This Row],[Month]],SeasonTable,2) -> Winter | F62: 1943.377 | G62: =VLOOKUP(TOU_CTabulation[[#This Row],[Hour]],daypart,2) -> Off | H62: =CONCATENATE(TOU_CTabulation[[#This Row],[Season]],TOU_CTabulation[[#This Row],[Day-Part]]) -> WinterOff | I62: 1870.465 | J62: =TOU_CTabulation[[#This Row],[AC System Output (W)]]/1000 -> 1.870465 | K62: =IF(TOU_CTabulation[[#This Row],[Month]]=A60,K61+TOU_CTabulation[[#This Row],[AC System Output (kW)]],TOU_CTabulation[[#This Row],[AC System Output (kW)]]) -> 16.743533 | L62: =VLOOKUP(TOU_CTabulation[[#This Row],[Season]],Baseline,2)*TOU_CTabulation[[#This Row],[Days in month]] -> 325.5 | M62: =IF(TOU_CTabulation[[#This Row],[Month Cumm]]<=TOU_CTabulation[[#This Row],[Month Base Allow]],VLOOKUP(TOU_CTabulation[[#This Row],[Season+ Daypart]],TOUC,2),VLOOKUP(TOU_CTabulation[[#This Row],[Season+ Daypart]],TOUC,2)+0.07584) -> 0.22788 | N62: =TOU_CTabulation[[#This Row],[AC System Output (kW)]]*TOU_CTabulation[[#This Row],[Rate]] -> 0.4262415642
A63: 1 | B63: 2 | C63: 10 | D63: =DAY(EOMONTH(DATE(2021,TOU_CTabulation[[#This Row],[Month]],TOU_CTabulation[[#This Row],[Day]]),0)) -> 31 | E63: =VLOOKUP(TOU_CTabulation[[#This Row],[Month]],SeasonTable,2) -> Winter | F63: 2424.815 | G63: =VLOOKUP(TOU_CTabulation[[#This Row],[Hour]],daypart,2) -> Off | H63: =CONCATENATE(TOU_CTabulation[[#This Row],[Season]],TOU_CTabulation[[#This Row],[Day-Part]]) -> WinterOff | I63: 2333.471 | J63: =TOU_CTabulation[[#This Row],[AC System Output (W)]]/1000 -> 2.333471 | K63: =IF(TOU_CTabulation[[#This Row],[Month]]=A61,K62+TOU_CTabulation[[#This Row],[AC System Output (kW)]],TOU_CTabulation[[#This Row],[AC System Output (kW)]]) -> 19.077004 | L63: =VLOOKUP(TOU_CTabulation[[#This Row],[Season]],Baseline,2)*TOU_CTabulation[[#This Row],[Days in month]] -> 325.5 | M63: =IF(TOU_CTabulation[[#This Row],[Month Cumm]]<=TOU_CTabulation[[#This Row],[Month Base Allow]],VLOOKUP(TOU_CTabulation[[#This Row],[Season+ Daypart]],TOUC,2),VLOOKUP(TOU_CTabulation[[#This Row],[Season+ Daypart]],TOUC,2)+0.07584) -> 0.22788 | N63: =TOU_CTabulation[[#This Row],[AC System Output (kW)]]*TOU_CTabulation[[#This Row],[Rate]] -> 0.5317513715
A64: 1 | B64: 2 | C64: 11 | D64: =DAY(EOMONTH(DATE(2021,TOU_CTabulation[[#This Row],[Month]],TOU_CTabulation[[#This Row],[Day]]),0)) -> 31 | E64: =VLOOKUP(TOU_CTabulation[[#This Row],[Month]],SeasonTable,2) -> Winter | F64: 2616.067 | G64: =VLOOKUP(TOU_CTabulation[[#This Row],[Hour]],daypart,2) -> Off | H64: =CONCATENATE(TOU_CTabulation[[#This Row],[Season]],TOU_CTabulation[[#This Row],[Day-Part]]) -> WinterOff | I64: 2516.802 | J64: =TOU_CTabulation[[#This Row],[AC System Output (W)]]/1000 -> 2.516802 | K64: =IF(TOU_CTabulation[[#This Row],[Month]]=A62,K63+TOU_CTabulation[[#This Row],[AC System Output (kW)]],TOU_CTabulation[[#This Row],[AC System Output (kW)]]) -> 21.593806 | L64: =VLOOKUP(TOU_CTabulation[[#This Row],[Season]],Baseline,2)*TOU_CTabulation[[#This Row],[Days in month]] -> 325.5 | M64: =IF(TOU_CTabulation[[#This Row],[Month Cumm]]<=TOU_CTabulation[[#This Row],[Month Base Allow]],VLOOKUP(TOU_CTabulation[[#This Row],[Season+ Daypart]],TOUC,2),VLOOKUP(TOU_CTabulation[[#This Row],[Season+ Daypart]],TOUC,2)+0.07584) -> 0.22788 | N64: =TOU_CTabulation[[#This Row],[AC System Output (kW)]]*TOU_CTabulation[[#This Row],[Rate]] -> 0.5735288398
A65: 1 | B65: 2 | C65: 12 | D65: =DAY(EOMONTH(DATE(2021,TOU_CTabulation[[#This Row],[Month]],TOU_CTabulation[[#This Row],[Day]]),0)) -> 31 | E65: =VLOOKUP(TOU_CTabulation[[#This Row],[Month]],SeasonTable,2) -> Winter | F65: 2621.506 | G65: =VLOOKUP(TOU_CTabulation[[#This Row],[Hour]],daypart,2) -> Off | H65: =CONCATENATE(TOU_CTabulation[[#This Row],[Season]],TOU_CTabulation[[#This Row],[Day-Part]]) -> WinterOff | I65: 2522.011 | J65: =TOU_CTabulation[[#This Row],[AC System Output (W)]]/1000 -> 2.522011 | K65: =IF(TOU_CTabulation[[#This Row],[Month]]=A63,K64+TOU_CTabulation[[#This Row],[AC System Output (kW)]],TOU_CTabulation[[#This Row],[AC System Output (kW)]]) -> 24.115817 | L65: =VLOOKUP(TOU_CTabulation[[#This Row],[Season]],Baseline,2)*TOU_CTabulation[[#This Row],[Days in month]] -> 325.5 | M65: =IF(TOU_CTabulation[[#This Row],[Month Cumm]]<=TOU_CTabulation[[#This Row],[Month Base Allow]],VLOOKUP(TOU_CTabulation[[#This Row],[Season+ Daypart]],TOUC,2),VLOOKUP(TOU_CTabulation[[#This Row],[Season+ Daypart]],TOUC,2)+0.07584) -> 0.22788 | N65: =TOU_CTabulation[[#This Row],[AC System Output (kW)]]*TOU_CTabulation[[#This Row],[Rate]] -> 0.5747158667
A66: 1 | B66: 2 | C66: 13 | D66: =DAY(EOMONTH(DATE(2021,TOU_CTabulation[[#This Row],[Month]],TOU_CTabulation[[#This Row],[Day]]),0)) -> 31 | E66: =VLOOKUP(TOU_CTabulation[[#This Row],[Month]],SeasonTable,2) -> Winter | F66: 2356.57 | G66: =VLOOKUP(TOU_CTabulation[[#This Row],[Hour]],daypart,2) -> Off | H66: =CONCATENATE(TOU_CTabulation[[#This Row],[Season]],TOU_CTabulation[[#This Row],[Day-Part]]) -> WinterOff | I66: 2267.97 | J66: =TOU_CTabulation[[#This Row],[AC System Output (W)]]/1000 -> 2.26797 | K66: =IF(TOU_CTabulation[[#This Row],[Month]]=A64,K65+TOU_CTabulation[[#This Row],[AC System Output (kW)]],TOU_CTabulation[[#This Row],[AC System Output (kW)]]) -> 26.383787 | L66: =VLOOKUP(TOU_CTabulation[[#This Row],[Season]],Baseline,2)*TOU_CTabulation[[#This Row],[Days in month]] -> 325.5 | M66: =IF(TOU_CTabulation[[#This Row],[Month Cumm]]<=TOU_CTabulation[[#This Row],[Month Base Allow]],VLOOKUP(TOU_CTabulation[[#This Row],[Season+ Daypart]],TOUC,2),VLOOKUP(TOU_CTabulation[[#This Row],[Season+ Daypart]],TOUC,2)+0.07584) -> 0.22788 | N66: =TOU_CTabulation[[#This Row],[AC System Output (kW)]]*TOU_CTabulation[[#This Row],[Rate]] -> 0.5168250036
A67: 1 | B67: 2 | C67: 14 | D67: =DAY(EOMONTH(DATE(2021,TOU_CTabulation[[#This Row],[Month]],TOU_CTabulation[[#This Row],[Day]]),0)) -> 31 | E67: =VLOOKUP(TOU_CTabulation[[#This Row],[Month]],SeasonTable,2) -> Winter | F67: 1877.266 | G67: =VLOOKUP(TOU_CTabulation[[#This Row],[Hour]],daypart,2) -> Off | H67: =CONCATENATE(TOU_CTabulation[[#This Row],[Season]],TOU_CTabulation[[#This Row],[Day-Part]]) -> WinterOff | I67: 1806.717 | J67: =TOU_CTabulation[[#This Row],[AC System Output (W)]]/1000 -> 1.806717 | K67: =IF(TOU_CTabulation[[#This Row],[Month]]=A65,K66+TOU_CTabulation[[#This Row],[AC System Output (kW)]],TOU_CTabulation[[#This Row],[AC System Output (kW)]]) -> 28.190504 | L67: =VLOOKUP(TOU_CTabulation[[#This Row],[Season]],Baseline,2)*TOU_CTabulation[[#This Row],[Days in month]] -> 325.5 | M67: =IF(TOU_CTabulation[[#This Row],[Month Cumm]]<=TOU_CTabulation[[#This Row],[Month Base Allow]],VLOOKUP(TOU_CTabulation[[#This Row],[Season+ Daypart]],TOUC,2),VLOOKUP(TOU_CTabulation[[#This Row],[Season+ Daypart]],TOUC,2)+0.07584) -> 0.22788 | N67: =TOU_CTabulation[[#This Row],[AC System Output (kW)]]*TOU_CTabulation[[#This Row],[Rate]] -> 0.41171467
A68: 1 | B68: 2 | C68: 15 | D68: =DAY(EOMONTH(DATE(2021,TOU_CTabulation[[#This Row],[Month]],TOU_CTabulation[[#This Row],[Day]]),0)) -> 31 | E68: =VLOOKUP(TOU_CTabulation[[#This Row],[Month]],SeasonTable,2) -> Winter | F68: 1005.426 | G68: =VLOOKUP(TOU_CTabulation[[#This Row],[Hour]],daypart,2) -> Off | H68: =CONCATENATE(TOU_CTabulation[[#This Row],[Season]],TOU_CTabulation[[#This Row],[Day-Part]]) -> WinterOff | I68: 962.237 | J68: =TOU_CTabulation[[#This Row],[AC System Output (W)]]/1000 -> 0.962237 | K68: =IF(TOU_CTabulation[[#This Row],[Month]]=A66,K67+TOU_CTabulation[[#This Row],[AC System Output (kW)]],TOU_CTabulation[[#This Row],[AC System Output (kW)]]) -> 29.152741 | L68: =VLOOKUP(TOU_CTabulation[[#This Row],[Season]],Baseline,2)*TOU_CTabulation[[#This Row],[Days in month]] -> 325.5 | M68: =IF(TOU_CTabulation[[#This Row],[Month Cumm]]<=TOU_CTabulation[[#This Row],[Month Base Allow]],VLOOKUP(TOU_CTabulation[[#This Row],[Season+ Daypart]],TOUC,2),VLOOKUP(TOU_CTabulation[[#This Row],[Season+ Daypart]],TOUC,2)+0.07584) -> 0.22788 | N68: =TOU_CTabulation[[#This Row],[AC System Output (kW)]]*TOU_CTabulation[[#This Row],[Rate]] -> 0.2192745676
A69: 1 | B69: 2 | C69: 16 | D69: =DAY(EOMONTH(DATE(2021,TOU_CTabulation[[#This Row],[Month]],TOU_CTabulation[[#This Row],[Day]]),0)) -> 31 | E69: =VLOOKUP(TOU_CTabulation[[#This Row],[Month]],SeasonTable,2) -> Winter | F69: 343 | G69: =VLOOKUP(TOU_CTabulation[[#This Row],[Hour]],daypart,2) -> Peak | H69: =CONCATENATE(TOU_CTabulation[[#This Row],[Season]],TOU_CTabulation[[#This Row],[Day-Part]]) -> WinterPeak | I69: 315.877 | J69: =TOU_CTabulation[[#This Row],[AC System Output (W)]]/1000 -> 0.315877 | K69: =IF(TOU_CTabulation[[#This Row],[Month]]=A67,K68+TOU_CTabulation[[#This Row],[AC System Output (kW)]],TOU_CTabulation[[#This Row],[AC System Output (kW)]]) -> 29.468618 | L69: =VLOOKUP(TOU_CTabulation[[#This Row],[Season]],Baseline,2)*TOU_CTabulation[[#This Row],[Days in month]] -> 325.5 | M69: =IF(TOU_CTabulation[[#This Row],[Month Cumm]]<=TOU_CTabulation[[#This Row],[Month Base Allow]],VLOOKUP(TOU_CTabulation[[#This Row],[Season+ Daypart]],TOUC,2),VLOOKUP(TOU_CTabulation[[#This Row],[Season+ Daypart]],TOUC,2)+0.07584) -> 0.2452 | N69: =TOU_CTabulation[[#This Row],[AC System Output (kW)]]*TOU_CTabulation[[#This Row],[Rate]] -> 0.0774530404
A70: 1 | B70: 2 | C70: 17 | D70: =DAY(EOMONTH(DATE(2021,TOU_CTabulation[[#This Row],[Month]],TOU_CTabulation[[#This Row],[Day]]),0)) -> 31 | E70: =VLOOKUP(TOU_CTabulation[[#This Row],[Month]],SeasonTable,2) -> Winter | F70: 0 | G70: =VLOOKUP(TOU_CTabulation[[#This Row],[Hour]],daypart,2) -> Peak | H70: =CONCATENATE(TOU_CTabulation[[#This Row],[Season]],TOU_CTabulation[[#This Row],[Day-Part]]) -> WinterPeak | I70: 0 | J70: =TOU_CTabulation[[#This Row],[AC System Output (W)]]/1000 -> 0 | K70: =IF(TOU_CTabulation[[#This Row],[Month]]=A68,K69+TOU_CTabulation[[#This Row],[AC System Output (kW)]],TOU_CTabulation[[#This Row],[AC System Output (kW)]]) -> 29.468618 | L70: =VLOOKUP(TOU_CTabulation[[#This Row],[Season]],Baseline,2)*TOU_CTabulation[[#This Row],[Days in month]] -> 325.5 | M70: =IF(TOU_CTabulation[[#This Row],[Month Cumm]]<=TOU_CTabulation[[#This Row],[Month Base Allow]],VLOOKUP(TOU_CTabulation[[#This Row],[Season+ Daypart]],TOUC,2),VLOOKUP(TOU_CTabulation[[#This Row],[Season+ Daypart]],TOUC,2)+0.07584) -> 0.2452 | N70: =TOU_CTabulation[[#This Row],[AC System Output (kW)]]*TOU_CTabulation[[#This Row],[Rate]] -> 0
A71: 1 | B71: 2 | C71: 18 | D71: =DAY(EOMONTH(DATE(2021,TOU_CTabulation[[#This Row],[Month]],TOU_CTabulation[[#This Row],[Day]]),0)) -> 31 | E71: =VLOOKUP(TOU_CTabulation[[#This Row],[Month]],SeasonTable,2) -> Winter | F71: 0 | G71: =VLOOKUP(TOU_CTabulation[[#This Row],[Hour]],daypart,2) -> Peak | H71: =CONCATENATE(TOU_CTabulation[[#This Row],[Season]],TOU_CTabulation[[#This Row],[Day-Part]]) -> WinterPeak | I71: 0 | J71: =TOU_CTabulation[[#This Row],[AC System Output (W)]]/1000 -> 0 | K71: =IF(TOU_CTabulation[[#This Row],[Month]]=A69,K70+TOU_CTabulation[[#This Row],[AC System Output (kW)]],TOU_CTabulation[[#This Row],[AC System Output (kW)]]) -> 29.468618 | L71: =VLOOKUP(TOU_CTabulation[[#This Row],[Season]],Baseline,2)*TOU_CTabulation[[#This Row],[Days in month]] -> 325.5 | M71: =IF(TOU_CTabulation[[#This Row],[Month Cumm]]<=TOU_CTabulation[[#This Row],[Month Base Allow]],VLOOKUP(TOU_CTabulation[[#This Row],[Season+ Daypart]],TOUC,2),VLOOKUP(TOU_CTabulation[[#This Row],[Season+ Daypart]],TOUC,2)+0.07584) -> 0.2452 | N71: =TOU_CTabulation[[#This Row],[AC System Output (kW)]]*TOU_CTabulation[[#This Row],[Rate]] -> 0
A72: 1 | B72: 2 | C72: 19 | D72: =DAY(EOMONTH(DATE(2021,TOU_CTabulation[[#This Row],[Month]],TOU_CTabulation[[#This Row],[Day]]),0)) -> 31 | E72: =VLOOKUP(TOU_CTabulation[[#This Row],[Month]],SeasonTable,2) -> Winter | F72: 0 | G72: =VLOOKUP(TOU_CTabulation[[#This Row],[Hour]],daypart,2) -> Peak | H72: =CONCATENATE(TOU_CTabulation[[#This Row],[Season]],TOU_CTabulation[[#This Row],[Day-Part]]) -> WinterPeak | I72: 0 | J72: =TOU_CTabulation[[#This Row],[AC System Output (W)]]/1000 -> 0 | K72: =IF(TOU_CTabulation[[#This Row],[Month]]=A70,K71+TOU_CTabulation[[#This Row],[AC System Output (kW)]],TOU_CTabulation[[#This Row],[AC System Output (kW)]]) -> 29.468618 | L72: =VLOOKUP(TOU_CTabulation[[#This Row],[Season]],Baseline,2)*TOU_CTabulation[[#This Row],[Days in month]] -> 325.5 | M72: =IF(TOU_CTabulation[[#This Row],[Month Cumm]]<=TOU_CTabulation[[#This Row],[Month Base Allow]],VLOOKUP(TOU_CTabulation[[#This Row],[Season+ Daypart]],TOUC,2),VLOOKUP(TOU_CTabulation[[#This Row],[Season+ Daypart]],TOUC,2)+0.07584) -> 0.2452 | N72: =TOU_CTabulation[[#This Row],[AC System Output (kW)]]*TOU_CTabulation[[#This Row],[Rate]] -> 0
A73: 1 | B73: 2 | C73: 20 | D73: =DAY(EOMONTH(DATE(2021,TOU_CTabulation[[#This Row],[Month]],TOU_CTabulation[[#This Row],[Day]]),0)) -> 31 | E73: =VLOOKUP(TOU_CTabulation[[#This Row],[Month]],SeasonTable,2) -> Winter | F73: 0 | G73: =VLOOKUP(TOU_CTabulation[[#This Row],[Hour]],daypart,2) -> Peak | H73: =CONCATENATE(TOU_CTabulation[[#This Row],[Season]],TOU_CTabulation[[#This Row],[Day-Part]]) -> WinterPeak | I73: 0 | J73: =TOU_CTabulation[[#This Row],[AC System Output (W)]]/1000 -> 0 | K73: =IF(TOU_CTabulation[[#This Row],[Month]]=A71,K72+TOU_CTabulation[[#This Row],[AC System Output (kW)]],TOU_CTabulation[[#This Row],[AC System Output (kW)]]) -> 29.468618 | L73: =VLOOKUP(TOU_CTabulation[[#This Row],[Season]],Baseline,2)*TOU_CTabulation[[#This Row],[Days in month]] -> 325.5 | M73: =IF(TOU_CTabulation[[#This Row],[Month Cumm]]<=TOU_CTabulation[[#This Row],[Month Base Allow]],VLOOKUP(TOU_CTabulation[[#This Row],[Season+ Daypart]],TOUC,2),VLOOKUP(TOU_CTabulation[[#This Row],[Season+ Daypart]],TOUC,2)+0.07584) -> 0.2452 | N73: =TOU_CTabulation[[#This Row],[AC System Output (kW)]]*TOU_CTabulation[[#This Row],[Rate]] -> 0
A74: 1 | B74: 2 | C74: 21 | D74: =DAY(EOMONTH(DATE(2021,TOU_CTabulation[[#This Row],[Month]],TOU_CTabulation[[#This Row],[Day]]),0)) -> 31 | E74: =VLOOKUP(TOU_CTabulation[[#This Row],[Month]],SeasonTable,2) -> Winter | F74: 0 | G74: =VLOOKUP(TOU_CTabulation[[#This Row],[Hour]],daypart,2) -> Off | H74: =CONCATENATE(TOU_CTabulation[[#This Row],[Season]],TOU_CTabulation[[#This Row],[Day-Part]]) -> WinterOff | I74: 0 | J74: =TOU_CTabulation[[#This Row],[AC System Output (W)]]/1000 -> 0 | K74: =IF(TOU_CTabulation[[#This Row],[Month]]=A72,K73+TOU_CTabulation[[#This Row],[AC System Output (kW)]],TOU_CTabulation[[#This Row],[AC System Output (kW)]]) -> 29.468618 | L74: =VLOOKUP(TOU_CTabulation[[#This Row],[Season]],Baseline,2)*TOU_CTabulation[[#This Row],[Days in month]] -> 325.5 | M74: =IF(TOU_CTabulation[[#This Row],[Month Cumm]]<=TOU_CTabulation[[#This Row],[Month Base Allow]],VLOOKUP(TOU_CTabulation[[#This Row],[Season+ Daypart]],TOUC,2),VLOOKUP(TOU_CTabulation[[#This Row],[Season+ Daypart]],TOUC,2)+0.07584) -> 0.22788 | N74: =TOU_CTabulation[[#This Row],[AC System Output (kW)]]*TOU_CTabulation[[#This Row],[Rate]] -> 0
A75: 1 | B75: 2 | C75: 22 | D75: =DAY(EOMONTH(DATE(2021,TOU_CTabulation[[#This Row],[Month]],TOU_CTabulation[[#This Row],[Day]]),0)) -> 31 | E75: =VLOOKUP(TOU_CTabulation[[#This Row],[Month]],SeasonTable,2) -> Winter | F75: 0 | G75: =VLOOKUP(TOU_CTabulation[[#This Row],[Hour]],daypart,2) -> Off | H75: =CONCATENATE(TOU_CTabulation[[#This Row],[Season]],TOU_CTabulation[[#This Row],[Day-Part]]) -> WinterOff | I75: 0 | J75: =TOU_CTabulation[[#This Row],[AC System Output (W)]]/1000 -> 0 | K75: =IF(TOU_CTabulation[[#This Row],[Month]]=A73,K74+TOU_CTabulation[[#This Row],[AC System Output (kW)]],TOU_CTabulation[[#This Row],[AC System Output (kW)]]) -> 29.468618 | L75: =VLOOKUP(TOU_CTabulation[[#This Row],[Season]],Baseline,2)*TOU_CTabulation[[#This Row],[Days in month]] -> 325.5 | M75: =IF(TOU_CTabulation[[#This Row],[Month Cumm]]<=TOU_CTabulation[[#This Row],[Month Base Allow]],VLOOKUP(TOU_CTabulation[[#This Row],[Season+ Daypart]],TOUC,2),VLOOKUP(TOU_CTabulation[[#This Row],[Season+ Daypart]],TOUC,2)+0.07584) -> 0.22788 | N75: =TOU_CTabulation[[#This Row],[AC System Output (kW)]]*TOU_CTabulation[[#This Row],[Rate]] -> 0
A76: 1 | B76: 2 | C76: 23 | D76: =DAY(EOMONTH(DATE(2021,TOU_CTabulation[[#This Row],[Month]],TOU_CTabulation[[#This Row],[Day]]),0)) -> 31 | E76: =VLOOKUP(TOU_CTabulation[[#This Row],[Month]],SeasonTable,2) -> Winter | F76: 0 | G76: =VLOOKUP(TOU_CTabulation[[#This Row],[Hour]],daypart,2) -> Off | H76: =CONCATENATE(TOU_CTabulation[[#This Row],[Season]],TOU_CTabulation[[#This Row],[Day-Part]]) -> WinterOff | I76: 0 | J76: =TOU_CTabulation[[#This Row],[AC System Output (W)]]/1000 -> 0 | K76: =IF(TOU_CTabulation[[#This Row],[Month]]=A74,K75+TOU_CTabulation[[#This Row],[AC System Output (kW)]],TOU_CTabulation[[#This Row],[AC System Output (kW)]]) -> 29.468618 | L76: =VLOOKUP(TOU_CTabulation[[#This Row],[Season]],Baseline,2)*TOU_CTabulation[[#This Row],[Days in month]] -> 325.5 | M76: =IF(TOU_CTabulation[[#This Row],[Month Cumm]]<=TOU_CTabulation[[#This Row],[Month Base Allow]],VLOOKUP(TOU_CTabulation[[#This Row],[Season+ Daypart]],TOUC,2),VLOOKUP(TOU_CTabulation[[#This Row],[Season+ Daypart]],TOUC,2)+0.07584) -> 0.22788 | N76: =TOU_CTabulation[[#This Row],[AC System Output (kW)]]*TOU_CTabulation[[#This Row],[Rate]] -> 0
A77: 1 | B77: 3 | C77: 0 | D77: =DAY(EOMONTH(DATE(2021,TOU_CTabulation[[#This Row],[Month]],TOU_CTabulation[[#This Row],[Day]]),0)) -> 31 | E77: =VLOOKUP(TOU_CTabulation[[#This Row],[Month]],SeasonTable,2) -> Winter | F77: 0 | G77: =VLOOKUP(TOU_CTabulation[[#This Row],[Hour]],daypart,2) -> Off | H77: =CONCATENATE(TOU_CTabulation[[#This Row],[Season]],TOU_CTabulation[[#This Row],[Day-Part]]) -> WinterOff | I77: 0 | J77: =TOU_CTabulation[[#This Row],[AC System Output (W)]]/1000 -> 0 | K77: =IF(TOU_CTabulation[[#This Row],[Month]]=A75,K76+TOU_CTabulation[[#This Row],[AC System Output (kW)]],TOU_CTabulation[[#This Row],[AC System Output (kW)]]) -> 29.468618 | L77: =VLOOKUP(TOU_CTabulation[[#This Row],[Season]],Baseline,2)*TOU_CTabulation[[#This Row],[Days in month]] -> 325.5 | M77: =IF(TOU_CTabulation[[#This Row],[Month Cumm]]<=TOU_CTabulation[[#This Row],[Month Base Allow]],VLOOKUP(TOU_CTabulation[[#This Row],[Season+ Daypart]],TOUC,2),VLOOKUP(TOU_CTabulation[[#This Row],[Season+ Daypart]],TOUC,2)+0.07584) -> 0.22788 | N77: =TOU_CTabulation[[#This Row],[AC System Output (kW)]]*TOU_CTabulation[[#This Row],[Rate]] -> 0
A78: 1 | B78: 3 | C78: 1 | D78: =DAY(EOMONTH(DATE(2021,TOU_CTabulation[[#This Row],[Month]],TOU_CTabulation[[#This Row],[Day]]),0)) -> 31 | E78: =VLOOKUP(TOU_CTabulation[[#This Row],[Month]],SeasonTable,2) -> Winter | F78: 0 | G78: =VLOOKUP(TOU_CTabulation[[#This Row],[Hour]],daypart,2) -> Off | H78: =CONCATENATE(TOU_CTabulation[[#This Row],[Season]],TOU_CTabulation[[#This Row],[Day-Part]]) -> WinterOff | I78: 0 | J78: =TOU_CTabulation[[#This Row],[AC System Output (W)]]/1000 -> 0 | K78: =IF(TOU_CTabulation[[#This Row],[Month]]=A76,K77+TOU_CTabulation[[#This Row],[AC System Output (kW)]],TOU_CTabulation[[#This Row],[AC System Output (kW)]]) -> 29.468618 | L78: =VLOOKUP(TOU_CTabulation[[#This Row],[Season]],Baseline,2)*TOU_CTabulation[[#This Row],[Days in month]] -> 325.5 | M78: =IF(TOU_CTabulation[[#This Row],[Month Cumm]]<=TOU_CTabulation[[#This Row],[Month Base Allow]],VLOOKUP(TOU_CTabulation[[#This Row],[Season+ Daypart]],TOUC,2),VLOOKUP(TOU_CTabulation[[#This Row],[Season+ Daypart]],TOUC,2)+0.07584) -> 0.22788 | N78: =TOU_CTabulation[[#This Row],[AC System Output (kW)]]*TOU_CTabulation[[#This Row],[Rate]] -> 0
A79: 1 | B79: 3 | C79: 2 | D79: =DAY(EOMONTH(DATE(2021,TOU_CTabulation[[#This Row],[Month]],TOU_CTabulation[[#This Row],[Day]]),0)) -> 31 | E79: =VLOOKUP(TOU_CTabulation[[#This Row],[Month]],SeasonTable,2) -> Winter | F79: 0 | G79: =VLOOKUP(TOU_CTabulation[[#This Row],[Hour]],daypart,2) -> Off | H79: =CONCATENATE(TOU_CTabulation[[#This Row],[Season]],TOU_CTabulation[[#This Row],[Day-Part]]) -> WinterOff | I79: 0 | J79: =TOU_CTabulation[[#This Row],[AC System Output (W)]]/1000 -> 0 | K79: =IF(TOU_CTabulation[[#This Row],[Month]]=A77,K78+TOU_CTabulation[[#This Row],[AC System Output (kW)]],TOU_CTabulation[[#This Row],[AC System Output (kW)]]) -> 29.468618 | L79: =VLOOKUP(TOU_CTabulation[[#This Row],[Season]],Baseline,2)*TOU_CTabulation[[#This Row],[Days in month]] -> 325.5 | M79: =IF(TOU_CTabulation[[#This Row],[Month Cumm]]<=TOU_CTabulation[[#This Row],[Month Base Allow]],VLOOKUP(TOU_CTabulation[[#This Row],[Season+ Daypart]],TOUC,2),VLOOKUP(TOU_CTabulation[[#This Row],[Season+ Daypart]],TOUC,2)+0.07584) -> 0.22788 | N79: =TOU_CTabulation[[#This Row],[AC System Output (kW)]]*TOU_CTabulation[[#This Row],[Rate]] -> 0
A80: 1 | B80: 3 | C80: 3 | D80: =DAY(EOMONTH(DATE(2021,TOU_CTabulation[[#This Row],[Month]],TOU_CTabulation[[#This Row],[Day]]),0)) -> 31 | E80: =VLOOKUP(TOU_CTabulation[[#This Row],[Month]],SeasonTable,2) -> Winter | F80: 0 | G80: =VLOOKUP(TOU_CTabulation[[#This Row],[Hour]],daypart,2) -> Off | H80: =CONCATENATE(TOU_CTabulation[[#This Row],[Season]],TOU_CTabulation[[#This Row],[Day-Part]]) -> WinterOff | I80: 0 | J80: =TOU_CTabulation[[#This Row],[AC System Output (W)]]/1000 -> 0 | K80: =IF(TOU_CTabulation[[#This Row],[Month]]=A78,K79+TOU_CTabulation[[#This Row],[AC System Output (kW)]],TOU_CTabulation[[#This Row],[AC System Output (kW)]]) -> 29.468618 | L80: =VLOOKUP(TOU_CTabulation[[#This Row],[Season]],Baseline,2)*TOU_CTabulation[[#This Row],[Days in month]] -> 325.5 | M80: =IF(TOU_CTabulation[[#This Row],[Month Cumm]]<=TOU_CTabulation[[#This Row],[Month Base Allow]],VLOOKUP(TOU_CTabulation[[#This Row],[Season+ Daypart]],TOUC,2),VLOOKUP(TOU_CTabulation[[#This Row],[Season+ Daypart]],TOUC,2)+0.07584) -> 0.22788 | N80: =TOU_CTabulation[[#This Row],[AC System Output (kW)]]*TOU_CTabulation[[#This Row],[Rate]] -> 0
A81: 1 | B81: 3 | C81: 4 | D81: =DAY(EOMONTH(DATE(2021,TOU_CTabulation[[#This Row],[Month]],TOU_CTabulation[[#This Row],[Day]]),0)) -> 31 | E81: =VLOOKUP(TOU_CTabulation[[#This Row],[Month]],SeasonTable,2) -> Winter | F81: 0 | G81: =VLOOKUP(TOU_CTabulation[[#This Row],[Hour]],daypart,2) -> Off | H81: =CONCATENATE(TOU_CTabulation[[#This Row],[Season]],TOU_CTabulation[[#This Row],[Day-Part]]) -> WinterOff | I81: 0 | J81: =TOU_CTabulation[[#This Row],[AC System Output (W)]]/1000 -> 0 | K81: =IF(TOU_CTabulation[[#This Row],[Month]]=A79,K80+TOU_CTabulation[[#This Row],[AC System Output (kW)]],TOU_CTabulation[[#This Row],[AC System Output (kW)]]) -> 29.468618 | L81: =VLOOKUP(TOU_CTabulation[[#This Row],[Season]],Baseline,2)*TOU_CTabulation[[#This Row],[Days in month]] -> 325.5 | M81: =IF(TOU_CTabulation[[#This Row],[Month Cumm]]<=TOU_CTabulation[[#This Row],[Month Base Allow]],VLOOKUP(TOU_CTabulation[[#This Row],[Season+ Daypart]],TOUC,2),VLOOKUP(TOU_CTabulation[[#This Row],[Season+ Daypart]],TOUC,2)+0.07584) -> 0.22788 | N81: =TOU_CTabulation[[#This Row],[AC System Output (kW)]]*TOU_CTabulation[[#This Row],[Rate]] -> 0
A82: 1 | B82: 3 | C82: 5 | D82: =DAY(EOMONTH(DATE(2021,TOU_CTabulation[[#This Row],[Month]],TOU_CTabulation[[#This Row],[Day]]),0)) -> 31 | E82: =VLOOKUP(TOU_CTabulation[[#This Row],[Month]],SeasonTable,2) -> Winter | F82: 0 | G82: =VLOOKUP(TOU_CTabulation[[#This Row],[Hour]],daypart,2) -> Off | H82: =CONCATENATE(TOU_CTabulation[[#This Row],[Season]],TOU_CTabulation[[#This Row],[Day-Part]]) -> WinterOff | I82: 0 | J82: =TOU_CTabulation[[#This Row],[AC System Output (W)]]/1000 -> 0 | K82: =IF(TOU_CTabulation[[#This Row],[Month]]=A80,K81+TOU_CTabulation[[#This Row],[AC System Output (kW)]],TOU_CTabulation[[#This Row],[AC System Output (kW)]]) -> 29.468618 | L82: =VLOOKUP(TOU_CTabulation[[#This Row],[Season]],Baseline,2)*TOU_CTabulation[[#This Row],[Days in month]] -> 325.5 | M82: =IF(TOU_CTabulation[[#This Row],[Month Cumm]]<=TOU_CTabulation[[#This Row],[Month Base Allow]],VLOOKUP(TOU_CTabulation[[#This Row],[Season+ Daypart]],TOUC,2),VLOOKUP(TOU_CTabulation[[#This Row],[Season+ Daypart]],TOUC,2)+0.07584) -> 0.22788 | N82: =TOU_CTabulation[[#This Row],[AC System Output (kW)]]*TOU_CTabulation[[#This Row],[Rate]] -> 0
A83: 1 | B83: 3 | C83: 6 | D83: =DAY(EOMONTH(DATE(2021,TOU_CTabulation[[#This Row],[Month]],TOU_CTabulation[[#This Row],[Day]]),0)) -> 31 | E83: =VLOOKUP(TOU_CTabulation[[#This Row],[Month]],SeasonTable,2) -> Winter | F83: 0 | G83: =VLOOKUP(TOU_CTabulation[[#This Row],[Hour]],daypart,2) -> Off | H83: =CONCATENATE(TOU_CTabulation[[#This Row],[Season]],TOU_CTabulation[[#This Row],[Day-Part]]) -> WinterOff | I83: 0 | J83: =TOU_CTabulation[[#This Row],[AC System Output (W)]]/1000 -> 0 | K83: =IF(TOU_CTabulation[[#This Row],[Month]]=A81,K82+TOU_CTabulation[[#This Row],[AC System Output (kW)]],TOU_CTabulation[[#This Row],[AC System Output (kW)]]) -> 29.468618 | L83: =VLOOKUP(TOU_CTabulation[[#This Row],[Season]],Baseline,2)*TOU_CTabulation[[#This Row],[Days in month]] -> 325.5 | M83: =IF(TOU_CTabulation[[#This Row],[Month Cumm]]<=TOU_CTabulation[[#This Row],[Month Base Allow]],VLOOKUP(TOU_CTabulation[[#This Row],[Season+ Daypart]],TOUC,2),VLOOKUP(TOU_CTabulation[[#This Row],[Season+ Daypart]],TOUC,2)+0.07584) -> 0.22788 | N83: =TOU_CTabulation[[#This Row],[AC System Output (kW)]]*TOU_CTabulation[[#This Row],[Rate]] -> 0
A84: 1 | B84: 3 | C84: 7 | D84: =DAY(EOMONTH(DATE(2021,TOU_CTabulation[[#This Row],[Month]],TOU_CTabulation[[#This Row],[Day]]),0)) -> 31 | E84: =VLOOKUP(TOU_CTabulation[[#This Row],[Month]],SeasonTable,2) -> Winter | F84: 60.111 | G84: =VLOOKUP(TOU_CTabulation[[#This Row],[Hour]],daypart,2) -> Off | H84: =CONCATENATE(TOU_CTabulation[[#This Row],[Season]],TOU_CTabulation[[#This Row],[Day-Part]]) -> WinterOff | I84: 38.606 | J84: =TOU_CTabulation[[#This Row],[AC System Output (W)]]/1000 -> 0.038606 | K84: =IF(TOU_CTabulation[[#This Row],[Month]]=A82,K83+TOU_CTabulation[[#This Row],[AC System Output (kW)]],TOU_CTabulation[[#This Row],[AC System Output (kW)]]) -> 29.507224 | L84: =VLOOKUP(TOU_CTabulation[[#This Row],[Season]],Baseline,2)*TOU_CTabulation[[#This Row],[Days in month]] -> 325.5 | M84: =IF(TOU_CTabulation[[#This Row],[Month Cumm]]<=TOU_CTabulation[[#This Row],[Month Base Allow]],VLOOKUP(TOU_CTabulation[[#This Row],[Season+ Daypart]],TOUC,2),VLOOKUP(TOU_CTabulation[[#This Row],[Season+ Daypart]],TOUC,2)+0.07584) -> 0.22788 | N84: =TOU_CTabulation[[#This Row],[AC System Output (kW)]]*TOU_CTabulation[[#This Row],[Rate]] -> 0.00879753528
A85: 1 | B85: 3 | C85: 8 | D85: =DAY(EOMONTH(DATE(2021,TOU_CTabulation[[#This Row],[Month]],TOU_CTabulation[[#This Row],[Day]]),0)) -> 31 | E85: =VLOOKUP(TOU_CTabulation[[#This Row],[Month]],SeasonTable,2) -> Winter | F85: 580.76 | G85: =VLOOKUP(TOU_CTabulation[[#This Row],[Hour]],daypart,2) -> Off | H85: =CONCATENATE(TOU_CTabulation[[#This Row],[Season]],TOU_CTabulation[[#This Row],[Day-Part]]) -> WinterOff | I85: 548.34 | J85: =TOU_CTabulation[[#This Row],[AC System Output (W)]]/1000 -> 0.54834 | K85: =IF(TOU_CTabulation[[#This Row],[Month]]=A83,K84+TOU_CTabulation[[#This Row],[AC System Output (kW)]],TOU_CTabulation[[#This Row],[AC System Output (kW)]]) -> 30.055564 | L85: =VLOOKUP(TOU_CTabulation[[#This Row],[Season]],Baseline,2)*TOU_CTabulation[[#This Row],[Days in month]] -> 325.5 | M85: =IF(TOU_CTabulation[[#This Row],[Month Cumm]]<=TOU_CTabulation[[#This Row],[Month Base Allow]],VLOOKUP(TOU_CTabulation[[#This Row],[Season+ Daypart]],TOUC,2),VLOOKUP(TOU_CTabulation[[#This Row],[Season+ Daypart]],TOUC,2)+0.07584) -> 0.22788 | N85: =TOU_CTabulation[[#This Row],[AC System Output (kW)]]*TOU_CTabulation[[#This Row],[Rate]] -> 0.1249557192
A86: 1 | B86: 3 | C86: 9 | D86: =DAY(EOMONTH(DATE(2021,TOU_CTabulation[[#This Row],[Month]],TOU_CTabulation[[#This Row],[Day]]),0)) -> 31 | E86: =VLOOKUP(TOU_CTabulation[[#This Row],[Month]],SeasonTable,2) -> Winter | F86: 1183.184 | G86: =VLOOKUP(TOU_CTabulation[[#This Row],[Hour]],daypart,2) -> Off | H86: =CONCATENATE(TOU_CTabulation[[#This Row],[Season]],TOU_CTabulation[[#This Row],[Day-Part]]) -> WinterOff | I86: 1134.991 | J86: =TOU_CTabulation[[#This Row],[AC System Output (W)]]/1000 -> 1.134991 | K86: =IF(TOU_CTabulation[[#This Row],[Month]]=A84,K85+TOU_CTabulation[[#This Row],[AC System Output (kW)]],TOU_CTabulation[[#This Row],[AC System Output (kW)]]) -> 31.190555 | L86: =VLOOKUP(TOU_CTabulation[[#This Row],[Season]],Baseline,2)*TOU_CTabulation[[#This Row],[Days in month]] -> 325.5 | M86: =IF(TOU_CTabulation[[#This Row],[Month Cumm]]<=TOU_CTabulation[[#This Row],[Month Base Allow]],VLOOKUP(TOU_CTabulation[[#This Row],[Season+ Daypart]],TOUC,2),VLOOKUP(TOU_CTabulation[[#This Row],[Season+ Daypart]],TOUC,2)+0.07584) -> 0.22788 | N86: =TOU_CTabulation[[#This Row],[AC System Output (kW)]]*TOU_CTabulation[[#This Row],[Rate]] -> 0.2586417491
A87: 1 | B87: 3 | C87: 10 | D87: =DAY(EOMONTH(DATE(2021,TOU_CTabulation[[#This Row],[Month]],TOU_CTabulation[[#This Row],[Day]]),0)) -> 31 | E87: =VLOOKUP(TOU_CTabulation[[#This Row],[Month]],SeasonTable,2) -> Winter | F87: 1805.296 | G87: =VLOOKUP(TOU_CTabulation[[#This Row],[Hour]],daypart,2) -> Off | H87: =CONCATENATE(TOU_CTabulation[[#This Row],[Season]],TOU_CTabulation[[#This Row],[Day-Part]]) -> WinterOff | I87: 1737.273 | J87: =TOU_CTabulation[[#This Row],[AC System Output (W)]]/1000 -> 1.737273 | K87: =IF(TOU_CTabulation[[#This Row],[Month]]=A85,K86+TOU_CTabulation[[#This Row],[AC System Output (kW)]],TOU_CTabulation[[#This Row],[AC System Output (kW)]]) -> 32.927828 | L87: =VLOOKUP(TOU_CTabulation[[#This Row],[Season]],Baseline,2)*TOU_CTabulation[[#This Row],[Days in month]] -> 325.5 | M87: =IF(TOU_CTabulation[[#This Row],[Month Cumm]]<=TOU_CTabulation[[#This Row],[Month Base Allow]],VLOOKUP(TOU_CTabulation[[#This Row],[Season+ Daypart]],TOUC,2),VLOOKUP(TOU_CTabulation[[#This Row],[Season+ Daypart]],TOUC,2)+0.07584) -> 0.22788 | N87: =TOU_CTabulation[[#This Row],[AC System Output (kW)]]*TOU_CTabulation[[#This Row],[Rate]] -> 0.3958897712
A88: 1 | B88: 3 | C88: 11 | D88: =DAY(EOMONTH(DATE(2021,TOU_CTabulation[[#This Row],[Month]],TOU_CTabulation[[#This Row],[Day]]),0)) -> 31 | E88: =VLOOKUP(TOU_CTabulation[[#This Row],[Month]],SeasonTable,2) -> Winter | F88: 2628.032 | G88: =VLOOKUP(TOU_CTabulation[[#This Row],[Hour]],daypart,2) -> Off | H88: =CONCATENATE(TOU_CTabulation[[#This Row],[Season]],TOU_CTabulation[[#This Row],[Day-Part]]) -> WinterOff | I88: 2528.26 | J88: =TOU_CTabulation[[#This Row],[AC System Output (W)]]/1000 -> 2.52826 | K88: =IF(TOU_CTabulation[[#This Row],[Month]]=A86,K87+TOU_CTabulation[[#This Row],[AC System Output (kW)]],TOU_CTabulation[[#This Row],[AC System Output (kW)]]) -> 35.456088 | L88: =VLOOKUP(TOU_CTabulation[[#This Row],[Season]],Baseline,2)*TOU_CTabulation[[#This Row],[Days in month]] -> 325.5 | M88: =IF(TOU_CTabulation[[#This Row],[Month Cumm]]<=TOU_CTabulation[[#This Row],[Month Base Allow]],VLOOKUP(TOU_CTabulation[[#This Row],[Season+ Daypart]],TOUC,2),VLOOKUP(TOU_CTabulation[[#This Row],[Season+ Daypart]],TOUC,2)+0.07584) -> 0.22788 | N88: =TOU_CTabulation[[#This Row],[AC System Output (kW)]]*TOU_CTabulation[[#This Row],[Rate]] -> 0.5761398888
A89: 1 | B89: 3 | C89: 12 | D89: =DAY(EOMONTH(DATE(2021,TOU_CTabulation[[#This Row],[Month]],TOU_CTabulation[[#This Row],[Day]]),0)) -> 31 | E89: =VLOOKUP(TOU_CTabulation[[#This Row],[Month]],SeasonTable,2) -> Winter | F89: 2621.079 | G89: =VLOOKUP(TOU_CTabulation[[#This Row],[Hour]],daypart,2) -> Off | H89: =CONCATENATE(TOU_CTabulation[[#This Row],[Season]],TOU_CTabulation[[#This Row],[Day-Part]]) -> WinterOff | I89: 2521.602 | J89: =TOU_CTabulation[[#This Row],[AC System Output (W)]]/1000 -> 2.521602 | K89: =IF(TOU_CTabulation[[#This Row],[Month]]=A87,K88+TOU_CTabulation[[#This Row],[AC System Output (kW)]],TOU_CTabulation[[#This Row],[AC System Output (kW)]]) -> 37.97769 | L89: =VLOOKUP(TOU_CTabulation[[#This Row],[Season]],Baseline,2)*TOU_CTabulation[[#This Row],[Days in month]] -> 325.5 | M89: =IF(TOU_CTabulation[[#This Row],[Month Cumm]]<=TOU_CTabulation[[#This Row],[Month Base Allow]],VLOOKUP(TOU_CTabulation[[#This Row],[Season+ Daypart]],TOUC,2),VLOOKUP(TOU_CTabulation[[#This Row],[Season+ Daypart]],TOUC,2)+0.07584) -> 0.22788 | N89: =TOU_CTabulation[[#This Row],[AC System Output (kW)]]*TOU_CTabulation[[#This Row],[Rate]] -> 0.5746226638
A90: 1 | B90: 3 | C90: 13 | D90: =DAY(EOMONTH(DATE(2021,TOU_CTabulation[[#This Row],[Month]],TOU_CTabulation[[#This Row],[Day]]),0)) -> 31 | E90: =VLOOKUP(TOU_CTabulation[[#This Row],[Month]],SeasonTable,2) -> Winter | F90: 2374.636 | G90: =VLOOKUP(TOU_CTabulation[[#This Row],[Hour]],daypart,2) -> Off | H90: =CONCATENATE(TOU_CTabulation[[#This Row],[Season]],TOU_CTabulation[[#This Row],[Day-Part]]) -> WinterOff | I90: 2285.314 | J90: =TOU_CTabulation[[#This Row],[AC System Output (W)]]/1000 -> 2.285314 | K90: =IF(TOU_CTabulation[[#This Row],[Month]]=A88,K89+TOU_CTabulation[[#This Row],[AC System Output (kW)]],TOU_CTabulation[[#This Row],[AC System Output (kW)]]) -> 40.263004 | L90: =VLOOKUP(TOU_CTabulation[[#This Row],[Season]],Baseline,2)*TOU_CTabulation[[#This Row],[Days in month]] -> 325.5 | M90: =IF(TOU_CTabulation[[#This Row],[Month Cumm]]<=TOU_CTabulation[[#This Row],[Month Base Allow]],VLOOKUP(TOU_CTabulation[[#This Row],[Season+ Daypart]],TOUC,2),VLOOKUP(TOU_CTabulation[[#This Row],[Season+ Daypart]],TOUC,2)+0.07584) -> 0.22788 | N90: =TOU_CTabulation[[#This Row],[AC System Output (kW)]]*TOU_CTabulation[[#This Row],[Rate]] -> 0.5207773543
A91: 1 | B91: 3 | C91: 14 | D91: =DAY(EOMONTH(DATE(2021,TOU_CTabulation[[#This Row],[Month]],TOU_CTabulation[[#This Row],[Day]]),0)) -> 31 | E91: =VLOOKUP(TOU_CTabulation[[#This Row],[Month]],SeasonTable,2) -> Winter | F91: 1907.601 | G91: =VLOOKUP(TOU_CTabulation[[#This Row],[Hour]],daypart,2) -> Off | H91: =CONCATENATE(TOU_CTabulation[[#This Row],[Season]],TOU_CTabulation[[#This Row],[Day-Part]]) -> WinterOff | I91: 1835.973 | J91: =TOU_CTabulation[[#This Row],[AC System Output (W)]]/1000 -> 1.835973 | K91: =IF(TOU_CTabulation[[#This Row],[Month]]=A89,K90+TOU_CTabulation[[#This Row],[AC System Output (kW)]],TOU_CTabulation[[#This Row],[AC System Output (kW)]]) -> 42.098977 | L91: =VLOOKUP(TOU_CTabulation[[#This Row],[Season]],Baseline,2)*TOU_CTabulation[[#This Row],[Days in month]] -> 325.5 | M91: =IF(TOU_CTabulation[[#This Row],[Month Cumm]]<=TOU_CTabulation[[#This Row],[Month Base Allow]],VLOOKUP(TOU_CTabulation[[#This Row],[Season+ Daypart]],TOUC,2),VLOOKUP(TOU_CTabulation[[#This Row],[Season+ Daypart]],TOUC,2)+0.07584) -> 0.22788 | N91: =TOU_CTabulation[[#This Row],[AC System Output (kW)]]*TOU_CTabulation[[#This Row],[Rate]] -> 0.4183815272
A92: 1 | B92: 3 | C92: 15 | D92: =DAY(EOMONTH(DATE(2021,TOU_CTabulation[[#This Row],[Month]],TOU_CTabulation[[#This Row],[Day]]),0)) -> 31 | E92: =VLOOKUP(TOU_CTabulation[[#This Row],[Month]],SeasonTable,2) -> Winter | F92: 1273.628 | G92: =VLOOKUP(TOU_CTabulation[[#This Row],[Hour]],daypart,2) -> Off | H92: =CONCATENATE(TOU_CTabulation[[#This Row],[Season]],TOU_CTabulation[[#This Row],[Day-Part]]) -> WinterOff | I92: 1222.776 | J92: =TOU_CTabulation[[#This Row],[AC System Output (W)]]/1000 -> 1.222776 | K92: =IF(TOU_CTabulation[[#This Row],[Month]]=A90,K91+TOU_CTabulation[[#This Row],[AC System Output (kW)]],TOU_CTabulation[[#This Row],[AC System Output (kW)]]) -> 43.321753 | L92: =VLOOKUP(TOU_CTabulation[[#This Row],[Season]],Baseline,2)*TOU_CTabulation[[#This Row],[Days in month]] -> 325.5 | M92: =IF(TOU_CTabulation[[#This Row],[Month Cumm]]<=TOU_CTabulation[[#This Row],[Month Base Allow]],VLOOKUP(TOU_CTabulation[[#This Row],[Season+ Daypart]],TOUC,2),VLOOKUP(TOU_CTabulation[[#This Row],[Season+ Daypart]],TOUC,2)+0.07584) -> 0.22788 | N92: =TOU_CTabulation[[#This Row],[AC System Output (kW)]]*TOU_CTabulation[[#This Row],[Rate]] -> 0.2786461949
A93: 1 | B93: 3 | C93: 16 | D93: =DAY(EOMONTH(DATE(2021,TOU_CTabulation[[#This Row],[Month]],TOU_CTabulation[[#This Row],[Day]]),0)) -> 31 | E93: =VLOOKUP(TOU_CTabulation[[#This Row],[Month]],SeasonTable,2) -> Winter | F93: 458.398 | G93: =VLOOKUP(TOU_CTabulation[[#This Row],[Hour]],daypart,2) -> Peak | H93: =CONCATENATE(TOU_CTabulation[[#This Row],[Season]],TOU_CTabulation[[#This Row],[Day-Part]]) -> WinterPeak | I93: 428.769 | J93: =TOU_CTabulation[[#This Row],[AC System Output (W)]]/1000 -> 0.428769 | K93: =IF(TOU_CTabulation[[#This Row],[Month]]=A91,K92+TOU_CTabulation[[#This Row],[AC System Output (kW)]],TOU_CTabulation[[#This Row],[AC System Output (kW)]]) -> 43.750522 | L93: =VLOOKUP(TOU_CTabulation[[#This Row],[Season]],Baseline,2)*TOU_CTabulation[[#This Row],[Days in month]] -> 325.5 | M93: =IF(TOU_CTabulation[[#This Row],[Month Cumm]]<=TOU_CTabulation[[#This Row],[Month Base Allow]],VLOOKUP(TOU_CTabulation[[#This Row],[Season+ Daypart]],TOUC,2),VLOOKUP(TOU_CTabulation[[#This Row],[Season+ Daypart]],TOUC,2)+0.07584) -> 0.2452 | N93: =TOU_CTabulation[[#This Row],[AC System Output (kW)]]*TOU_CTabulation[[#This Row],[Rate]] -> 0.1051341588
A94: 1 | B94: 3 | C94: 17 | D94: =DAY(EOMONTH(DATE(2021,TOU_CTabulation[[#This Row],[Month]],TOU_CTabulation[[#This Row],[Day]]),0)) -> 31 | E94: =VLOOKUP(TOU_CTabulation[[#This Row],[Month]],SeasonTable,2) -> Winter | F94: 0 | G94: =VLOOKUP(TOU_CTabulation[[#This Row],[Hour]],daypart,2) -> Peak | H94: =CONCATENATE(TOU_CTabulation[[#This Row],[Season]],TOU_CTabulation[[#This Row],[Day-Part]]) -> WinterPeak | I94: 0 | J94: =TOU_CTabulation[[#This Row],[AC System Output (W)]]/1000 -> 0 | K94: =IF(TOU_CTabulation[[#This Row],[Month]]=A92,K93+TOU_CTabulation[[#This Row],[AC System Output (kW)]],TOU_CTabulation[[#This Row],[AC System Output (kW)]]) -> 43.750522 | L94: =VLOOKUP(TOU_CTabulation[[#This Row],[Season]],Baseline,2)*TOU_CTabulation[[#This Row],[Days in month]] -> 325.5 | M94: =IF(TOU_CTabulation[[#This Row],[Month Cumm]]<=TOU_CTabulation[[#This Row],[Month Base Allow]],VLOOKUP(TOU_CTabulation[[#This Row],[Season+ Daypart]],TOUC,2),VLOOKUP(TOU_CTabulation[[#This Row],[Season+ Daypart]],TOUC,2)+0.07584) -> 0.2452 | N94: =TOU_CTabulation[[#This Row],[AC System Output (kW)]]*TOU_CTabulation[[#This Row],[Rate]] -> 0
A95: 1 | B95: 3 | C95: 18 | D95: =DAY(EOMONTH(DATE(2021,TOU_CTabulation[[#This Row],[Month]],TOU_CTabulation[[#This Row],[Day]]),0)) -> 31 | E95: =VLOOKUP(TOU_CTabulation[[#This Row],[Month]],SeasonTable,2) -> Winter | F95: 0 | G95: =VLOOKUP(TOU_CTabulation[[#This Row],[Hour]],daypart,2) -> Peak | H95: =CONCATENATE(TOU_CTabulation[[#This Row],[Season]],TOU_CTabulation[[#This Row],[Day-Part]]) -> WinterPeak | I95: 0 | J95: =TOU_CTabulation[[#This Row],[AC System Output (W)]]/1000 -> 0 | K95: =IF(TOU_CTabulation[[#This Row],[Month]]=A93,K94+TOU_CTabulation[[#This Row],[AC System Output (kW)]],TOU_CTabulation[[#This Row],[AC System Output (kW)]]) -> 43.750522 | L95: =VLOOKUP(TOU_CTabulation[[#This Row],[Season]],Baseline,2)*TOU_CTabulation[[#This Row],[Days in month]] -> 325.5 | M95: =IF(TOU_CTabulation[[#This Row],[Month Cumm]]<=TOU_CTabulation[[#This Row],[Month Base Allow]],VLOOKUP(TOU_CTabulation[[#This Row],[Season+ Daypart]],TOUC,2),VLOOKUP(TOU_CTabulation[[#This Row],[Season+ Daypart]],TOUC,2)+0.07584) -> 0.2452 | N95: =TOU_CTabulation[[#This Row],[AC System Output (kW)]]*TOU_CTabulation[[#This Row],[Rate]] -> 0
A96: 1 | B96: 3 | C96: 19 | D96: =DAY(EOMONTH(DATE(2021,TOU_CTabulation[[#This Row],[Month]],TOU_CTabulation[[#This Row],[Day]]),0)) -> 31 | E96: =VLOOKUP(TOU_CTabulation[[#This Row],[Month]],SeasonTable,2) -> Winter | F96: 0 | G96: =VLOOKUP(TOU_CTabulation[[#This Row],[Hour]],daypart,2) -> Peak | H96: =CONCATENATE(TOU_CTabulation[[#This Row],[Season]],TOU_CTabulation[[#This Row],[Day-Part]]) -> WinterPeak | I96: 0 | J96: =TOU_CTabulation[[#This Row],[AC System Output (W)]]/1000 -> 0 | K96: =IF(TOU_CTabulation[[#This Row],[Month]]=A94,K95+TOU_CTabulation[[#This Row],[AC System Output (kW)]],TOU_CTabulation[[#This Row],[AC System Output (kW)]]) -> 43.750522 | L96: =VLOOKUP(TOU_CTabulation[[#This Row],[Season]],Baseline,2)*TOU_CTabulation[[#This Row],[Days in month]] -> 325.5 | M96: =IF(TOU_CTabulation[[#This Row],[Month Cumm]]<=TOU_CTabulation[[#This Row],[Month Base Allow]],VLOOKUP(TOU_CTabulation[[#This Row],[Season+ Daypart]],TOUC,2),VLOOKUP(TOU_CTabulation[[#This Row],[Season+ Daypart]],TOUC,2)+0.07584) -> 0.2452 | N96: =TOU_CTabulation[[#This Row],[AC System Output (kW)]]*TOU_CTabulation[[#This Row],[Rate]] -> 0
A97: 1 | B97: 3 | C97: 20 | D97: =DAY(EOMONTH(DATE(2021,TOU_CTabulation[[#This Row],[Month]],TOU_CTabulation[[#This Row],[Day]]),0)) -> 31 | E97: =VLOOKUP(TOU_CTabulation[[#This Row],[Month]],SeasonTable,2) -> Winter | F97: 0 | G97: =VLOOKUP(TOU_CTabulation[[#This Row],[Hour]],daypart,2) -> Peak | H97: =CONCATENATE(TOU_CTabulation[[#This Row],[Season]],TOU_CTabulation[[#This Row],[Day-Part]]) -> WinterPeak | I97: 0 | J97: =TOU_CTabulation[[#This Row],[AC System Output (W)]]/1000 -> 0 | K97: =IF(TOU_CTabulation[[#This Row],[Month]]=A95,K96+TOU_CTabulation[[#This Row],[AC System Output (kW)]],TOU_CTabulation[[#This Row],[AC System Output (kW)]]) -> 43.750522 | L97: =VLOOKUP(TOU_CTabulation[[#This Row],[Season]],Baseline,2)*TOU_CTabulation[[#This Row],[Days in month]] -> 325.5 | M97: =IF(TOU_CTabulation[[#This Row],[Month Cumm]]<=TOU_CTabulation[[#This Row],[Month Base Allow]],VLOOKUP(TOU_CTabulation[[#This Row],[Season+ Daypart]],TOUC,2),VLOOKUP(TOU_CTabulation[[#This Row],[Season+ Daypart]],TOUC,2)+0.07584) -> 0.2452 | N97: =TOU_CTabulation[[#This Row],[AC System Output (kW)]]*TOU_CTabulation[[#This Row],[Rate]] -> 0
A98: 1 | B98: 3 | C98: 21 | D98: =DAY(EOMONTH(DATE(2021,TOU_CTabulation[[#This Row],[Month]],TOU_CTabulation[[#This Row],[Day]]),0)) -> 31 | E98: =VLOOKUP(TOU_CTabulation[[#This Row],[Month]],SeasonTable,2) -> Winter | F98: 0 | G98: =VLOOKUP(TOU_CTabulation[[#This Row],[Hour]],daypart,2) -> Off | H98: =CONCATENATE(TOU_CTabulation[[#This Row],[Season]],TOU_CTabulation[[#This Row],[Day-Part]]) -> WinterOff | I98: 0 | J98: =TOU_CTabulation[[#This Row],[AC System Output (W)]]/1000 -> 0 | K98: =IF(TOU_CTabulation[[#This Row],[Month]]=A96,K97+TOU_CTabulation[[#This Row],[AC System Output (kW)]],TOU_CTabulation[[#This Row],[AC System Output (kW)]]) -> 43.750522 | L98: =VLOOKUP(TOU_CTabulation[[#This Row],[Season]],Baseline,2)*TOU_CTabulation[[#This Row],[Days in month]] -> 325.5 | M98: =IF(TOU_CTabulation[[#This Row],[Month Cumm]]<=TOU_CTabulation[[#This Row],[Month Base Allow]],VLOOKUP(TOU_CTabulation[[#This Row],[Season+ Daypart]],TOUC,2),VLOOKUP(TOU_CTabulation[[#This Row],[Season+ Daypart]],TOUC,2)+0.07584) -> 0.22788 | N98: =TOU_CTabulation[[#This Row],[AC System Output (kW)]]*TOU_CTabulation[[#This Row],[Rate]] -> 0
A99: 1 | B99: 3 | C99: 22 | D99: =DAY(EOMONTH(DATE(2021,TOU_CTabulation[[#This Row],[Month]],TOU_CTabulation[[#This Row],[Day]]),0)) -> 31 | E99: =VLOOKUP(TOU_CTabulation[[#This Row],[Month]],SeasonTable,2) -> Winter | F99: 0 | G99: =VLOOKUP(TOU_CTabulation[[#This Row],[Hour]],daypart,2) -> Off | H99: =CONCATENATE(TOU_CTabulation[[#This Row],[Season]],TOU_CTabulation[[#This Row],[Day-Part]]) -> WinterOff | I99: 0 | J99: =TOU_CTabulation[[#This Row],[AC System Output (W)]]/1000 -> 0 | K99: =IF(TOU_CTabulation[[#This Row],[Month]]=A97,K98+TOU_CTabulation[[#This Row],[AC System Output (kW)]],TOU_CTabulation[[#This Row],[AC System Output (kW)]]) -> 43.750522 | L99: =VLOOKUP(TOU_CTabulation[[#This Row],[Season]],Baseline,2)*TOU_CTabulation[[#This Row],[Days in month]] -> 325.5 | M99: =IF(TOU_CTabulation[[#This Row],[Month Cumm]]<=TOU_CTabulation[[#This Row],[Month Base Allow]],VLOOKUP(TOU_CTabulation[[#This Row],[Season+ Daypart]],TOUC,2),VLOOKUP(TOU_CTabulation[[#This Row],[Season+ Daypart]],TOUC,2)+0.07584) -> 0.22788 | N99: =TOU_CTabulation[[#This Row],[AC System Output (kW)]]*TOU_CTabulation[[#This Row],[Rate]] -> 0
A100: 1 | B100: 3 | C100: 23 | D100: =DAY(EOMONTH(DATE(2021,TOU_CTabulation[[#This Row],[Month]],TOU_CTabulation[[#This Row],[Day]]),0)) -> 31 | E100: =VLOOKUP(TOU_CTabulation[[#This Row],[Month]],SeasonTable,2) -> Winter | F100: 0 | G100: =VLOOKUP(TOU_CTabulation[[#This Row],[Hour]],daypart,2) -> Off | H100: =CONCATENATE(TOU_CTabulation[[#This Row],[Season]],TOU_CTabulation[[#This Row],[Day-Part]]) -> WinterOff | I100: 0 | J100: =TOU_CTabulation[[#This Row],[AC System Output (W)]]/1000 -> 0 | K100: =IF(TOU_CTabulation[[#This Row],[Month]]=A98,K99+TOU_CTabulation[[#This Row],[AC System Output (kW)]],TOU_CTabulation[[#This Row],[AC System Output (kW)]]) -> 43.750522 | L100: =VLOOKUP(TOU_CTabulation[[#This Row],[Season]],Baseline,2)*TOU_CTabulation[[#This Row],[Days in month]] -> 325.5 | M100: =IF(TOU_CTabulation[[#This Row],[Month Cumm]]<=TOU_CTabulation[[#This Row],[Month Base Allow]],VLOOKUP(TOU_CTabulation[[#This Row],[Season+ Daypart]],TOUC,2),VLOOKUP(TOU_CTabulation[[#This Row],[Season+ Daypart]],TOUC,2)+0.07584) -> 0.22788 | N100: =TOU_CTabulation[[#This Row],[AC System Output (kW)]]*TOU_CTabulation[[#This Row],[Rate]] -> 0
A101: 1 | B101: 4 | C101: 0 | D101: =DAY(EOMONTH(DATE(2021,TOU_CTabulation[[#This Row],[Month]],TOU_CTabulation[[#This Row],[Day]]),0)) -> 31 | E101: =VLOOKUP(TOU_CTabulation[[#This Row],[Month]],SeasonTable,2) -> Winter | F101: 0 | G101: =VLOOKUP(TOU_CTabulation[[#This Row],[Hour]],daypart,2) -> Off | H101: =CONCATENATE(TOU_CTabulation[[#This Row],[Season]],TOU_CTabulation[[#This Row],[Day-Part]]) -> WinterOff | I101: 0 | J101: =TOU_CTabulation[[#This Row],[AC System Output (W)]]/1000 -> 0 | K101: =IF(TOU_CTabulation[[#This Row],[Month]]=A99,K100+TOU_CTabulation[[#This Row],[AC System Output (kW)]],TOU_CTabulation[[#This Row],[AC System Output (kW)]]) -> 43.750522 | L101: =VLOOKUP(TOU_CTabulation[[#This Row],[Season]],Baseline,2)*TOU_CTabulation[[#This Row],[Days in month]] -> 325.5 | M101: =IF(TOU_CTabulation[[#This Row],[Month Cumm]]<=TOU_CTabulation[[#This Row],[Month Base Allow]],VLOOKUP(TOU_CTabulation[[#This Row],[Season+ Daypart]],TOUC,2),VLOOKUP(TOU_CTabulation[[#This Row],[Season+ Daypart]],TOUC,2)+0.07584) -> 0.22788 | N101: =TOU_CTabulation[[#This Row],[AC System Output (kW)]]*TOU_CTabulation[[#This Row],[Rate]] -> 0
A102: 1 | B102: 4 | C102: 1 | D102: =DAY(EOMONTH(DATE(2021,TOU_CTabulation[[#This Row],[Month]],TOU_CTabulation[[#This Row],[Day]]),0)) -> 31 | E102: =VLOOKUP(TOU_CTabulation[[#This Row],[Month]],SeasonTable,2) -> Winter | F102: 0 | G102: =VLOOKUP(TOU_CTabulation[[#This Row],[Hour]],daypart,2) -> Off | H102: =CONCATENATE(TOU_CTabulation[[#This Row],[Season]],TOU_CTabulation[[#This Row],[Day-Part]]) -> WinterOff | I102: 0 | J102: =TOU_CTabulation[[#This Row],[AC System Output (W)]]/1000 -> 0 | K102: =IF(TOU_CTabulation[[#This Row],[Month]]=A100,K101+TOU_CTabulation[[#This Row],[AC System Output (kW)]],TOU_CTabulation[[#This Row],[AC System Output (kW)]]) -> 43.750522 | L102: =VLOOKUP(TOU_CTabulation[[#This Row],[Season]],Baseline,2)*TOU_CTabulation[[#This Row],[Days in month]] -> 325.5 | M102: =IF(TOU_CTabulation[[#This Row],[Month Cumm]]<=TOU_CTabulation[[#This Row],[Month Base Allow]],VLOOKUP(TOU_CTabulation[[#This Row],[Season+ Daypart]],TOUC,2),VLOOKUP(TOU_CTabulation[[#This Row],[Season+ Daypart]],TOUC,2)+0.07584) -> 0.22788 | N102: =TOU_CTabulation[[#This Row],[AC System Output (kW)]]*TOU_CTabulation[[#This Row],[Rate]] -> 0
A103: 1 | B103: 4 | C103: 2 | D103: =DAY(EOMONTH(DATE(2021,TOU_CTabulation[[#This Row],[Month]],TOU_CTabulation[[#This Row],[Day]]),0)) -> 31 | E103: =VLOOKUP(TOU_CTabulation[[#This Row],[Month]],SeasonTable,2) -> Winter | F103: 0 | G103: =VLOOKUP(TOU_CTabulation[[#This Row],[Hour]],daypart,2) -> Off | H103: =CONCATENATE(TOU_CTabulation[[#This Row],[Season]],TOU_CTabulation[[#This Row],[Day-Part]]) -> WinterOff | I103: 0 | J103: =TOU_CTabulation[[#This Row],[AC System Output (W)]]/1000 -> 0 | K103: =IF(TOU_CTabulation[[#This Row],[Month]]=A101,K102+TOU_CTabulation[[#This Row],[AC System Output (kW)]],TOU_CTabulation[[#This Row],[AC System Output (kW)]]) -> 43.750522 | L103: =VLOOKUP(TOU_CTabulation[[#This Row],[Season]],Baseline,2)*TOU_CTabulation[[#This Row],[Days in month]] -> 325.5 | M103: =IF(TOU_CTabulation[[#This Row],[Month Cumm]]<=TOU_CTabulation[[#This Row],[Month Base Allow]],VLOOKUP(TOU_CTabulation[[#This Row],[Season+ Daypart]],TOUC,2),VLOOKUP(TOU_CTabulation[[#This Row],[Season+ Daypart]],TOUC,2)+0.07584) -> 0.22788 | N103: =TOU_CTabulation[[#This Row],[AC System Output (kW)]]*TOU_CTabulation[[#This Row],[Rate]] -> 0
A104: 1 | B104: 4 | C104: 3 | D104: =DAY(EOMONTH(DATE(2021,TOU_CTabulation[[#This Row],[Month]],TOU_CTabulation[[#This Row],[Day]]),0)) -> 31 | E104: =VLOOKUP(TOU_CTabulation[[#This Row],[Month]],SeasonTable,2) -> Winter | F104: 0 | G104: =VLOOKUP(TOU_CTabulation[[#This Row],[Hour]],daypart,2) -> Off | H104: =CONCATENATE(TOU_CTabulation[[#This Row],[Season]],TOU_CTabulation[[#This Row],[Day-Part]]) -> WinterOff | I104: 0 | J104: =TOU_CTabulation[[#This Row],[AC System Output (W)]]/1000 -> 0 | K104: =IF(TOU_CTabulation[[#This Row],[Month]]=A102,K103+TOU_CTabulation[[#This Row],[AC System Output (kW)]],TOU_CTabulation[[#This Row],[AC System Output (kW)]]) -> 43.750522 | L104: =VLOOKUP(TOU_CTabulation[[#This Row],[Season]],Baseline,2)*TOU_CTabulation[[#This Row],[Days in month]] -> 325.5 | M104: =IF(TOU_CTabulation[[#This Row],[Month Cumm]]<=TOU_CTabulation[[#This Row],[Month Base Allow]],VLOOKUP(TOU_CTabulation[[#This Row],[Season+ Daypart]],TOUC,2),VLOOKUP(TOU_CTabulation[[#This Row],[Season+ Daypart]],TOUC,2)+0.07584) -> 0.22788 | N104: =TOU_CTabulation[[#This Row],[AC System Output (kW)]]*TOU_CTabulation[[#This Row],[Rate]] -> 0
A105: 1 | B105: 4 | C105: 4 | D105: =DAY(EOMONTH(DATE(2021,TOU_CTabulation[[#This Row],[Month]],TOU_CTabulation[[#This Row],[Day]]),0)) -> 31 | E105: =VLOOKUP(TOU_CTabulation[[#This Row],[Month]],SeasonTable,2) -> Winter | F105: 0 | G105: =VLOOKUP(TOU_CTabulation[[#This Row],[Hour]],daypart,2) -> Off | H105: =CONCATENATE(TOU_CTabulation[[#This Row],[Season]],TOU_CTabulation[[#This Row],[Day-Part]]) -> WinterOff | I105: 0 | J105: =TOU_CTabulation[[#This Row],[AC System Output (W)]]/1000 -> 0 | K105: =IF(TOU_CTabulation[[#This Row],[Month]]=A103,K104+TOU_CTabulation[[#This Row],[AC System Output (kW)]],TOU_CTabulation[[#This Row],[AC System Output (kW)]]) -> 43.750522 | L105: =VLOOKUP(TOU_CTabulation[[#This Row],[Season]],Baseline,2)*TOU_CTabulation[[#This Row],[Days in month]] -> 325.5 | M105: =IF(TOU_CTabulation[[#This Row],[Month Cumm]]<=TOU_CTabulation[[#This Row],[Month Base Allow]],VLOOKUP(TOU_CTabulation[[#This Row],[Season+ Daypart]],TOUC,2),VLOOKUP(TOU_CTabulation[[#This Row],[Season+ Daypart]],TOUC,2)+0.07584) -> 0.22788 | N105: =TOU_CTabulation[[#This Row],[AC System Output (kW)]]*TOU_CTabulation[[#This Row],[Rate]] -> 0
A106: 1 | B106: 4 | C106: 5 | D106: =DAY(EOMONTH(DATE(2021,TOU_CTabulation[[#This Row],[Month]],TOU_CTabulation[[#This Row],[Day]]),0)) -> 31 | E106: =VLOOKUP(TOU_CTabulation[[#This Row],[Month]],SeasonTable,2) -> Winter | F106: 0 | G106: =VLOOKUP(TOU_CTabulation[[#This Row],[Hour]],daypart,2) -> Off | H106: =CONCATENATE(TOU_CTabulation[[#This Row],[Season]],TOU_CTabulation[[#This Row],[Day-Part]]) -> WinterOff | I106: 0 | J106: =TOU_CTabulation[[#This Row],[AC System Output (W)]]/1000 -> 0 | K106: =IF(TOU_CTabulation[[#This Row],[Month]]=A104,K105+TOU_CTabulation[[#This Row],[AC System Output (kW)]],TOU_CTabulation[[#This Row],[AC System Output (kW)]]) -> 43.750522 | L106: =VLOOKUP(TOU_CTabulation[[#This Row],[Season]],Baseline,2)*TOU_CTabulation[[#This Row],[Days in month]] -> 325.5 | M106: =IF(TOU_CTabulation[[#This Row],[Month Cumm]]<=TOU_CTabulation[[#This Row],[Month Base Allow]],VLOOKUP(TOU_CTabulation[[#This Row],[Season+ Daypart]],TOUC,2),VLOOKUP(TOU_CTabulation[[#This Row],[Season+ Daypart]],TOUC,2)+0.07584) -> 0.22788 | N106: =TOU_CTabulation[[#This Row],[AC System Output (kW)]]*TOU_CTabulation[[#This Row],[Rate]] -> 0
A107: 1 | B107: 4 | C107: 6 | D107: =DAY(EOMONTH(DATE(2021,TOU_CTabulation[[#This Row],[Month]],TOU_CTabulation[[#This Row],[Day]]),0)) -> 31 | E107: =VLOOKUP(TOU_CTabulation[[#This Row],[Month]],SeasonTable,2) -> Winter | F107: 0 | G107: =VLOOKUP(TOU_CTabulation[[#This Row],[Hour]],daypart,2) -> Off | H107: =CONCATENATE(TOU_CTabulation[[#This Row],[Season]],TOU_CTabulation[[#This Row],[Day-Part]]) -> WinterOff | I107: 0 | J107: =TOU_CTabulation[[#This Row],[AC System Output (W)]]/1000 -> 0 | K107: =IF(TOU_CTabulation[[#This Row],[Month]]=A105,K106+TOU_CTabulation[[#This Row],[AC System Output (kW)]],TOU_CTabulation[[#This Row],[AC System Output (kW)]]) -> 43.750522 | L107: =VLOOKUP(TOU_CTabulation[[#This Row],[Season]],Baseline,2)*TOU_CTabulation[[#This Row],[Days in month]] -> 325.5 | M107: =IF(TOU_CTabulation[[#This Row],[Month Cumm]]<=TOU_CTabulation[[#This Row],[Month Base Allow]],VLOOKUP(TOU_CTabulation[[#This Row],[Season+ Daypart]],TOUC,2),VLOOKUP(TOU_CTabulation[[#This Row],[Season+ Daypart]],TOUC,2)+0.07584) -> 0.22788 | N107: =TOU_CTabulation[[#This Row],[AC System Output (kW)]]*TOU_CTabulation[[#This Row],[Rate]] -> 0
A108: 1 | B108: 4 | C108: 7 | D108: =DAY(EOMONTH(DATE(2021,TOU_CTabulation[[#This Row],[Month]],TOU_CTabulation[[#This Row],[Day]]),0)) -> 31 | E108: =VLOOKUP(TOU_CTabulation[[#This Row],[Month]],SeasonTable,2) -> Winter | F108: 108.204 | G108: =VLOOKUP(TOU_CTabulation[[#This Row],[Hour]],daypart,2) -> Off | H108: =CONCATENATE(TOU_CTabulation[[#This Row],[Season]],TOU_CTabulation[[#This Row],[Day-Part]]) -> WinterOff | I108: 85.796 | J108: =TOU_CTabulation[[#This Row],[AC System Output (W)]]/1000 -> 0.085796 | K108: =IF(TOU_CTabulation[[#This Row],[Month]]=A106,K107+TOU_CTabulation[[#This Row],[AC System Output (kW)]],TOU_CTabulation[[#This Row],[AC System Output (kW)]]) -> 43.836318 | L108: =VLOOKUP(TOU_CTabulation[[#This Row],[Season]],Baseline,2)*TOU_CTabulation[[#This Row],[Days in month]] -> 325.5 | M108: =IF(TOU_CTabulation[[#This Row],[Month Cumm]]<=TOU_CTabulation[[#This Row],[Month Base Allow]],VLOOKUP(TOU_CTabulation[[#This Row],[Season+ Daypart]],TOUC,2),VLOOKUP(TOU_CTabulation[[#This Row],[Season+ Daypart]],TOUC,2)+0.07584) -> 0.22788 | N108: =TOU_CTabulation[[#This Row],[AC System Output (kW)]]*TOU_CTabulation[[#This Row],[Rate]] -> 0.01955119248
A109: 1 | B109: 4 | C109: 8 | D109: =DAY(EOMONTH(DATE(2021,TOU_CTabulation[[#This Row],[Month]],TOU_CTabulation[[#This Row],[Day]]),0)) -> 31 | E109: =VLOOKUP(TOU_CTabulation[[#This Row],[Month]],SeasonTable,2) -> Winter | F109: 494.796 | G109: =VLOOKUP(TOU_CTabulation[[#This Row],[Hour]],daypart,2) -> Off | H109: =CONCATENATE(TOU_CTabulation[[#This Row],[Season]],TOU_CTabulation[[#This Row],[Day-Part]]) -> WinterOff | I109: 464.352 | J109: =TOU_CTabulation[[#This Row],[AC System Output (W)]]/1000 -> 0.464352 | K109: =IF(TOU_CTabulation[[#This Row],[Month]]=A107,K108+TOU_CTabulation[[#This Row],[AC System Output (kW)]],TOU_CTabulation[[#This Row],[AC System Output (kW)]]) -> 44.30067 | L109: =VLOOKUP(TOU_CTabulation[[#This Row],[Season]],Baseline,2)*TOU_CTabulation[[#This Row],[Days in month]] -> 325.5 | M109: =IF(TOU_CTabulation[[#This Row],[Month Cumm]]<=TOU_CTabulation[[#This Row],[Month Base Allow]],VLOOKUP(TOU_CTabulation[[#This Row],[Season+ Daypart]],TOUC,2),VLOOKUP(TOU_CTabulation[[#This Row],[Season+ Daypart]],TOUC,2)+0.07584) -> 0.22788 | N109: =TOU_CTabulation[[#This Row],[AC System Output (kW)]]*TOU_CTabulation[[#This Row],[Rate]] -> 0.1058165338
A110: 1 | B110: 4 | C110: 9 | D110: =DAY(EOMONTH(DATE(2021,TOU_CTabulation[[#This Row],[Month]],TOU_CTabulation[[#This Row],[Day]]),0)) -> 31 | E110: =VLOOKUP(TOU_CTabulation[[#This Row],[Month]],SeasonTable,2) -> Winter | F110: 1939.143 | G110: =VLOOKUP(TOU_CTabulation[[#This Row],[Hour]],daypart,2) -> Off | H110: =CONCATENATE(TOU_CTabulation[[#This Row],[Season]],TOU_CTabulation[[#This Row],[Day-Part]]) -> WinterOff | I110: 1866.384 | J110: =TOU_CTabulation[[#This Row],[AC System Output (W)]]/1000 -> 1.866384 | K110: =IF(TOU_CTabulation[[#This Row],[Month]]=A108,K109+TOU_CTabulation[[#This Row],[AC System Output (kW)]],TOU_CTabulation[[#This Row],[AC System Output (kW)]]) -> 46.167054 | L110: =VLOOKUP(TOU_CTabulation[[#This Row],[Season]],Baseline,2)*TOU_CTabulation[[#This Row],[Days in month]] -> 325.5 | M110: =IF(TOU_CTabulation[[#This Row],[Month Cumm]]<=TOU_CTabulation[[#This Row],[Month Base Allow]],VLOOKUP(TOU_CTabulation[[#This Row],[Season+ Daypart]],TOUC,2),VLOOKUP(TOU_CTabulation[[#This Row],[Season+ Daypart]],TOUC,2)+0.07584) -> 0.22788 | N110: =TOU_CTabulation[[#This Row],[AC System Output (kW)]]*TOU_CTabulation[[#This Row],[Rate]] -> 0.4253115859
A111: 1 | B111: 4 | C111: 10 | D111: =DAY(EOMONTH(DATE(2021,TOU_CTabulation[[#This Row],[Month]],TOU_CTabulation[[#This Row],[Day]]),0)) -> 31 | E111: =VLOOKUP(TOU_CTabulation[[#This Row],[Month]],SeasonTable,2) -> Winter | F111: 2415.333 | G111: =VLOOKUP(TOU_CTabulation[[#This Row],[Hour]],daypart,2) -> Off | H111: =CONCATENATE(TOU_CTabulation[[#This Row],[Season]],TOU_CTabulation[[#This Row],[Day-Part]]) -> WinterOff | I111: 2324.373 | J111: =TOU_CTabulation[[#This Row],[AC System Output (W)]]/1000 -> 2.324373 | K111: =IF(TOU_CTabulation[[#This Row],[Month]]=A109,K110+TOU_CTabulation[[#This Row],[AC System Output (kW)]],TOU_CTabulation[[#This Row],[AC System Output (kW)]]) -> 48.491427 | L111: =VLOOKUP(TOU_CTabulation[[#This Row],[Season]],Baseline,2)*TOU_CTabulation[[#This Row],[Days in month]] -> 325.5 | M111: =IF(TOU_CTabulation[[#This Row],[Month Cumm]]<=TOU_CTabulation[[#This Row],[Month Base Allow]],VLOOKUP(TOU_CTabulation[[#This Row],[Season+ Daypart]],TOUC,2),VLOOKUP(TOU_CTabulation[[#This Row],[Season+ Daypart]],TOUC,2)+0.07584) -> 0.22788 | N111: =TOU_CTabulation[[#This Row],[AC System Output (kW)]]*TOU_CTabulation[[#This Row],[Rate]] -> 0.5296781192
A112: 1 | B112: 4 | C112: 11 | D112: =DAY(EOMONTH(DATE(2021,TOU_CTabulation[[#This Row],[Month]],TOU_CTabulation[[#This Row],[Day]]),0)) -> 31 | E112: =VLOOKUP(TOU_CTabulation[[#This Row],[Month]],SeasonTable,2) -> Winter | F112: 2018.964 | G112: =VLOOKUP(TOU_CTabulation[[#This Row],[Hour]],daypart,2) -> Off | H112: =CONCATENATE(TOU_CTabulation[[#This Row],[Season]],TOU_CTabulation[[#This Row],[Day-Part]]) -> WinterOff | I112: 1943.301 | J112: =TOU_CTabulation[[#This Row],[AC System Output (W)]]/1000 -> 1.943301 | K112: =IF(TOU_CTabulation[[#This Row],[Month]]=A110,K111+TOU_CTabulation[[#This Row],[AC System Output (kW)]],TOU_CTabulation[[#This Row],[AC System Output (kW)]]) -> 50.434728 | L112: =VLOOKUP(TOU_CTabulation[[#This Row],[Season]],Baseline,2)*TOU_CTabulation[[#This Row],[Days in month]] -> 325.5 | M112: =IF(TOU_CTabulation[[#This Row],[Month Cumm]]<=TOU_CTabulation[[#This Row],[Month Base Allow]],VLOOKUP(TOU_CTabulation[[#This Row],[Season+ Daypart]],TOUC,2),VLOOKUP(TOU_CTabulation[[#This Row],[Season+ Daypart]],TOUC,2)+0.07584) -> 0.22788 | N112: =TOU_CTabulation[[#This Row],[AC System Output (kW)]]*TOU_CTabulation[[#This Row],[Rate]] -> 0.4428394319
A113: 1 | B113: 4 | C113: 12 | D113: =DAY(EOMONTH(DATE(2021,TOU_CTabulation[[#This Row],[Month]],TOU_CTabulation[[#This Row],[Day]]),0)) -> 31 | E113: =VLOOKUP(TOU_CTabulation[[#This Row],[Month]],SeasonTable,2) -> Winter | F113: 2016.362 | G113: =VLOOKUP(TOU_CTabulation[[#This Row],[Hour]],daypart,2) -> Off | H113: =CONCATENATE(TOU_CTabulation[[#This Row],[Season]],TOU_CTabulation[[#This Row],[Day-Part]]) -> WinterOff | I113: 1940.794 | J113: =TOU_CTabulation[[#This Row],[AC System Output (W)]]/1000 -> 1.940794 | K113: =IF(TOU_CTabulation[[#This Row],[Month]]=A111,K112+TOU_CTabulation[[#This Row],[AC System Output (kW)]],TOU_CTabulation[[#This Row],[AC System Output (kW)]]) -> 52.375522 | L113: =VLOOKUP(TOU_CTabulation[[#This Row],[Season]],Baseline,2)*TOU_CTabulation[[#This Row],[Days in month]] -> 325.5 | M113: =IF(TOU_CTabulation[[#This Row],[Month Cumm]]<=TOU_CTabulation[[#This Row],[Month Base Allow]],VLOOKUP(TOU_CTabulation[[#This Row],[Season+ Daypart]],TOUC,2),VLOOKUP(TOU_CTabulation[[#This Row],[Season+ Daypart]],TOUC,2)+0.07584) -> 0.22788 | N113: =TOU_CTabulation[[#This Row],[AC System Output (kW)]]*TOU_CTabulation[[#This Row],[Rate]] -> 0.4422681367
A114: 1 | B114: 4 | C114: 13 | D114: =DAY(EOMONTH(DATE(2021,TOU_CTabulation[[#This Row],[Month]],TOU_CTabulation[[#This Row],[Day]]),0)) -> 31 | E114: =VLOOKUP(TOU_CTabulation[[#This Row],[Month]],SeasonTable,2) -> Winter | F114: 2420.229 | G114: =VLOOKUP(TOU_CTabulation[[#This Row],[Hour]],daypart,2) -> Off | H114: =CONCATENATE(TOU_CTabulation[[#This Row],[Season]],TOU_CTabulation[[#This Row],[Day-Part]]) -> WinterOff | I114: 2329.07 | J114: =TOU_CTabulation[[#This Row],[AC System Output (W)]]/1000 -> 2.32907 | K114: =IF(TOU_CTabulation[[#This Row],[Month]]=A112,K113+TOU_CTabulation[[#This Row],[AC System Output (kW)]],TOU_CTabulation[[#This Row],[AC System Output (kW)]]) -> 54.704592 | L114: =VLOOKUP(TOU_CTabulation[[#This Row],[Season]],Baseline,2)*TOU_CTabulation[[#This Row],[Days in month]] -> 325.5 | M114: =IF(TOU_CTabulation[[#This Row],[Month Cumm]]<=TOU_CTabulation[[#This Row],[Month Base Allow]],VLOOKUP(TOU_CTabulation[[#This Row],[Season+ Daypart]],TOUC,2),VLOOKUP(TOU_CTabulation[[#This Row],[Season+ Daypart]],TOUC,2)+0.07584) -> 0.22788 | N114: =TOU_CTabulation[[#This Row],[AC System Output (kW)]]*TOU_CTabulation[[#This Row],[Rate]] -> 0.5307484716
A115: 1 | B115: 4 | C115: 14 | D115: =DAY(EOMONTH(DATE(2021,TOU_CTabulation[[#This Row],[Month]],TOU_CTabulation[[#This Row],[Day]]),0)) -> 31 | E115: =VLOOKUP(TOU_CTabulation[[#This Row],[Month]],SeasonTable,2) -> Winter | F115: 1934.111 | G115: =VLOOKUP(TOU_CTabulation[[#This Row],[Hour]],daypart,2) -> Off | H115: =CONCATENATE(TOU_CTabulation[[#This Row],[Season]],TOU_CTabulation[[#This Row],[Day-Part]]) -> WinterOff | I115: 1861.533 | J115: =TOU_CTabulation[[#This Row],[AC System Output (W)]]/1000 -> 1.861533 | K115: =IF(TOU_CTabulation[[#This Row],[Month]]=A113,K114+TOU_CTabulation[[#This Row],[AC System Output (kW)]],TOU_CTabulation[[#This Row],[AC System Output (kW)]]) -> 56.566125 | L115: =VLOOKUP(TOU_CTabulation[[#This Row],[Season]],Baseline,2)*TOU_CTabulation[[#This Row],[Days in month]] -> 325.5 | M115: =IF(TOU_CTabulation[[#This Row],[Month Cumm]]<=TOU_CTabulation[[#This Row],[Month Base Allow]],VLOOKUP(TOU_CTabulation[[#This Row],[Season+ Daypart]],TOUC,2),VLOOKUP(TOU_CTabulation[[#This Row],[Season+ Daypart]],TOUC,2)+0.07584) -> 0.22788 | N115: =TOU_CTabulation[[#This Row],[AC System Output (kW)]]*TOU_CTabulation[[#This Row],[Rate]] -> 0.42420614
A116: 1 | B116: 4 | C116: 15 | D116: =DAY(EOMONTH(DATE(2021,TOU_CTabulation[[#This Row],[Month]],TOU_CTabulation[[#This Row],[Day]]),0)) -> 31 | E116: =VLOOKUP(TOU_CTabulation[[#This Row],[Month]],SeasonTable,2) -> Winter | F116: 1313.476 | G116: =VLOOKUP(TOU_CTabulation[[#This Row],[Hour]],daypart,2) -> Off | H116: =CONCATENATE(TOU_CTabulation[[#This Row],[Season]],TOU_CTabulation[[#This Row],[Day-Part]]) -> WinterOff | I116: 1261.428 | J116: =TOU_CTabulation[[#This Row],[AC System Output (W)]]/1000 -> 1.261428 | K116: =IF(TOU_CTabulation[[#This Row],[Month]]=A114,K115+TOU_CTabulation[[#This Row],[AC System Output (kW)]],TOU_CTabulation[[#This Row],[AC System Output (kW)]]) -> 57.827553 | L116: =VLOOKUP(TOU_CTabulation[[#This Row],[Season]],Baseline,2)*TOU_CTabulation[[#This Row],[Days in month]] -> 325.5 | M116: =IF(TOU_CTabulation[[#This Row],[Month Cumm]]<=TOU_CTabulation[[#This Row],[Month Base Allow]],VLOOKUP(TOU_CTabulation[[#This Row],[Season+ Daypart]],TOUC,2),VLOOKUP(TOU_CTabulation[[#This Row],[Season+ Daypart]],TOUC,2)+0.07584) -> 0.22788 | N116: =TOU_CTabulation[[#This Row],[AC System Output (kW)]]*TOU_CTabulation[[#This Row],[Rate]] -> 0.2874542126
A117: 1 | B117: 4 | C117: 16 | D117: =DAY(EOMONTH(DATE(2021,TOU_CTabulation[[#This Row],[Month]],TOU_CTabulation[[#This Row],[Day]]),0)) -> 31 | E117: =VLOOKUP(TOU_CTabulation[[#This Row],[Month]],SeasonTable,2) -> Winter | F117: 222.256 | G117: =VLOOKUP(TOU_CTabulation[[#This Row],[Hour]],daypart,2) -> Peak | H117: =CONCATENATE(TOU_CTabulation[[#This Row],[Season]],TOU_CTabulation[[#This Row],[Day-Part]]) -> WinterPeak | I117: 197.622 | J117: =TOU_CTabulation[[#This Row],[AC System Output (W)]]/1000 -> 0.197622 | K117: =IF(TOU_CTabulation[[#This Row],[Month]]=A115,K116+TOU_CTabulation[[#This Row],[AC System Output (kW)]],TOU_CTabulation[[#This Row],[AC System Output (kW)]]) -> 58.025175 | L117: =VLOOKUP(TOU_CTabulation[[#This Row],[Season]],Baseline,2)*TOU_CTabulation[[#This Row],[Days in month]] -> 325.5 | M117: =IF(TOU_CTabulation[[#This Row],[Month Cumm]]<=TOU_CTabulation[[#This Row],[Month Base Allow]],VLOOKUP(TOU_CTabulation[[#This Row],[Season+ Daypart]],TOUC,2),VLOOKUP(TOU_CTabulation[[#This Row],[Season+ Daypart]],TOUC,2)+0.07584) -> 0.2452 | N117: =TOU_CTabulation[[#This Row],[AC System Output (kW)]]*TOU_CTabulation[[#This Row],[Rate]] -> 0.0484569144
A118: 1 | B118: 4 | C118: 17 | D118: =DAY(EOMONTH(DATE(2021,TOU_CTabulation[[#This Row],[Month]],TOU_CTabulation[[#This Row],[Day]]),0)) -> 31 | E118: =VLOOKUP(TOU_CTabulation[[#This Row],[Month]],SeasonTable,2) -> Winter | F118: 0 | G118: =VLOOKUP(TOU_CTabulation[[#This Row],[Hour]],daypart,2) -> Peak | H118: =CONCATENATE(TOU_CTabulation[[#This Row],[Season]],TOU_CTabulation[[#This Row],[Day-Part]]) -> WinterPeak | I118: 0 | J118: =TOU_CTabulation[[#This Row],[AC System Output (W)]]/1000 -> 0 | K118: =IF(TOU_CTabulation[[#This Row],[Month]]=A116,K117+TOU_CTabulation[[#This Row],[AC System Output (kW)]],TOU_CTabulation[[#This Row],[AC System Output (kW)]]) -> 58.025175 | L118: =VLOOKUP(TOU_CTabulation[[#This Row],[Season]],Baseline,2)*TOU_CTabulation[[#This Row],[Days in month]] -> 325.5 | M118: =IF(TOU_CTabulation[[#This Row],[Month Cumm]]<=TOU_CTabulation[[#This Row],[Month Base Allow]],VLOOKUP(TOU_CTabulation[[#This Row],[Season+ Daypart]],TOUC,2),VLOOKUP(TOU_CTabulation[[#This Row],[Season+ Daypart]],TOUC,2)+0.07584) -> 0.2452 | N118: =TOU_CTabulation[[#This Row],[AC System Output (kW)]]*TOU_CTabulation[[#This Row],[Rate]] -> 0
A119: 1 | B119: 4 | C119: 18 | D119: =DAY(EOMONTH(DATE(2021,TOU_CTabulation[[#This Row],[Month]],TOU_CTabulation[[#This Row],[Day]]),0)) -> 31 | E119: =VLOOKUP(TOU_CTabulation[[#This Row],[Month]],SeasonTable,2) -> Winter | F119: 0 | G119: =VLOOKUP(TOU_CTabulation[[#This Row],[Hour]],daypart,2) -> Peak | H119: =CONCATENATE(TOU_CTabulation[[#This Row],[Season]],TOU_CTabulation[[#This Row],[Day-Part]]) -> WinterPeak | I119: 0 | J119: =TOU_CTabulation[[#This Row],[AC System Output (W)]]/1000 -> 0 | K119: =IF(TOU_CTabulation[[#This Row],[Month]]=A117,K118+TOU_CTabulation[[#This Row],[AC System Output (kW)]],TOU_CTabulation[[#This Row],[AC System Output (kW)]]) -> 58.025175 | L119: =VLOOKUP(TOU_CTabulation[[#This Row],[Season]],Baseline,2)*TOU_CTabulation[[#This Row],[Days in month]] -> 325.5 | M119: =IF(TOU_CTabulation[[#This Row],[Month Cumm]]<=TOU_CTabulation[[#This Row],[Month Base Allow]],VLOOKUP(TOU_CTabulation[[#This Row],[Season+ Daypart]],TOUC,2),VLOOKUP(TOU_CTabulation[[#This Row],[Season+ Daypart]],TOUC,2)+0.07584) -> 0.2452 | N119: =TOU_CTabulation[[#This Row],[AC System Output (kW)]]*TOU_CTabulation[[#This Row],[Rate]] -> 0
A120: 1 | B120: 4 | C120: 19 | D120: =DAY(EOMONTH(DATE(2021,TOU_CTabulation[[#This Row],[Month]],TOU_CTabulation[[#This Row],[Day]]),0)) -> 31 | E120: =VLOOKUP(TOU_CTabulation[[#This Row],[Month]],SeasonTable,2) -> Winter | F120: 0 | G120: =VLOOKUP(TOU_CTabulation[[#This Row],[Hour]],daypart,2) -> Peak | H120: =CONCATENATE(TOU_CTabulation[[#This Row],[Season]],TOU_CTabulation[[#This Row],[Day-Part]]) -> WinterPeak | I120: 0 | J120: =TOU_CTabulation[[#This Row],[AC System Output (W)]]/1000 -> 0 | K120: =IF(TOU_CTabulation[[#This Row],[Month]]=A118,K119+TOU_CTabulation[[#This Row],[AC System Output (kW)]],TOU_CTabulation[[#This Row],[AC System Output (kW)]]) -> 58.025175 | L120: =VLOOKUP(TOU_CTabulation[[#This Row],[Season]],Baseline,2)*TOU_CTabulation[[#This Row],[Days in month]] -> 325.5 | M120: =IF(TOU_CTabulation[[#This Row],[Month Cumm]]<=TOU_CTabulation[[#This Row],[Month Base Allow]],VLOOKUP(TOU_CTabulation[[#This Row],[Season+ Daypart]],TOUC,2),VLOOKUP(TOU_CTabulation[[#This Row],[Season+ Daypart]],TOUC,2)+0.07584) -> 0.2452 | N120: =TOU_CTabulation[[#This Row],[AC System Output (kW)]]*TOU_CTabulation[[#This Row],[Rate]] -> 0
A121: 1 | B121: 4 | C121: 20 | D121: =DAY(EOMONTH(DATE(2021,TOU_CTabulation[[#This Row],[Month]],TOU_CTabulation[[#This Row],[Day]]),0)) -> 31 | E121: =VLOOKUP(TOU_CTabulation[[#This Row],[Month]],SeasonTable,2) -> Winter | F121: 0 | G121: =VLOOKUP(TOU_CTabulation[[#This Row],[Hour]],daypart,2) -> Peak | H121: =CONCATENATE(TOU_CTabulation[[#This Row],[Season]],TOU_CTabulation[[#This Row],[Day-Part]]) -> WinterPeak | I121: 0 | J121: =TOU_CTabulation[[#This Row],[AC System Output (W)]]/1000 -> 0 | K121: =IF(TOU_CTabulation[[#This Row],[Month]]=A119,K120+TOU_CTabulation[[#This Row],[AC System Output (kW)]],TOU_CTabulation[[#This Row],[AC System Output (kW)]]) -> 58.025175 | L121: =VLOOKUP(TOU_CTabulation[[#This Row],[Season]],Baseline,2)*TOU_CTabulation[[#This Row],[Days in month]] -> 325.5 | M121: =IF(TOU_CTabulation[[#This Row],[Month Cumm]]<=TOU_CTabulation[[#This Row],[Month Base Allow]],VLOOKUP(TOU_CTabulation[[#This Row],[Season+ Daypart]],TOUC,2),VLOOKUP(TOU_CTabulation[[#This Row],[Season+ Daypart]],TOUC,2)+0.07584) -> 0.2452 | N121: =TOU_CTabulation[[#This Row],[AC System Output (kW)]]*TOU_CTabulation[[#This Row],[Rate]] -> 0
A122: 1 | B122: 4 | C122: 21 | D122: =DAY(EOMONTH(DATE(2021,TOU_CTabulation[[#This Row],[Month]],TOU_CTabulation[[#This Row],[Day]]),0)) -> 31 | E122: =VLOOKUP(TOU_CTabulation[[#This Row],[Month]],SeasonTable,2) -> Winter | F122: 0 | G122: =VLOOKUP(TOU_CTabulation[[#This Row],[Hour]],daypart,2) -> Off | H122: =CONCATENATE(TOU_CTabulation[[#This Row],[Season]],TOU_CTabulation[[#This Row],[Day-Part]]) -> WinterOff | I122: 0 | J122: =TOU_CTabulation[[#This Row],[AC System Output (W)]]/1000 -> 0 | K122: =IF(TOU_CTabulation[[#This Row],[Month]]=A120,K121+TOU_CTabulation[[#This Row],[AC System Output (kW)]],TOU_CTabulation[[#This Row],[AC System Output (kW)]]) -> 58.025175 | L122: =VLOOKUP(TOU_CTabulation[[#This Row],[Season]],Baseline,2)*TOU_CTabulation[[#This Row],[Days in month]] -> 325.5 | M122: =IF(TOU_CTabulation[[#This Row],[Month Cumm]]<=TOU_CTabulation[[#This Row],[Month Base Allow]],VLOOKUP(TOU_CTabulation[[#This Row],[Season+ Daypart]],TOUC,2),VLOOKUP(TOU_CTabulation[[#This Row],[Season+ Daypart]],TOUC,2)+0.07584) -> 0.22788 | N122: =TOU_CTabulation[[#This Row],[AC System Output (kW)]]*TOU_CTabulation[[#This Row],[Rate]] -> 0
A123: 1 | B123: 4 | C123: 22 | D123: =DAY(EOMONTH(DATE(2021,TOU_CTabulation[[#This Row],[Month]],TOU_CTabulation[[#This Row],[Day]]),0)) -> 31 | E123: =VLOOKUP(TOU_CTabulation[[#This Row],[Month]],SeasonTable,2) -> Winter | F123: 0 | G123: =VLOOKUP(TOU_CTabulation[[#This Row],[Hour]],daypart,2) -> Off | H123: =CONCATENATE(TOU_CTabulation[[#This Row],[Season]],TOU_CTabulation[[#This Row],[Day-Part]]) -> WinterOff | I123: 0 | J123: =TOU_CTabulation[[#This Row],[AC System Output (W)]]/1000 -> 0 | K123: =IF(TOU_CTabulation[[#This Row],[Month]]=A121,K122+TOU_CTabulation[[#This Row],[AC System Output (kW)]],TOU_CTabulation[[#This Row],[AC System Output (kW)]]) -> 58.025175 | L123: =VLOOKUP(TOU_CTabulation[[#This Row],[Season]],Baseline,2)*TOU_CTabulation[[#This Row],[Days in month]] -> 325.5 | M123: =IF(TOU_CTabulation[[#This Row],[Month Cumm]]<=TOU_CTabulation[[#This Row],[Month Base Allow]],VLOOKUP(TOU_CTabulation[[#This Row],[Season+ Daypart]],TOUC,2),VLOOKUP(TOU_CTabulation[[#This Row],[Season+ Daypart]],TOUC,2)+0.07584) -> 0.22788 | N123: =TOU_CTabulation[[#This Row],[AC System Output (kW)]]*TOU_CTabulation[[#This Row],[Rate]] -> 0
A124: 1 | B124: 4 | C124: 23 | D124: =DAY(EOMONTH(DATE(2021,TOU_CTabulation[[#This Row],[Month]],TOU_CTabulation[[#This Row],[Day]]),0)) -> 31 | E124: =VLOOKUP(TOU_CTabulation[[#This Row],[Month]],SeasonTable,2) -> Winter | F124: 0 | G124: =VLOOKUP(TOU_CTabulation[[#This Row],[Hour]],daypart,2) -> Off | H124: =CONCATENATE(TOU_CTabulation[[#This Row],[Season]],TOU_CTabulation[[#This Row],[Day-Part]]) -> WinterOff | I124: 0 | J124: =TOU_CTabulation[[#This Row],[AC System Output (W)]]/1000 -> 0 | K124: =IF(TOU_CTabulation[[#This Row],[Month]]=A122,K123+TOU_CTabulation[[#This Row],[AC System Output (kW)]],TOU_CTabulation[[#This Row],[AC System Output (kW)]]) -> 58.025175 | L124: =VLOOKUP(TOU_CTabulation[[#This Row],[Season]],Baseline,2)*TOU_CTabulation[[#This Row],[Days in month]] -> 325.5 | M124: =IF(TOU_CTabulation[[#This Row],[Month Cumm]]<=TOU_CTabulation[[#This Row],[Month Base Allow]],VLOOKUP(TOU_CTabulation[[#This Row],[Season+ Daypart]],TOUC,2),VLOOKUP(TOU_CTabulation[[#This Row],[Season+ Daypart]],TOUC,2)+0.07584) -> 0.22788 | N124: =TOU_CTabulation[[#This Row],[AC System Output (kW)]]*TOU_CTabulation[[#This Row],[Rate]] -> 0
A125: 1 | B125: 5 | C125: 0 | D125: =DAY(EOMONTH(DATE(2021,TOU_CTabulation[[#This Row],[Month]],TOU_CTabulation[[#This Row],[Day]]),0)) -> 31 | E125: =VLOOKUP(TOU_CTabulation[[#This Row],[Month]],SeasonTable,2) -> Winter | F125: 0 | G125: =VLOOKUP(TOU_CTabulation[[#This Row],[Hour]],daypart,2) -> Off | H125: =CONCATENATE(TOU_CTabulation[[#This Row],[Season]],TOU_CTabulation[[#This Row],[Day-Part]]) -> WinterOff | I125: 0 | J125: =TOU_CTabulation[[#This Row],[AC System Output (W)]]/1000 -> 0 | K125: =IF(TOU_CTabulation[[#This Row],[Month]]=A123,K124+TOU_CTabulation[[#This Row],[AC System Output (kW)]],TOU_CTabulation[[#This Row],[AC System Output (kW)]]) -> 58.025175 | L125: =VLOOKUP(TOU_CTabulation[[#This Row],[Season]],Baseline,2)*TOU_CTabulation[[#This Row],[Days in month]] -> 325.5 | M125: =IF(TOU_CTabulation[[#This Row],[Month Cumm]]<=TOU_CTabulation[[#This Row],[Month Base Allow]],VLOOKUP(TOU_CTabulation[[#This Row],[Season+ Daypart]],TOUC,2),VLOOKUP(TOU_CTabulation[[#This Row],[Season+ Daypart]],TOUC,2)+0.07584) -> 0.22788 | N125: =TOU_CTabulation[[#This Row],[AC System Output (kW)]]*TOU_CTabulation[[#This Row],[Rate]] -> 0
A126: 1 | B126: 5 | C126: 1 | D126: =DAY(EOMONTH(DATE(2021,TOU_CTabulation[[#This Row],[Month]],TOU_CTabulation[[#This Row],[Day]]),0)) -> 31 | E126: =VLOOKUP(TOU_CTabulation[[#This Row],[Month]],SeasonTable,2) -> Winter | F126: 0 | G126: =VLOOKUP(TOU_CTabulation[[#This Row],[Hour]],daypart,2) -> Off | H126: =CONCATENATE(TOU_CTabulation[[#This Row],[Season]],TOU_CTabulation[[#This Row],[Day-Part]]) -> WinterOff | I126: 0 | J126: =TOU_CTabulation[[#This Row],[AC System Output (W)]]/1000 -> 0 | K126: =IF(TOU_CTabulation[[#This Row],[Month]]=A124,K125+TOU_CTabulation[[#This Row],[AC System Output (kW)]],TOU_CTabulation[[#This Row],[AC System Output (kW)]]) -> 58.025175 | L126: =VLOOKUP(TOU_CTabulation[[#This Row],[Season]],Baseline,2)*TOU_CTabulation[[#This Row],[Days in month]] -> 325.5 | M126: =IF(TOU_CTabulation[[#This Row],[Month Cumm]]<=TOU_CTabulation[[#This Row],[Month Base Allow]],VLOOKUP(TOU_CTabulation[[#This Row],[Season+ Daypart]],TOUC,2),VLOOKUP(TOU_CTabulation[[#This Row],[Season+ Daypart]],TOUC,2)+0.07584) -> 0.22788 | N126: =TOU_CTabulation[[#This Row],[AC System Output (kW)]]*TOU_CTabulation[[#This Row],[Rate]] -> 0
A127: 1 | B127: 5 | C127: 2 | D127: =DAY(EOMONTH(DATE(2021,TOU_CTabulation[[#This Row],[Month]],TOU_CTabulation[[#This Row],[Day]]),0)) -> 31 | E127: =VLOOKUP(TOU_CTabulation[[#This Row],[Month]],SeasonTable,2) -> Winter | F127: 0 | G127: =VLOOKUP(TOU_CTabulation[[#This Row],[Hour]],daypart,2) -> Off | H127: =CONCATENATE(TOU_CTabulation[[#This Row],[Season]],TOU_CTabulation[[#This Row],[Day-Part]]) -> WinterOff | I127: 0 | J127: =TOU_CTabulation[[#This Row],[AC System Output (W)]]/1000 -> 0 | K127: =IF(TOU_CTabulation[[#This Row],[Month]]=A125,K126+TOU_CTabulation[[#This Row],[AC System Output (kW)]],TOU_CTabulation[[#This Row],[AC System Output (kW)]]) -> 58.025175 | L127: =VLOOKUP(TOU_CTabulation[[#This Row],[Season]],Baseline,2)*TOU_CTabulation[[#This Row],[Days in month]] -> 325.5 | M127: =IF(TOU_CTabulation[[#This Row],[Month Cumm]]<=TOU_CTabulation[[#This Row],[Month Base Allow]],VLOOKUP(TOU_CTabulation[[#This Row],[Season+ Daypart]],TOUC,2),VLOOKUP(TOU_CTabulation[[#This Row],[Season+ Daypart]],TOUC,2)+0.07584) -> 0.22788 | N127: =TOU_CTabulation[[#This Row],[AC System Output (kW)]]*TOU_CTabulation[[#This Row],[Rate]] -> 0
A128: 1 | B128: 5 | C128: 3 | D128: =DAY(EOMONTH(DATE(2021,TOU_CTabulation[[#This Row],[Month]],TOU_CTabulation[[#This Row],[Day]]),0)) -> 31 | E128: =VLOOKUP(TOU_CTabulation[[#This Row],[Month]],SeasonTable,2) -> Winter | F128: 0 | G128: =VLOOKUP(TOU_CTabulation[[#This Row],[Hour]],daypart,2) -> Off | H128: =CONCATENATE(TOU_CTabulation[[#This Row],[Season]],TOU_CTabulation[[#This Row],[Day-Part]]) -> WinterOff | I128: 0 | J128: =TOU_CTabulation[[#This Row],[AC System Output (W)]]/1000 -> 0 | K128: =IF(TOU_CTabulation[[#This Row],[Month]]=A126,K127+TOU_CTabulation[[#This Row],[AC System Output (kW)]],TOU_CTabulation[[#This Row],[AC System Output (kW)]]) -> 58.025175 | L128: =VLOOKUP(TOU_CTabulation[[#This Row],[Season]],Baseline,2)*TOU_CTabulation[[#This Row],[Days in month]] -> 325.5 | M128: =IF(TOU_CTabulation[[#This Row],[Month Cumm]]<=TOU_CTabulation[[#This Row],[Month Base Allow]],VLOOKUP(TOU_CTabulation[[#This Row],[Season+ Daypart]],TOUC,2),VLOOKUP(TOU_CTabulation[[#This Row],[Season+ Daypart]],TOUC,2)+0.07584) -> 0.22788 | N128: =TOU_CTabulation[[#This Row],[AC System Output (kW)]]*TOU_CTabulation[[#This Row],[Rate]] -> 0
A129: 1 | B129: 5 | C129: 4 | D129: =DAY(EOMONTH(DATE(2021,TOU_CTabulation[[#This Row],[Month]],TOU_CTabulation[[#This Row],[Day]]),0)) -> 31 | E129: =VLOOKUP(TOU_CTabulation[[#This Row],[Month]],SeasonTable,2) -> Winter | F129: 0 | G129: =VLOOKUP(TOU_CTabulation[[#This Row],[Hour]],daypart,2) -> Off | H129: =CONCATENATE(TOU_CTabulation[[#This Row],[Season]],TOU_CTabulation[[#This Row],[Day-Part]]) -> WinterOff | I129: 0 | J129: =TOU_CTabulation[[#This Row],[AC System Output (W)]]/1000 -> 0 | K129: =IF(TOU_CTabulation[[#This Row],[Month]]=A127,K128+TOU_CTabulation[[#This Row],[AC System Output (kW)]],TOU_CTabulation[[#This Row],[AC System Output (kW)]]) -> 58.025175 | L129: =VLOOKUP(TOU_CTabulation[[#This Row],[Season]],Baseline,2)*TOU_CTabulation[[#This Row],[Days in month]] -> 325.5 | M129: =IF(TOU_CTabulation[[#This Row],[Month Cumm]]<=TOU_CTabulation[[#This Row],[Month Base Allow]],VLOOKUP(TOU_CTabulation[[#This Row],[Season+ Daypart]],TOUC,2),VLOOKUP(TOU_CTabulation[[#This Row],[Season+ Daypart]],TOUC,2)+0.07584) -> 0.22788 | N129: =TOU_CTabulation[[#This Row],[AC System Output (kW)]]*TOU_CTabulation[[#This Row],[Rate]] -> 0
A130: 1 | B130: 5 | C130: 5 | D130: =DAY(EOMONTH(DATE(2021,TOU_CTabulation[[#This Row],[Month]],TOU_CTabulation[[#This Row],[Day]]),0)) -> 31 | E130: =VLOOKUP(TOU_CTabulation[[#This Row],[Month]],SeasonTable,2) -> Winter | F130: 0 | G130: =VLOOKUP(TOU_CTabulation[[#This Row],[Hour]],daypart,2) -> Off | H130: =CONCATENATE(TOU_CTabulation[[#This Row],[Season]],TOU_CTabulation[[#This Row],[Day-Part]]) -> WinterOff | I130: 0 | J130: =TOU_CTabulation[[#This Row],[AC System Output (W)]]/1000 -> 0 | K130: =IF(TOU_CTabulation[[#This Row],[Month]]=A128,K129+TOU_CTabulation[[#This Row],[AC System Output (kW)]],TOU_CTabulation[[#This Row],[AC System Output (kW)]]) -> 58.025175 | L130: =VLOOKUP(TOU_CTabulation[[#This Row],[Season]],Baseline,2)*TOU_CTabulation[[#This Row],[Days in month]] -> 325.5 | M130: =IF(TOU_CTabulation[[#This Row],[Month Cumm]]<=TOU_CTabulation[[#This Row],[Month Base Allow]],VLOOKUP(TOU_CTabulation[[#This Row],[Season+ Daypart]],TOUC,2),VLOOKUP(TOU_CTabulation[[#This Row],[Season+ Daypart]],TOUC,2)+0.07584) -> 0.22788 | N130: =TOU_CTabulation[[#This Row],[AC System Output (kW)]]*TOU_CTabulation[[#This Row],[Rate]] -> 0
A131: 1 | B131: 5 | C131: 6 | D131: =DAY(EOMONTH(DATE(2021,TOU_CTabulation[[#This Row],[Month]],TOU_CTabulation[[#This Row],[Day]]),0)) -> 31 | E131: =VLOOKUP(TOU_CTabulation[[#This Row],[Month]],SeasonTable,2) -> Winter | F131: 0 | G131: =VLOOKUP(TOU_CTabulation[[#This Row],[Hour]],daypart,2) -> Off | H131: =CONCATENATE(TOU_CTabulation[[#This Row],[Season]],TOU_CTabulation[[#This Row],[Day-Part]]) -> WinterOff | I131: 0 | J131: =TOU_CTabulation[[#This Row],[AC System Output (W)]]/1000 -> 0 | K131: =IF(TOU_CTabulation[[#This Row],[Month]]=A129,K130+TOU_CTabulation[[#This Row],[AC System Output (kW)]],TOU_CTabulation[[#This Row],[AC System Output (kW)]]) -> 58.025175 | L131: =VLOOKUP(TOU_CTabulation[[#This Row],[Season]],Baseline,2)*TOU_CTabulation[[#This Row],[Days in month]] -> 325.5 | M131: =IF(TOU_CTabulation[[#This Row],[Month Cumm]]<=TOU_CTabulation[[#This Row],[Month Base Allow]],VLOOKUP(TOU_CTabulation[[#This Row],[Season+ Daypart]],TOUC,2),VLOOKUP(TOU_CTabulation[[#This Row],[Season+ Daypart]],TOUC,2)+0.07584) -> 0.22788 | N131: =TOU_CTabulation[[#This Row],[AC System Output (kW)]]*TOU_CTabulation[[#This Row],[Rate]] -> 0
A132: 1 | B132: 5 | C132: 7 | D132: =DAY(EOMONTH(DATE(2021,TOU_CTabulation[[#This Row],[Month]],TOU_CTabulation[[#This Row],[Day]]),0)) -> 31 | E132: =VLOOKUP(TOU_CTabulation[[#This Row],[Month]],SeasonTable,2) -> Winter | F132: 57.139 | G132: =VLOOKUP(TOU_CTabulation[[#This Row],[Hour]],daypart,2) -> Off | H132: =CONCATENATE(TOU_CTabulation[[#This Row],[Season]],TOU_CTabulation[[#This Row],[Day-Part]]) -> WinterOff | I132: 35.689 | J132: =TOU_CTabulation[[#This Row],[AC System Output (W)]]/1000 -> 0.035689 | K132: =IF(TOU_CTabulation[[#This Row],[Month]]=A130,K131+TOU_CTabulation[[#This Row],[AC System Output (kW)]],TOU_CTabulation[[#This Row],[AC System Output (kW)]]) -> 58.060864 | L132: =VLOOKUP(TOU_CTabulation[[#This Row],[Season]],Baseline,2)*TOU_CTabulation[[#This Row],[Days in month]] -> 325.5 | M132: =IF(TOU_CTabulation[[#This Row],[Month Cumm]]<=TOU_CTabulation[[#This Row],[Month Base Allow]],VLOOKUP(TOU_CTabulation[[#This Row],[Season+ Daypart]],TOUC,2),VLOOKUP(TOU_CTabulation[[#This Row],[Season+ Daypart]],TOUC,2)+0.07584) -> 0.22788 | N132: =TOU_CTabulation[[#This Row],[AC System Output (kW)]]*TOU_CTabulation[[#This Row],[Rate]] -> 0.00813280932
A133: 1 | B133: 5 | C133: 8 | D133: =DAY(EOMONTH(DATE(2021,TOU_CTabulation[[#This Row],[Month]],TOU_CTabulation[[#This Row],[Day]]),0)) -> 31 | E133: =VLOOKUP(TOU_CTabulation[[#This Row],[Month]],SeasonTable,2) -> Winter | F133: 565.5 | G133: =VLOOKUP(TOU_CTabulation[[#This Row],[Hour]],daypart,2) -> Off | H133: =CONCATENATE(TOU_CTabulation[[#This Row],[Season]],TOU_CTabulation[[#This Row],[Day-Part]]) -> WinterOff | I133: 533.435 | J133: =TOU_CTabulation[[#This Row],[AC System Output (W)]]/1000 -> 0.533435 | K133: =IF(TOU_CTabulation[[#This Row],[Month]]=A131,K132+TOU_CTabulation[[#This Row],[AC System Output (kW)]],TOU_CTabulation[[#This Row],[AC System Output (kW)]]) -> 58.594299 | L133: =VLOOKUP(TOU_CTabulation[[#This Row],[Season]],Baseline,2)*TOU_CTabulation[[#This Row],[Days in month]] -> 325.5 | M133: =IF(TOU_CTabulation[[#This Row],[Month Cumm]]<=TOU_CTabulation[[#This Row],[Month Base Allow]],VLOOKUP(TOU_CTabulation[[#This Row],[Season+ Daypart]],TOUC,2),VLOOKUP(TOU_CTabulation[[#This Row],[Season+ Daypart]],TOUC,2)+0.07584) -> 0.22788 | N133: =TOU_CTabulation[[#This Row],[AC System Output (kW)]]*TOU_CTabulation[[#This Row],[Rate]] -> 0.1215591678
A134: 1 | B134: 5 | C134: 9 | D134: =DAY(EOMONTH(DATE(2021,TOU_CTabulation[[#This Row],[Month]],TOU_CTabulation[[#This Row],[Day]]),0)) -> 31 | E134: =VLOOKUP(TOU_CTabulation[[#This Row],[Month]],SeasonTable,2) -> Winter | F134: 1284.462 | G134: =VLOOKUP(TOU_CTabulation[[#This Row],[Hour]],daypart,2) -> Off | H134: =CONCATENATE(TOU_CTabulation[[#This Row],[Season]],TOU_CTabulation[[#This Row],[Day-Part]]) -> WinterOff | I134: 1233.285 | J134: =TOU_CTabulation[[#This Row],[AC System Output (W)]]/1000 -> 1.233285 | K134: =IF(TOU_CTabulation[[#This Row],[Month]]=A132,K133+TOU_CTabulation[[#This Row],[AC System Output (kW)]],TOU_CTabulation[[#This Row],[AC System Output (kW)]]) -> 59.827584 | L134: =VLOOKUP(TOU_CTabulation[[#This Row],[Season]],Baseline,2)*TOU_CTabulation[[#This Row],[Days in month]] -> 325.5 | M134: =IF(TOU_CTabulation[[#This Row],[Month Cumm]]<=TOU_CTabulation[[#This Row],[Month Base Allow]],VLOOKUP(TOU_CTabulation[[#This Row],[Season+ Daypart]],TOUC,2),VLOOKUP(TOU_CTabulation[[#This Row],[Season+ Daypart]],TOUC,2)+0.07584) -> 0.22788 | N134: =TOU_CTabulation[[#This Row],[AC System Output (kW)]]*TOU_CTabulation[[#This Row],[Rate]] -> 0.2810409858
A135: 1 | B135: 5 | C135: 10 | D135: =DAY(EOMONTH(DATE(2021,TOU_CTabulation[[#This Row],[Month]],TOU_CTabulation[[#This Row],[Day]]),0)) -> 31 | E135: =VLOOKUP(TOU_CTabulation[[#This Row],[Month]],SeasonTable,2) -> Winter | F135: 2459.701 | G135: =VLOOKUP(TOU_CTabulation[[#This Row],[Hour]],daypart,2) -> Off | H135: =CONCATENATE(TOU_CTabulation[[#This Row],[Season]],TOU_CTabulation[[#This Row],[Day-Part]]) -> WinterOff | I135: 2366.937 | J135: =TOU_CTabulation[[#This Row],[AC System Output (W)]]/1000 -> 2.366937 | K135: =IF(TOU_CTabulation[[#This Row],[Month]]=A133,K134+TOU_CTabulation[[#This Row],[AC System Output (kW)]],TOU_CTabulation[[#This Row],[AC System Output (kW)]]) -> 62.194521 | L135: =VLOOKUP(TOU_CTabulation[[#This Row],[Season]],Baseline,2)*TOU_CTabulation[[#This Row],[Days in month]] -> 325.5 | M135: =IF(TOU_CTabulation[[#This Row],[Month Cumm]]<=TOU_CTabulation[[#This Row],[Month Base Allow]],VLOOKUP(TOU_CTabulation[[#This Row],[Season+ Daypart]],TOUC,2),VLOOKUP(TOU_CTabulation[[#This Row],[Season+ Daypart]],TOUC,2)+0.07584) -> 0.22788 | N135: =TOU_CTabulation[[#This Row],[AC System Output (kW)]]*TOU_CTabulation[[#This Row],[Rate]] -> 0.5393776036
A136: 1 | B136: 5 | C136: 11 | D136: =DAY(EOMONTH(DATE(2021,TOU_CTabulation[[#This Row],[Month]],TOU_CTabulation[[#This Row],[Day]]),0)) -> 31 | E136: =VLOOKUP(TOU_CTabulation[[#This Row],[Month]],SeasonTable,2) -> Winter | F136: 2645.305 | G136: =VLOOKUP(TOU_CTabulation[[#This Row],[Hour]],daypart,2) -> Off | H136: =CONCATENATE(TOU_CTabulation[[#This Row],[Season]],TOU_CTabulation[[#This Row],[Day-Part]]) -> WinterOff | I136: 2544.8 | J136: =TOU_CTabulation[[#This Row],[AC System Output (W)]]/1000 -> 2.5448 | K136: =IF(TOU_CTabulation[[#This Row],[Month]]=A134,K135+TOU_CTabulation[[#This Row],[AC System Output (kW)]],TOU_CTabulation[[#This Row],[AC System Output (kW)]]) -> 64.739321 | L136: =VLOOKUP(TOU_CTabulation[[#This Row],[Season]],Baseline,2)*TOU_CTabulation[[#This Row],[Days in month]] -> 325.5 | M136: =IF(TOU_CTabulation[[#This Row],[Month Cumm]]<=TOU_CTabulation[[#This Row],[Month Base Allow]],VLOOKUP(TOU_CTabulation[[#This Row],[Season+ Daypart]],TOUC,2),VLOOKUP(TOU_CTabulation[[#This Row],[Season+ Daypart]],TOUC,2)+0.07584) -> 0.22788 | N136: =TOU_CTabulation[[#This Row],[AC System Output (kW)]]*TOU_CTabulation[[#This Row],[Rate]] -> 0.579909024
A137: 1 | B137: 5 | C137: 12 | D137: =DAY(EOMONTH(DATE(2021,TOU_CTabulation[[#This Row],[Month]],TOU_CTabulation[[#This Row],[Day]]),0)) -> 31 | E137: =VLOOKUP(TOU_CTabulation[[#This Row],[Month]],SeasonTable,2) -> Winter | F137: 1737.369 | G137: =VLOOKUP(TOU_CTabulation[[#This Row],[Hour]],daypart,2) -> Off | H137: =CONCATENATE(TOU_CTabulation[[#This Row],[Season]],TOU_CTabulation[[#This Row],[Day-Part]]) -> WinterOff | I137: 1671.686 | J137: =TOU_CTabulation[[#This Row],[AC System Output (W)]]/1000 -> 1.671686 | K137: =IF(TOU_CTabulation[[#This Row],[Month]]=A135,K136+TOU_CTabulation[[#This Row],[AC System Output (kW)]],TOU_CTabulation[[#This Row],[AC System Output (kW)]]) -> 66.411007 | L137: =VLOOKUP(TOU_CTabulation[[#This Row],[Season]],Baseline,2)*TOU_CTabulation[[#This Row],[Days in month]] -> 325.5 | M137: =IF(TOU_CTabulation[[#This Row],[Month Cumm]]<=TOU_CTabulation[[#This Row],[Month Base Allow]],VLOOKUP(TOU_CTabulation[[#This Row],[Season+ Daypart]],TOUC,2),VLOOKUP(TOU_CTabulation[[#This Row],[Season+ Daypart]],TOUC,2)+0.07584) -> 0.22788 | N137: =TOU_CTabulation[[#This Row],[AC System Output (kW)]]*TOU_CTabulation[[#This Row],[Rate]] -> 0.3809438057
A138: 1 | B138: 5 | C138: 13 | D138: =DAY(EOMONTH(DATE(2021,TOU_CTabulation[[#This Row],[Month]],TOU_CTabulation[[#This Row],[Day]]),0)) -> 31 | E138: =VLOOKUP(TOU_CTabulation[[#This Row],[Month]],SeasonTable,2) -> Winter | F138: 1973.941 | G138: =VLOOKUP(TOU_CTabulation[[#This Row],[Hour]],daypart,2) -> Off | H138: =CONCATENATE(TOU_CTabulation[[#This Row],[Season]],TOU_CTabulation[[#This Row],[Day-Part]]) -> WinterOff | I138: 1899.923 | J138: =TOU_CTabulation[[#This Row],[AC System Output (W)]]/1000 -> 1.899923 | K138: =IF(TOU_CTabulation[[#This Row],[Month]]=A136,K137+TOU_CTabulation[[#This Row],[AC System Output (kW)]],TOU_CTabulation[[#This Row],[AC System Output (kW)]]) -> 68.31093 | L138: =VLOOKUP(TOU_CTabulation[[#This Row],[Season]],Baseline,2)*TOU_CTabulation[[#This Row],[Days in month]] -> 325.5 | M138: =IF(TOU_CTabulation[[#This Row],[Month Cumm]]<=TOU_CTabulation[[#This Row],[Month Base Allow]],VLOOKUP(TOU_CTabulation[[#This Row],[Season+ Daypart]],TOUC,2),VLOOKUP(TOU_CTabulation[[#This Row],[Season+ Daypart]],TOUC,2)+0.07584) -> 0.22788 | N138: =TOU_CTabulation[[#This Row],[AC System Output (kW)]]*TOU_CTabulation[[#This Row],[Rate]] -> 0.4329544532
A139: 1 | B139: 5 | C139: 14 | D139: =DAY(EOMONTH(DATE(2021,TOU_CTabulation[[#This Row],[Month]],TOU_CTabulation[[#This Row],[Day]]),0)) -> 31 | E139: =VLOOKUP(TOU_CTabulation[[#This Row],[Month]],SeasonTable,2) -> Winter | F139: 1446.323 | G139: =VLOOKUP(TOU_CTabulation[[#This Row],[Hour]],daypart,2) -> Off | H139: =CONCATENATE(TOU_CTabulation[[#This Row],[Season]],TOU_CTabulation[[#This Row],[Day-Part]]) -> WinterOff | I139: 1390.181 | J139: =TOU_CTabulation[[#This Row],[AC System Output (W)]]/1000 -> 1.390181 | K139: =IF(TOU_CTabulation[[#This Row],[Month]]=A137,K138+TOU_CTabulation[[#This Row],[AC System Output (kW)]],TOU_CTabulation[[#This Row],[AC System Output (kW)]]) -> 69.701111 | L139: =VLOOKUP(TOU_CTabulation[[#This Row],[Season]],Baseline,2)*TOU_CTabulation[[#This Row],[Days in month]] -> 325.5 | M139: =IF(TOU_CTabulation[[#This Row],[Month Cumm]]<=TOU_CTabulation[[#This Row],[Month Base Allow]],VLOOKUP(TOU_CTabulation[[#This Row],[Season+ Daypart]],TOUC,2),VLOOKUP(TOU_CTabulation[[#This Row],[Season+ Daypart]],TOUC,2)+0.07584) -> 0.22788 | N139: =TOU_CTabulation[[#This Row],[AC System Output (kW)]]*TOU_CTabulation[[#This Row],[Rate]] -> 0.3167944463
A140: 1 | B140: 5 | C140: 15 | D140: =DAY(EOMONTH(DATE(2021,TOU_CTabulation[[#This Row],[Month]],TOU_CTabulation[[#This Row],[Day]]),0)) -> 31 | E140: =VLOOKUP(TOU_CTabulation[[#This Row],[Month]],SeasonTable,2) -> Winter | F140: 1039.817 | G140: =VLOOKUP(TOU_CTabulation[[#This Row],[Hour]],daypart,2) -> Off | H140: =CONCATENATE(TOU_CTabulation[[#This Row],[Season]],TOU_CTabulation[[#This Row],[Day-Part]]) -> WinterOff | I140: 995.684 | J140: =TOU_CTabulation[[#This Row],[AC System Output (W)]]/1000 -> 0.995684 | K140: =IF(TOU_CTabulation[[#This Row],[Month]]=A138,K139+TOU_CTabulation[[#This Row],[AC System Output (kW)]],TOU_CTabulation[[#This Row],[AC System Output (kW)]]) -> 70.696795 | L140: =VLOOKUP(TOU_CTabulation[[#This Row],[Season]],Baseline,2)*TOU_CTabulation[[#This Row],[Days in month]] -> 325.5 | M140: =IF(TOU_CTabulation[[#This Row],[Month Cumm]]<=TOU_CTabulation[[#This Row],[Month Base Allow]],VLOOKUP(TOU_CTabulation[[#This Row],[Season+ Daypart]],TOUC,2),VLOOKUP(TOU_CTabulation[[#This Row],[Season+ Daypart]],TOUC,2)+0.07584) -> 0.22788 | N140: =TOU_CTabulation[[#This Row],[AC System Output (kW)]]*TOU_CTabulation[[#This Row],[Rate]] -> 0.2268964699
A141: 1 | B141: 5 | C141: 16 | D141: =DAY(EOMONTH(DATE(2021,TOU_CTabulation[[#This Row],[Month]],TOU_CTabulation[[#This Row],[Day]]),0)) -> 31 | E141: =VLOOKUP(TOU_CTabulation[[#This Row],[Month]],SeasonTable,2) -> Winter | F141: 280.248 | G141: =VLOOKUP(TOU_CTabulation[[#This Row],[Hour]],daypart,2) -> Peak | H141: =CONCATENATE(TOU_CTabulation[[#This Row],[Season]],TOU_CTabulation[[#This Row],[Day-Part]]) -> WinterPeak | I141: 254.435 | J141: =TOU_CTabulation[[#This Row],[AC System Output (W)]]/1000 -> 0.254435 | K141: =IF(TOU_CTabulation[[#This Row],[Month]]=A139,K140+TOU_CTabulation[[#This Row],[AC System Output (kW)]],TOU_CTabulation[[#This Row],[AC System Output (kW)]]) -> 70.95123 | L141: =VLOOKUP(TOU_CTabulation[[#This Row],[Season]],Baseline,2)*TOU_CTabulation[[#This Row],[Days in month]] -> 325.5 | M141: =IF(TOU_CTabulation[[#This Row],[Month Cumm]]<=TOU_CTabulation[[#This Row],[Month Base Allow]],VLOOKUP(TOU_CTabulation[[#This Row],[Season+ Daypart]],TOUC,2),VLOOKUP(TOU_CTabulation[[#This Row],[Season+ Daypart]],TOUC,2)+0.07584) -> 0.2452 | N141: =TOU_CTabulation[[#This Row],[AC System Output (kW)]]*TOU_CTabulation[[#This Row],[Rate]] -> 0.062387462
A142: 1 | B142: 5 | C142: 17 | D142: =DAY(EOMONTH(DATE(2021,TOU_CTabulation[[#This Row],[Month]],TOU_CTabulation[[#This Row],[Day]]),0)) -> 31 | E142: =VLOOKUP(TOU_CTabulation[[#This Row],[Month]],SeasonTable,2) -> Winter | F142: 0 | G142: =VLOOKUP(TOU_CTabulation[[#This Row],[Hour]],daypart,2) -> Peak | H142: =CONCATENATE(TOU_CTabulation[[#This Row],[Season]],TOU_CTabulation[[#This Row],[Day-Part]]) -> WinterPeak | I142: 0 | J142: =TOU_CTabulation[[#This Row],[AC System Output (W)]]/1000 -> 0 | K142: =IF(TOU_CTabulation[[#This Row],[Month]]=A140,K141+TOU_CTabulation[[#This Row],[AC System Output (kW)]],TOU_CTabulation[[#This Row],[AC System Output (kW)]]) -> 70.95123 | L142: =VLOOKUP(TOU_CTabulation[[#This Row],[Season]],Baseline,2)*TOU_CTabulation[[#This Row],[Days in month]] -> 325.5 | M142: =IF(TOU_CTabulation[[#This Row],[Month Cumm]]<=TOU_CTabulation[[#This Row],[Month Base Allow]],VLOOKUP(TOU_CTabulation[[#This Row],[Season+ Daypart]],TOUC,2),VLOOKUP(TOU_CTabulation[[#This Row],[Season+ Daypart]],TOUC,2)+0.07584) -> 0.2452 | N142: =TOU_CTabulation[[#This Row],[AC System Output (kW)]]*TOU_CTabulation[[#This Row],[Rate]] -> 0
A143: 1 | B143: 5 | C143: 18 | D143: =DAY(EOMONTH(DATE(2021,TOU_CTabulation[[#This Row],[Month]],TOU_CTabulation[[#This Row],[Day]]),0)) -> 31 | E143: =VLOOKUP(TOU_CTabulation[[#This Row],[Month]],SeasonTable,2) -> Winter | F143: 0 | G143: =VLOOKUP(TOU_CTabulation[[#This Row],[Hour]],daypart,2) -> Peak | H143: =CONCATENATE(TOU_CTabulation[[#This Row],[Season]],TOU_CTabulation[[#This Row],[Day-Part]]) -> WinterPeak | I143: 0 | J143: =TOU_CTabulation[[#This Row],[AC System Output (W)]]/1000 -> 0 | K143: =IF(TOU_CTabulation[[#This Row],[Month]]=A141,K142+TOU_CTabulation[[#This Row],[AC System Output (kW)]],TOU_CTabulation[[#This Row],[AC System Output (kW)]]) -> 70.95123 | L143: =VLOOKUP(TOU_CTabulation[[#This Row],[Season]],Baseline,2)*TOU_CTabulation[[#This Row],[Days in month]] -> 325.5 | M143: =IF(TOU_CTabulation[[#This Row],[Month Cumm]]<=TOU_CTabulation[[#This Row],[Month Base Allow]],VLOOKUP(TOU_CTabulation[[#This Row],[Season+ Daypart]],TOUC,2),VLOOKUP(TOU_CTabulation[[#This Row],[Season+ Daypart]],TOUC,2)+0.07584) -> 0.2452 | N143: =TOU_CTabulation[[#This Row],[AC System Output (kW)]]*TOU_CTabulation[[#This Row],[Rate]] -> 0
A144: 1 | B144: 5 | C144: 19 | D144: =DAY(EOMONTH(DATE(2021,TOU_CTabulation[[#This Row],[Month]],TOU_CTabulation[[#This Row],[Day]]),0)) -> 31 | E144: =VLOOKUP(TOU_CTabulation[[#This Row],[Month]],SeasonTable,2) -> Winter | F144: 0 | G144: =VLOOKUP(TOU_CTabulation[[#This Row],[Hour]],daypart,2) -> Peak | H144: =CONCATENATE(TOU_CTabulation[[#This Row],[Season]],TOU_CTabulation[[#This Row],[Day-Part]]) -> WinterPeak | I144: 0 | J144: =TOU_CTabulation[[#This Row],[AC System Output (W)]]/1000 -> 0 | K144: =IF(TOU_CTabulation[[#This Row],[Month]]=A142,K143+TOU_CTabulation[[#This Row],[AC System Output (kW)]],TOU_CTabulation[[#This Row],[AC System Output (kW)]]) -> 70.95123 | L144: =VLOOKUP(TOU_CTabulation[[#This Row],[Season]],Baseline,2)*TOU_CTabulation[[#This Row],[Days in month]] -> 325.5 | M144: =IF(TOU_CTabulation[[#This Row],[Month Cumm]]<=TOU_CTabulation[[#This Row],[Month Base Allow]],VLOOKUP(TOU_CTabulation[[#This Row],[Season+ Daypart]],TOUC,2),VLOOKUP(TOU_CTabulation[[#This Row],[Season+ Daypart]],TOUC,2)+0.07584) -> 0.2452 | N144: =TOU_CTabulation[[#This Row],[AC System Output (kW)]]*TOU_CTabulation[[#This Row],[Rate]] -> 0
A145: 1 | B145: 5 | C145: 20 | D145: =DAY(EOMONTH(DATE(2021,TOU_CTabulation[[#This Row],[Month]],TOU_CTabulation[[#This Row],[Day]]),0)) -> 31 | E145: =VLOOKUP(TOU_CTabulation[[#This Row],[Month]],SeasonTable,2) -> Winter | F145: 0 | G145: =VLOOKUP(TOU_CTabulation[[#This Row],[Hour]],daypart,2) -> Peak | H145: =CONCATENATE(TOU_CTabulation[[#This Row],[Season]],TOU_CTabulation[[#This Row],[Day-Part]]) -> WinterPeak | I145: 0 | J145: =TOU_CTabulation[[#This Row],[AC System Output (W)]]/1000 -> 0 | K145: =IF(TOU_CTabulation[[#This Row],[Month]]=A143,K144+TOU_CTabulation[[#This Row],[AC System Output (kW)]],TOU_CTabulation[[#This Row],[AC System Output (kW)]]) -> 70.95123 | L145: =VLOOKUP(TOU_CTabulation[[#This Row],[Season]],Baseline,2)*TOU_CTabulation[[#This Row],[Days in month]] -> 325.5 | M145: =IF(TOU_CTabulation[[#This Row],[Month Cumm]]<=TOU_CTabulation[[#This Row],[Month Base Allow]],VLOOKUP(TOU_CTabulation[[#This Row],[Season+ Daypart]],TOUC,2),VLOOKUP(TOU_CTabulation[[#This Row],[Season+ Daypart]],TOUC,2)+0.07584) -> 0.2452 | N145: =TOU_CTabulation[[#This Row],[AC System Output (kW)]]*TOU_CTabulation[[#This Row],[Rate]] -> 0
A146: 1 | B146: 5 | C146: 21 | D146: =DAY(EOMONTH(DATE(2021,TOU_CTabulation[[#This Row],[Month]],TOU_CTabulation[[#This Row],[Day]]),0)) -> 31 | E146: =VLOOKUP(TOU_CTabulation[[#This Row],[Month]],SeasonTable,2) -> Winter | F146: 0 | G146: =VLOOKUP(TOU_CTabulation[[#This Row],[Hour]],daypart,2) -> Off | H146: =CONCATENATE(TOU_CTabulation[[#This Row],[Season]],TOU_CTabulation[[#This Row],[Day-Part]]) -> WinterOff | I146: 0 | J146: =TOU_CTabulation[[#This Row],[AC System Output (W)]]/1000 -> 0 | K146: =IF(TOU_CTabulation[[#This Row],[Month]]=A144,K145+TOU_CTabulation[[#This Row],[AC System Output (kW)]],TOU_CTabulation[[#This Row],[AC System Output (kW)]]) -> 70.95123 | L146: =VLOOKUP(TOU_CTabulation[[#This Row],[Season]],Baseline,2)*TOU_CTabulation[[#This Row],[Days in month]] -> 325.5 | M146: =IF(TOU_CTabulation[[#This Row],[Month Cumm]]<=TOU_CTabulation[[#This Row],[Month Base Allow]],VLOOKUP(TOU_CTabulation[[#This Row],[Season+ Daypart]],TOUC,2),VLOOKUP(TOU_CTabulation[[#This Row],[Season+ Daypart]],TOUC,2)+0.07584) -> 0.22788 | N146: =TOU_CTabulation[[#This Row],[AC System Output (kW)]]*TOU_CTabulation[[#This Row],[Rate]] -> 0
A147: 1 | B147: 5 | C147: 22 | D147: =DAY(EOMONTH(DATE(2021,TOU_CTabulation[[#This Row],[Month]],TOU_CTabulation[[#This Row],[Day]]),0)) -> 31 | E147: =VLOOKUP(TOU_CTabulation[[#This Row],[Month]],SeasonTable,2) -> Winter | F147: 0 | G147: =VLOOKUP(TOU_CTabulation[[#This Row],[Hour]],daypart,2) -> Off | H147: =CONCATENATE(TOU_CTabulation[[#This Row],[Season]],TOU_CTabulation[[#This Row],[Day-Part]]) -> WinterOff | I147: 0 | J147: =TOU_CTabulation[[#This Row],[AC System Output (W)]]/1000 -> 0 | K147: =IF(TOU_CTabulation[[#This Row],[Month]]=A145,K146+TOU_CTabulation[[#This Row],[AC System Output (kW)]],TOU_CTabulation[[#This Row],[AC System Output (kW)]]) -> 70.95123 | L147: =VLOOKUP(TOU_CTabulation[[#This Row],[Season]],Baseline,2)*TOU_CTabulation[[#This Row],[Days in month]] -> 325.5 | M147: =IF(TOU_CTabulation[[#This Row],[Month Cumm]]<=TOU_CTabulation[[#This Row],[Month Base Allow]],VLOOKUP(TOU_CTabulation[[#This Row],[Season+ Daypart]],TOUC,2),VLOOKUP(TOU_CTabulation[[#This Row],[Season+ Daypart]],TOUC,2)+0.07584) -> 0.22788 | N147: =TOU_CTabulation[[#This Row],[AC System Output (kW)]]*TOU_CTabulation[[#This Row],[Rate]] -> 0
A148: 1 | B148: 5 | C148: 23 | D148: =DAY(EOMONTH(DATE(2021,TOU_CTabulation[[#This Row],[Month]],TOU_CTabulation[[#This Row],[Day]]),0)) -> 31 | E148: =VLOOKUP(TOU_CTabulation[[#This Row],[Month]],SeasonTable,2) -> Winter | F148: 0 | G148: =VLOOKUP(TOU_CTabulation[[#This Row],[Hour]],daypart,2) -> Off | H148: =CONCATENATE(TOU_CTabulation[[#This Row],[Season]],TOU_CTabulation[[#This Row],[Day-Part]]) -> WinterOff | I148: 0 | J148: =TOU_CTabulation[[#This Row],[AC System Output (W)]]/1000 -> 0 | K148: =IF(TOU_CTabulation[[#This Row],[Month]]=A146,K147+TOU_CTabulation[[#This Row],[AC System Output (kW)]],TOU_CTabulation[[#This Row],[AC System Output (kW)]]) -> 70.95123 | L148: =VLOOKUP(TOU_CTabulation[[#This Row],[Season]],Baseline,2)*TOU_CTabulation[[#This Row],[Days in month]] -> 325.5 | M148: =IF(TOU_CTabulation[[#This Row],[Month Cumm]]<=TOU_CTabulation[[#This Row],[Month Base Allow]],VLOOKUP(TOU_CTabulation[[#This Row],[Season+ Daypart]],TOUC,2),VLOOKUP(TOU_CTabulation[[#This Row],[Season+ Daypart]],TOUC,2)+0.07584) -> 0.22788 | N148: =TOU_CTabulation[[#This Row],[AC System Output (kW)]]*TOU_CTabulation[[#This Row],[Rate]] -> 0
A149: 1 | B149: 6 | C149: 0 | D149: =DAY(EOMONTH(DATE(2021,TOU_CTabulation[[#This Row],[Month]],TOU_CTabulation[[#This Row],[Day]]),0)) -> 31 | E149: =VLOOKUP(TOU_CTabulation[[#This Row],[Month]],SeasonTable,2) -> Winter | F149: 0 | G149: =VLOOKUP(TOU_CTabulation[[#This Row],[Hour]],daypart,2) -> Off | H149: =CONCATENATE(TOU_CTabulation[[#This Row],[Season]],TOU_CTabulation[[#This Row],[Day-Part]]) -> WinterOff | I149: 0 | J149: =TOU_CTabulation[[#This Row],[AC System Output (W)]]/1000 -> 0 | K149: =IF(TOU_CTabulation[[#This Row],[Month]]=A147,K148+TOU_CTabulation[[#This Row],[AC System Output (kW)]],TOU_CTabulation[[#This Row],[AC System Output (kW)]]) -> 70.95123 | L149: =VLOOKUP(TOU_CTabulation[[#This Row],[Season]],Baseline,2)*TOU_CTabulation[[#This Row],[Days in month]] -> 325.5 | M149: =IF(TOU_CTabulation[[#This Row],[Month Cumm]]<=TOU_CTabulation[[#This Row],[Month Base Allow]],VLOOKUP(TOU_CTabulation[[#This Row],[Season+ Daypart]],TOUC,2),VLOOKUP(TOU_CTabulation[[#This Row],[Season+ Daypart]],TOUC,2)+0.07584) -> 0.22788 | N149: =TOU_CTabulation[[#This Row],[AC System Output (kW)]]*TOU_CTabulation[[#This Row],[Rate]] -> 0
A150: 1 | B150: 6 | C150: 1 | D150: =DAY(EOMONTH(DATE(2021,TOU_CTabulation[[#This Row],[Month]],TOU_CTabulation[[#This Row],[Day]]),0)) -> 31 | E150: =VLOOKUP(TOU_CTabulation[[#This Row],[Month]],SeasonTable,2) -> Winter | F150: 0 | G150: =VLOOKUP(TOU_CTabulation[[#This Row],[Hour]],daypart,2) -> Off | H150: =CONCATENATE(TOU_CTabulation[[#This Row],[Season]],TOU_CTabulation[[#This Row],[Day-Part]]) -> WinterOff | I150: 0 | J150: =TOU_CTabulation[[#This Row],[AC System Output (W)]]/1000 -> 0 | K150: =IF(TOU_CTabulation[[#This Row],[Month]]=A148,K149+TOU_CTabulation[[#This Row],[AC System Output (kW)]],TOU_CTabulation[[#This Row],[AC System Output (kW)]]) -> 70.95123 | L150: =VLOOKUP(TOU_CTabulation[[#This Row],[Season]],Baseline,2)*TOU_CTabulation[[#This Row],[Days in month]] -> 325.5 | M150: =IF(TOU_CTabulation[[#This Row],[Month Cumm]]<=TOU_CTabulation[[#This Row],[Month Base Allow]],VLOOKUP(TOU_CTabulation[[#This Row],[Season+ Daypart]],TOUC,2),VLOOKUP(TOU_CTabulation[[#This Row],[Season+ Daypart]],TOUC,2)+0.07584) -> 0.22788 | N150: =TOU_CTabulation[[#This Row],[AC System Output (kW)]]*TOU_CTabulation[[#This Row],[Rate]] -> 0
A151: 1 | B151: 6 | C151: 2 | D151: =DAY(EOMONTH(DATE(2021,TOU_CTabulation[[#This Row],[Month]],TOU_CTabulation[[#This Row],[Day]]),0)) -> 31 | E151: =VLOOKUP(TOU_CTabulation[[#This Row],[Month]],SeasonTable,2) -> Winter | F151: 0 | G151: =VLOOKUP(TOU_CTabulation[[#This Row],[Hour]],daypart,2) -> Off | H151: =CONCATENATE(TOU_CTabulation[[#This Row],[Season]],TOU_CTabulation[[#This Row],[Day-Part]]) -> WinterOff | I151: 0 | J151: =TOU_CTabulation[[#This Row],[AC System Output (W)]]/1000 -> 0 | K151: =IF(TOU_CTabulation[[#This Row],[Month]]=A149,K150+TOU_CTabulation[[#This Row],[AC System Output (kW)]],TOU_CTabulation[[#This Row],[AC System Output (kW)]]) -> 70.95123 | L151: =VLOOKUP(TOU_CTabulation[[#This Row],[Season]],Baseline,2)*TOU_CTabulation[[#This Row],[Days in month]] -> 325.5 | M151: =IF(TOU_CTabulation[[#This Row],[Month Cumm]]<=TOU_CTabulation[[#This Row],[Month Base Allow]],VLOOKUP(TOU_CTabulation[[#This Row],[Season+ Daypart]],TOUC,2),VLOOKUP(TOU_CTabulation[[#This Row],[Season+ Daypart]],TOUC,2)+0.07584) -> 0.22788 | N151: =TOU_CTabulation[[#This Row],[AC System Output (kW)]]*TOU_CTabulation[[#This Row],[Rate]] -> 0
A152: 1 | B152: 6 | C152: 3 | D152: =DAY(EOMONTH(DATE(2021,TOU_CTabulation[[#This Row],[Month]],TOU_CTabulation[[#This Row],[Day]]),0)) -> 31 | E152: =VLOOKUP(TOU_CTabulation[[#This Row],[Month]],SeasonTable,2) -> Winter | F152: 0 | G152: =VLOOKUP(TOU_CTabulation[[#This Row],[Hour]],daypart,2) -> Off | H152: =CONCATENATE(TOU_CTabulation[[#This Row],[Season]],TOU_CTabulation[[#This Row],[Day-Part]]) -> WinterOff | I152: 0 | J152: =TOU_CTabulation[[#This Row],[AC System Output (W)]]/1000 -> 0 | K152: =IF(TOU_CTabulation[[#This Row],[Month]]=A150,K151+TOU_CTabulation[[#This Row],[AC System Output (kW)]],TOU_CTabulation[[#This Row],[AC System Output (kW)]]) -> 70.95123 | L152: =VLOOKUP(TOU_CTabulation[[#This Row],[Season]],Baseline,2)*TOU_CTabulation[[#This Row],[Days in month]] -> 325.5 | M152: =IF(TOU_CTabulation[[#This Row],[Month Cumm]]<=TOU_CTabulation[[#This Row],[Month Base Allow]],VLOOKUP(TOU_CTabulation[[#This Row],[Season+ Daypart]],TOUC,2),VLOOKUP(TOU_CTabulation[[#This Row],[Season+ Daypart]],TOUC,2)+0.07584) -> 0.22788 | N152: =TOU_CTabulation[[#This Row],[AC System Output (kW)]]*TOU_CTabulation[[#This Row],[Rate]] -> 0
A153: 1 | B153: 6 | C153: 4 | D153: =DAY(EOMONTH(DATE(2021,TOU_CTabulation[[#This Row],[Month]],TOU_CTabulation[[#This Row],[Day]]),0)) -> 31 | E153: =VLOOKUP(TOU_CTabulation[[#This Row],[Month]],SeasonTable,2) -> Winter | F153: 0 | G153: =VLOOKUP(TOU_CTabulation[[#This Row],[Hour]],daypart,2) -> Off | H153: =CONCATENATE(TOU_CTabulation[[#This Row],[Season]],TOU_CTabulation[[#This Row],[Day-Part]]) -> WinterOff | I153: 0 | J153: =TOU_CTabulation[[#This Row],[AC System Output (W)]]/1000 -> 0 | K153: =IF(TOU_CTabulation[[#This Row],[Month]]=A151,K152+TOU_CTabulation[[#This Row],[AC System Output (kW)]],TOU_CTabulation[[#This Row],[AC System Output (kW)]]) -> 70.95123 | L153: =VLOOKUP(TOU_CTabulation[[#This Row],[Season]],Baseline,2)*TOU_CTabulation[[#This Row],[Days in month]] -> 325.5 | M153: =IF(TOU_CTabulation[[#This Row],[Month Cumm]]<=TOU_CTabulation[[#This Row],[Month Base Allow]],VLOOKUP(TOU_CTabulation[[#This Row],[Season+ Daypart]],TOUC,2),VLOOKUP(TOU_CTabulation[[#This Row],[Season+ Daypart]],TOUC,2)+0.07584) -> 0.22788 | N153: =TOU_CTabulation[[#This Row],[AC System Output (kW)]]*TOU_CTabulation[[#This Row],[Rate]] -> 0
A154: 1 | B154: 6 | C154: 5 | D154: =DAY(EOMONTH(DATE(2021,TOU_CTabulation[[#This Row],[Month]],TOU_CTabulation[[#This Row],[Day]]),0)) -> 31 | E154: =VLOOKUP(TOU_CTabulation[[#This Row],[Month]],SeasonTable,2) -> Winter | F154: 0 | G154: =VLOOKUP(TOU_CTabulation[[#This Row],[Hour]],daypart,2) -> Off | H154: =CONCATENATE(TOU_CTabulation[[#This Row],[Season]],TOU_CTabulation[[#This Row],[Day-Part]]) -> WinterOff | I154: 0 | J154: =TOU_CTabulation[[#This Row],[AC System Output (W)]]/1000 -> 0 | K154: =IF(TOU_CTabulation[[#This Row],[Month]]=A152,K153+TOU_CTabulation[[#This Row],[AC System Output (kW)]],TOU_CTabulation[[#This Row],[AC System Output (kW)]]) -> 70.95123 | L154: =VLOOKUP(TOU_CTabulation[[#This Row],[Season]],Baseline,2)*TOU_CTabulation[[#This Row],[Days in month]] -> 325.5 | M154: =IF(TOU_CTabulation[[#This Row],[Month Cumm]]<=TOU_CTabulation[[#This Row],[Month Base Allow]],VLOOKUP(TOU_CTabulation[[#This Row],[Season+ Daypart]],TOUC,2),VLOOKUP(TOU_CTabulation[[#This Row],[Season+ Daypart]],TOUC,2)+0.07584) -> 0.22788 | N154: =TOU_CTabulation[[#This Row],[AC System Output (kW)]]*TOU_CTabulation[[#This Row],[Rate]] -> 0
A155: 1 | B155: 6 | C155: 6 | D155: =DAY(EOMONTH(DATE(2021,TOU_CTabulation[[#This Row],[Month]],TOU_CTabulation[[#This Row],[Day]]),0)) -> 31 | E155: =VLOOKUP(TOU_CTabulation[[#This Row],[Month]],SeasonTable,2) -> Winter | F155: 0 | G155: =VLOOKUP(TOU_CTabulation[[#This Row],[Hour]],daypart,2) -> Off | H155: =CONCATENATE(TOU_CTabulation[[#This Row],[Season]],TOU_CTabulation[[#This Row],[Day-Part]]) -> WinterOff | I155: 0 | J155: =TOU_CTabulation[[#This Row],[AC System Output (W)]]/1000 -> 0 | K155: =IF(TOU_CTabulation[[#This Row],[Month]]=A153,K154+TOU_CTabulation[[#This Row],[AC System Output (kW)]],TOU_CTabulation[[#This Row],[AC System Output (kW)]]) -> 70.95123 | L155: =VLOOKUP(TOU_CTabulation[[#This Row],[Season]],Baseline,2)*TOU_CTabulation[[#This Row],[Days in month]] -> 325.5 | M155: =IF(TOU_CTabulation[[#This Row],[Month Cumm]]<=TOU_CTabulation[[#This Row],[Month Base Allow]],VLOOKUP(TOU_CTabulation[[#This Row],[Season+ Daypart]],TOUC,2),VLOOKUP(TOU_CTabulation[[#This Row],[Season+ Daypart]],TOUC,2)+0.07584) -> 0.22788 | N155: =TOU_CTabulation[[#This Row],[AC System Output (kW)]]*TOU_CTabulation[[#This Row],[Rate]] -> 0
A156: 1 | B156: 6 | C156: 7 | D156: =DAY(EOMONTH(DATE(2021,TOU_CTabulation[[#This Row],[Month]],TOU_CTabulation[[#This Row],[Day]]),0)) -> 31 | E156: =VLOOKUP(TOU_CTabulation[[#This Row],[Month]],SeasonTable,2) -> Winter | F156: 108.238 | G156: =VLOOKUP(TOU_CTabulation[[#This Row],[Hour]],daypart,2) -> Off | H156: =CONCATENATE(TOU_CTabulation[[#This Row],[Season]],TOU_CTabulation[[#This Row],[Day-Part]]) -> WinterOff | I156: 85.83 | J156: =TOU_CTabulation[[#This Row],[AC System Output (W)]]/1000 -> 0.08583 | K156: =IF(TOU_CTabulation[[#This Row],[Month]]=A154,K155+TOU_CTabulation[[#This Row],[AC System Output (kW)]],TOU_CTabulation[[#This Row],[AC System Output (kW)]]) -> 71.03706 | L156: =VLOOKUP(TOU_CTabulation[[#This Row],[Season]],Baseline,2)*TOU_CTabulation[[#This Row],[Days in month]] -> 325.5 | M156: =IF(TOU_CTabulation[[#This Row],[Month Cumm]]<=TOU_CTabulation[[#This Row],[Month Base Allow]],VLOOKUP(TOU_CTabulation[[#This Row],[Season+ Daypart]],TOUC,2),VLOOKUP(TOU_CTabulation[[#This Row],[Season+ Daypart]],TOUC,2)+0.07584) -> 0.22788 | N156: =TOU_CTabulation[[#This Row],[AC System Output (kW)]]*TOU_CTabulation[[#This Row],[Rate]] -> 0.0195589404
A157: 1 | B157: 6 | C157: 8 | D157: =DAY(EOMONTH(DATE(2021,TOU_CTabulation[[#This Row],[Month]],TOU_CTabulation[[#This Row],[Day]]),0)) -> 31 | E157: =VLOOKUP(TOU_CTabulation[[#This Row],[Month]],SeasonTable,2) -> Winter | F157: 480.428 | G157: =VLOOKUP(TOU_CTabulation[[#This Row],[Hour]],daypart,2) -> Off | H157: =CONCATENATE(TOU_CTabulation[[#This Row],[Season]],TOU_CTabulation[[#This Row],[Day-Part]]) -> WinterOff | I157: 450.307 | J157: =TOU_CTabulation[[#This Row],[AC System Output (W)]]/1000 -> 0.450307 | K157: =IF(TOU_CTabulation[[#This Row],[Month]]=A155,K156+TOU_CTabulation[[#This Row],[AC System Output (kW)]],TOU_CTabulation[[#This Row],[AC System Output (kW)]]) -> 71.487367 | L157: =VLOOKUP(TOU_CTabulation[[#This Row],[Season]],Baseline,2)*TOU_CTabulation[[#This Row],[Days in month]] -> 325.5 | M157: =IF(TOU_CTabulation[[#This Row],[Month Cumm]]<=TOU_CTabulation[[#This Row],[Month Base Allow]],VLOOKUP(TOU_CTabulation[[#This Row],[Season+ Daypart]],TOUC,2),VLOOKUP(TOU_CTabulation[[#This Row],[Season+ Daypart]],TOUC,2)+0.07584) -> 0.22788 | N157: =TOU_CTabulation[[#This Row],[AC System Output (kW)]]*TOU_CTabulation[[#This Row],[Rate]] -> 0.1026159592
A158: 1 | B158: 6 | C158: 9 | D158: =DAY(EOMONTH(DATE(2021,TOU_CTabulation[[#This Row],[Month]],TOU_CTabulation[[#This Row],[Day]]),0)) -> 31 | E158: =VLOOKUP(TOU_CTabulation[[#This Row],[Month]],SeasonTable,2) -> Winter | F158: 1888.916 | G158: =VLOOKUP(TOU_CTabulation[[#This Row],[Hour]],daypart,2) -> Off | H158: =CONCATENATE(TOU_CTabulation[[#This Row],[Season]],TOU_CTabulation[[#This Row],[Day-Part]]) -> WinterOff | I158: 1817.954 | J158: =TOU_CTabulation[[#This Row],[AC System Output (W)]]/1000 -> 1.817954 | K158: =IF(TOU_CTabulation[[#This Row],[Month]]=A156,K157+TOU_CTabulation[[#This Row],[AC System Output (kW)]],TOU_CTabulation[[#This Row],[AC System Output (kW)]]) -> 73.305321 | L158: =VLOOKUP(TOU_CTabulation[[#This Row],[Season]],Baseline,2)*TOU_CTabulation[[#This Row],[Days in month]] -> 325.5 | M158: =IF(TOU_CTabulation[[#This Row],[Month Cumm]]<=TOU_CTabulation[[#This Row],[Month Base Allow]],VLOOKUP(TOU_CTabulation[[#This Row],[Season+ Daypart]],TOUC,2),VLOOKUP(TOU_CTabulation[[#This Row],[Season+ Daypart]],TOUC,2)+0.07584) -> 0.22788 | N158: =TOU_CTabulation[[#This Row],[AC System Output (kW)]]*TOU_CTabulation[[#This Row],[Rate]] -> 0.4142753575
A159: 1 | B159: 6 | C159: 10 | D159: =DAY(EOMONTH(DATE(2021,TOU_CTabulation[[#This Row],[Month]],TOU_CTabulation[[#This Row],[Day]]),0)) -> 31 | E159: =VLOOKUP(TOU_CTabulation[[#This Row],[Month]],SeasonTable,2) -> Winter | F159: 2350.494 | G159: =VLOOKUP(TOU_CTabulation[[#This Row],[Hour]],daypart,2) -> Off | H159: =CONCATENATE(TOU_CTabulation[[#This Row],[Season]],TOU_CTabulation[[#This Row],[Day-Part]]) -> WinterOff | I159: 2262.136 | J159: =TOU_CTabulation[[#This Row],[AC System Output (W)]]/1000 -> 2.262136 | K159: =IF(TOU_CTabulation[[#This Row],[Month]]=A157,K158+TOU_CTabulation[[#This Row],[AC System Output (kW)]],TOU_CTabulation[[#This Row],[AC System Output (kW)]]) -> 75.567457 | L159: =VLOOKUP(TOU_CTabulation[[#This Row],[Season]],Baseline,2)*TOU_CTabulation[[#This Row],[Days in month]] -> 325.5 | M159: =IF(TOU_CTabulation[[#This Row],[Month Cumm]]<=TOU_CTabulation[[#This Row],[Month Base Allow]],VLOOKUP(TOU_CTabulation[[#This Row],[Season+ Daypart]],TOUC,2),VLOOKUP(TOU_CTabulation[[#This Row],[Season+ Daypart]],TOUC,2)+0.07584) -> 0.22788 | N159: =TOU_CTabulation[[#This Row],[AC System Output (kW)]]*TOU_CTabulation[[#This Row],[Rate]] -> 0.5154955517
A160: 1 | B160: 6 | C160: 11 | D160: =DAY(EOMONTH(DATE(2021,TOU_CTabulation[[#This Row],[Month]],TOU_CTabulation[[#This Row],[Day]]),0)) -> 31 | E160: =VLOOKUP(TOU_CTabulation[[#This Row],[Month]],SeasonTable,2) -> Winter | F160: 2501.786 | G160: =VLOOKUP(TOU_CTabulation[[#This Row],[Hour]],daypart,2) -> Off | H160: =CONCATENATE(TOU_CTabulation[[#This Row],[Season]],TOU_CTabulation[[#This Row],[Day-Part]]) -> WinterOff | I160: 2407.295 | J160: =TOU_CTabulation[[#This Row],[AC System Output (W)]]/1000 -> 2.407295 | K160: =IF(TOU_CTabulation[[#This Row],[Month]]=A158,K159+TOU_CTabulation[[#This Row],[AC System Output (kW)]],TOU_CTabulation[[#This Row],[AC System Output (kW)]]) -> 77.974752 | L160: =VLOOKUP(TOU_CTabulation[[#This Row],[Season]],Baseline,2)*TOU_CTabulation[[#This Row],[Days in month]] -> 325.5 | M160: =IF(TOU_CTabulation[[#This Row],[Month Cumm]]<=TOU_CTabulation[[#This Row],[Month Base Allow]],VLOOKUP(TOU_CTabulation[[#This Row],[Season+ Daypart]],TOUC,2),VLOOKUP(TOU_CTabulation[[#This Row],[Season+ Daypart]],TOUC,2)+0.07584) -> 0.22788 | N160: =TOU_CTabulation[[#This Row],[AC System Output (kW)]]*TOU_CTabulation[[#This Row],[Rate]] -> 0.5485743846
A161: 1 | B161: 6 | C161: 12 | D161: =DAY(EOMONTH(DATE(2021,TOU_CTabulation[[#This Row],[Month]],TOU_CTabulation[[#This Row],[Day]]),0)) -> 31 | E161: =VLOOKUP(TOU_CTabulation[[#This Row],[Month]],SeasonTable,2) -> Winter | F161: 2512.541 | G161: =VLOOKUP(TOU_CTabulation[[#This Row],[Hour]],daypart,2) -> Off | H161: =CONCATENATE(TOU_CTabulation[[#This Row],[Season]],TOU_CTabulation[[#This Row],[Day-Part]]) -> WinterOff | I161: 2417.606 | J161: =TOU_CTabulation[[#This Row],[AC System Output (W)]]/1000 -> 2.417606 | K161: =IF(TOU_CTabulation[[#This Row],[Month]]=A159,K160+TOU_CTabulation[[#This Row],[AC System Output (kW)]],TOU_CTabulation[[#This Row],[AC System Output (kW)]]) -> 80.392358 | L161: =VLOOKUP(TOU_CTabulation[[#This Row],[Season]],Baseline,2)*TOU_CTabulation[[#This Row],[Days in month]] -> 325.5 | M161: =IF(TOU_CTabulation[[#This Row],[Month Cumm]]<=TOU_CTabulation[[#This Row],[Month Base Allow]],VLOOKUP(TOU_CTabulation[[#This Row],[Season+ Daypart]],TOUC,2),VLOOKUP(TOU_CTabulation[[#This Row],[Season+ Daypart]],TOUC,2)+0.07584) -> 0.22788 | N161: =TOU_CTabulation[[#This Row],[AC System Output (kW)]]*TOU_CTabulation[[#This Row],[Rate]] -> 0.5509240553
A162: 1 | B162: 6 | C162: 13 | D162: =DAY(EOMONTH(DATE(2021,TOU_CTabulation[[#This Row],[Month]],TOU_CTabulation[[#This Row],[Day]]),0)) -> 31 | E162: =VLOOKUP(TOU_CTabulation[[#This Row],[Month]],SeasonTable,2) -> Winter | F162: 2400.577 | G162: =VLOOKUP(TOU_CTabulation[[#This Row],[Hour]],daypart,2) -> Off | H162: =CONCATENATE(TOU_CTabulation[[#This Row],[Season]],TOU_CTabulation[[#This Row],[Day-Part]]) -> WinterOff | I162: 2310.212 | J162: =TOU_CTabulation[[#This Row],[AC System Output (W)]]/1000 -> 2.310212 | K162: =IF(TOU_CTabulation[[#This Row],[Month]]=A160,K161+TOU_CTabulation[[#This Row],[AC System Output (kW)]],TOU_CTabulation[[#This Row],[AC System Output (kW)]]) -> 82.70257 | L162: =VLOOKUP(TOU_CTabulation[[#This Row],[Season]],Baseline,2)*TOU_CTabulation[[#This Row],[Days in month]] -> 325.5 | M162: =IF(TOU_CTabulation[[#This Row],[Month Cumm]]<=TOU_CTabulation[[#This Row],[Month Base Allow]],VLOOKUP(TOU_CTabulation[[#This Row],[Season+ Daypart]],TOUC,2),VLOOKUP(TOU_CTabulation[[#This Row],[Season+ Daypart]],TOUC,2)+0.07584) -> 0.22788 | N162: =TOU_CTabulation[[#This Row],[AC System Output (kW)]]*TOU_CTabulation[[#This Row],[Rate]] -> 0.5264511106
A163: 1 | B163: 6 | C163: 14 | D163: =DAY(EOMONTH(DATE(2021,TOU_CTabulation[[#This Row],[Month]],TOU_CTabulation[[#This Row],[Day]]),0)) -> 31 | E163: =VLOOKUP(TOU_CTabulation[[#This Row],[Month]],SeasonTable,2) -> Winter | F163: 1984.922 | G163: =VLOOKUP(TOU_CTabulation[[#This Row],[Hour]],daypart,2) -> Off | H163: =CONCATENATE(TOU_CTabulation[[#This Row],[Season]],TOU_CTabulation[[#This Row],[Day-Part]]) -> WinterOff | I163: 1910.505 | J163: =TOU_CTabulation[[#This Row],[AC System Output (W)]]/1000 -> 1.910505 | K163: =IF(TOU_CTabulation[[#This Row],[Month]]=A161,K162+TOU_CTabulation[[#This Row],[AC System Output (kW)]],TOU_CTabulation[[#This Row],[AC System Output (kW)]]) -> 84.613075 | L163: =VLOOKUP(TOU_CTabulation[[#This Row],[Season]],Baseline,2)*TOU_CTabulation[[#This Row],[Days in month]] -> 325.5 | M163: =IF(TOU_CTabulation[[#This Row],[Month Cumm]]<=TOU_CTabulation[[#This Row],[Month Base Allow]],VLOOKUP(TOU_CTabulation[[#This Row],[Season+ Daypart]],TOUC,2),VLOOKUP(TOU_CTabulation[[#This Row],[Season+ Daypart]],TOUC,2)+0.07584) -> 0.22788 | N163: =TOU_CTabulation[[#This Row],[AC System Output (kW)]]*TOU_CTabulation[[#This Row],[Rate]] -> 0.4353658794
A164: 1 | B164: 6 | C164: 15 | D164: =DAY(EOMONTH(DATE(2021,TOU_CTabulation[[#This Row],[Month]],TOU_CTabulation[[#This Row],[Day]]),0)) -> 31 | E164: =VLOOKUP(TOU_CTabulation[[#This Row],[Month]],SeasonTable,2) -> Winter | F164: 1318.681 | G164: =VLOOKUP(TOU_CTabulation[[#This Row],[Hour]],daypart,2) -> Off | H164: =CONCATENATE(TOU_CTabulation[[#This Row],[Season]],TOU_CTabulation[[#This Row],[Day-Part]]) -> WinterOff | I164: 1266.475 | J164: =TOU_CTabulation[[#This Row],[AC System Output (W)]]/1000 -> 1.266475 | K164: =IF(TOU_CTabulation[[#This Row],[Month]]=A162,K163+TOU_CTabulation[[#This Row],[AC System Output (kW)]],TOU_CTabulation[[#This Row],[AC System Output (kW)]]) -> 85.87955 | L164: =VLOOKUP(TOU_CTabulation[[#This Row],[Season]],Baseline,2)*TOU_CTabulation[[#This Row],[Days in month]] -> 325.5 | M164: =IF(TOU_CTabulation[[#This Row],[Month Cumm]]<=TOU_CTabulation[[#This Row],[Month Base Allow]],VLOOKUP(TOU_CTabulation[[#This Row],[Season+ Daypart]],TOUC,2),VLOOKUP(TOU_CTabulation[[#This Row],[Season+ Daypart]],TOUC,2)+0.07584) -> 0.22788 | N164: =TOU_CTabulation[[#This Row],[AC System Output (kW)]]*TOU_CTabulation[[#This Row],[Rate]] -> 0.288604323
A165: 1 | B165: 6 | C165: 16 | D165: =DAY(EOMONTH(DATE(2021,TOU_CTabulation[[#This Row],[Month]],TOU_CTabulation[[#This Row],[Day]]),0)) -> 31 | E165: =VLOOKUP(TOU_CTabulation[[#This Row],[Month]],SeasonTable,2) -> Winter | F165: 234.831 | G165: =VLOOKUP(TOU_CTabulation[[#This Row],[Hour]],daypart,2) -> Peak | H165: =CONCATENATE(TOU_CTabulation[[#This Row],[Season]],TOU_CTabulation[[#This Row],[Day-Part]]) -> WinterPeak | I165: 209.944 | J165: =TOU_CTabulation[[#This Row],[AC System Output (W)]]/1000 -> 0.209944 | K165: =IF(TOU_CTabulation[[#This Row],[Month]]=A163,K164+TOU_CTabulation[[#This Row],[AC System Output (kW)]],TOU_CTabulation[[#This Row],[AC System Output (kW)]]) -> 86.089494 | L165: =VLOOKUP(TOU_CTabulation[[#This Row],[Season]],Baseline,2)*TOU_CTabulation[[#This Row],[Days in month]] -> 325.5 | M165: =IF(TOU_CTabulation[[#This Row],[Month Cumm]]<=TOU_CTabulation[[#This Row],[Month Base Allow]],VLOOKUP(TOU_CTabulation[[#This Row],[Season+ Daypart]],TOUC,2),VLOOKUP(TOU_CTabulation[[#This Row],[Season+ Daypart]],TOUC,2)+0.07584) -> 0.2452 | N165: =TOU_CTabulation[[#This Row],[AC System Output (kW)]]*TOU_CTabulation[[#This Row],[Rate]] -> 0.0514782688
A166: 1 | B166: 6 | C166: 17 | D166: =DAY(EOMONTH(DATE(2021,TOU_CTabulation[[#This Row],[Month]],TOU_CTabulation[[#This Row],[Day]]),0)) -> 31 | E166: =VLOOKUP(TOU_CTabulation[[#This Row],[Month]],SeasonTable,2) -> Winter | F166: 0 | G166: =VLOOKUP(TOU_CTabulation[[#This Row],[Hour]],daypart,2) -> Peak | H166: =CONCATENATE(TOU_CTabulation[[#This Row],[Season]],TOU_CTabulation[[#This Row],[Day-Part]]) -> WinterPeak | I166: 0 | J166: =TOU_CTabulation[[#This Row],[AC System Output (W)]]/1000 -> 0 | K166: =IF(TOU_CTabulation[[#This Row],[Month]]=A164,K165+TOU_CTabulation[[#This Row],[AC System Output (kW)]],TOU_CTabulation[[#This Row],[AC System Output (kW)]]) -> 86.089494 | L166: =VLOOKUP(TOU_CTabulation[[#This Row],[Season]],Baseline,2)*TOU_CTabulation[[#This Row],[Days in month]] -> 325.5 | M166: =IF(TOU_CTabulation[[#This Row],[Month Cumm]]<=TOU_CTabulation[[#This Row],[Month Base Allow]],VLOOKUP(TOU_CTabulation[[#This Row],[Season+ Daypart]],TOUC,2),VLOOKUP(TOU_CTabulation[[#This Row],[Season+ Daypart]],TOUC,2)+0.07584) -> 0.2452 | N166: =TOU_CTabulation[[#This Row],[AC System Output (kW)]]*TOU_CTabulation[[#This Row],[Rate]] -> 0
A167: 1 | B167: 6 | C167: 18 | D167: =DAY(EOMONTH(DATE(2021,TOU_CTabulation[[#This Row],[Month]],TOU_CTabulation[[#This Row],[Day]]),0)) -> 31 | E167: =VLOOKUP(TOU_CTabulation[[#This Row],[Month]],SeasonTable,2) -> Winter | F167: 0 | G167: =VLOOKUP(TOU_CTabulation[[#This Row],[Hour]],daypart,2) -> Peak | H167: =CONCATENATE(TOU_CTabulation[[#This Row],[Season]],TOU_CTabulation[[#This Row],[Day-Part]]) -> WinterPeak | I167: 0 | J167: =TOU_CTabulation[[#This Row],[AC System Output (W)]]/1000 -> 0 | K167: =IF(TOU_CTabulation[[#This Row],[Month]]=A165,K166+TOU_CTabulation[[#This Row],[AC System Output (kW)]],TOU_CTabulation[[#This Row],[AC System Output (kW)]]) -> 86.089494 | L167: =VLOOKUP(TOU_CTabulation[[#This Row],[Season]],Baseline,2)*TOU_CTabulation[[#This Row],[Days in month]] -> 325.5 | M167: =IF(TOU_CTabulation[[#This Row],[Month Cumm]]<=TOU_CTabulation[[#This Row],[Month Base Allow]],VLOOKUP(TOU_CTabulation[[#This Row],[Season+ Daypart]],TOUC,2),VLOOKUP(TOU_CTabulation[[#This Row],[Season+ Daypart]],TOUC,2)+0.07584) -> 0.2452 | N167: =TOU_CTabulation[[#This Row],[AC System Output (kW)]]*TOU_CTabulation[[#This Row],[Rate]] -> 0
A168: 1 | B168: 6 | C168: 19 | D168: =DAY(EOMONTH(DATE(2021,TOU_CTabulation[[#This Row],[Month]],TOU_CTabulation[[#This Row],[Day]]),0)) -> 31 | E168: =VLOOKUP(TOU_CTabulation[[#This Row],[Month]],SeasonTable,2) -> Winter | F168: 0 | G168: =VLOOKUP(TOU_CTabulation[[#This Row],[Hour]],daypart,2) -> Peak | H168: =CONCATENATE(TOU_CTabulation[[#This Row],[Season]],TOU_CTabulation[[#This Row],[Day-Part]]) -> WinterPeak | I168: 0 | J168: =TOU_CTabulation[[#This Row],[AC System Output (W)]]/1000 -> 0 | K168: =IF(TOU_CTabulation[[#This Row],[Month]]=A166,K167+TOU_CTabulation[[#This Row],[AC System Output (kW)]],TOU_CTabulation[[#This Row],[AC System Output (kW)]]) -> 86.089494 | L168: =VLOOKUP(TOU_CTabulation[[#This Row],[Season]],Baseline,2)*TOU_CTabulation[[#This Row],[Days in month]] -> 325.5 | M168: =IF(TOU_CTabulation[[#This Row],[Month Cumm]]<=TOU_CTabulation[[#This Row],[Month Base Allow]],VLOOKUP(TOU_CTabulation[[#This Row],[Season+ Daypart]],TOUC,2),VLOOKUP(TOU_CTabulation[[#This Row],[Season+ Daypart]],TOUC,2)+0.07584) -> 0.2452 | N168: =TOU_CTabulation[[#This Row],[AC System Output (kW)]]*TOU_CTabulation[[#This Row],[Rate]] -> 0
A169: 1 | B169: 6 | C169: 20 | D169: =DAY(EOMONTH(DATE(2021,TOU_CTabulation[[#This Row],[Month]],TOU_CTabulation[[#This Row],[Day]]),0)) -> 31 | E169: =VLOOKUP(TOU_CTabulation[[#This Row],[Month]],SeasonTable,2) -> Winter | F169: 0 | G169: =VLOOKUP(TOU_CTabulation[[#This Row],[Hour]],daypart,2) -> Peak | H169: =CONCATENATE(TOU_CTabulation[[#This Row],[Season]],TOU_CTabulation[[#This Row],[Day-Part]]) -> WinterPeak | I169: 0 | J169: =TOU_CTabulation[[#This Row],[AC System Output (W)]]/1000 -> 0 | K169: =IF(TOU_CTabulation[[#This Row],[Month]]=A167,K168+TOU_CTabulation[[#This Row],[AC System Output (kW)]],TOU_CTabulation[[#This Row],[AC System Output (kW)]]) -> 86.089494 | L169: =VLOOKUP(TOU_CTabulation[[#This Row],[Season]],Baseline,2)*TOU_CTabulation[[#This Row],[Days in month]] -> 325.5 | M169: =IF(TOU_CTabulation[[#This Row],[Month Cumm]]<=TOU_CTabulation[[#This Row],[Month Base Allow]],VLOOKUP(TOU_CTabulation[[#This Row],[Season+ Daypart]],TOUC,2),VLOOKUP(TOU_CTabulation[[#This Row],[Season+ Daypart]],TOUC,2)+0.07584) -> 0.2452 | N169: =TOU_CTabulation[[#This Row],[AC System Output (kW)]]*TOU_CTabulation[[#This Row],[Rate]] -> 0
A170: 1 | B170: 6 | C170: 21 | D170: =DAY(EOMONTH(DATE(2021,TOU_CTabulation[[#This Row],[Month]],TOU_CTabulation[[#This Row],[Day]]),0)) -> 31 | E170: =VLOOKUP(TOU_CTabulation[[#This Row],[Month]],SeasonTable,2) -> Winter | F170: 0 | G170: =VLOOKUP(TOU_CTabulation[[#This Row],[Hour]],daypart,2) -> Off | H170: =CONCATENATE(TOU_CTabulation[[#This Row],[Season]],TOU_CTabulation[[#This Row],[Day-Part]]) -> WinterOff | I170: 0 | J170: =TOU_CTabulation[[#This Row],[AC System Output (W)]]/1000 -> 0 | K170: =IF(TOU_CTabulation[[#This Row],[Month]]=A168,K169+TOU_CTabulation[[#This Row],[AC System Output (kW)]],TOU_CTabulation[[#This Row],[AC System Output (kW)]]) -> 86.089494 | L170: =VLOOKUP(TOU_CTabulation[[#This Row],[Season]],Baseline,2)*TOU_CTabulation[[#This Row],[Days in month]] -> 325.5 | M170: =IF(TOU_CTabulation[[#This Row],[Month Cumm]]<=TOU_CTabulation[[#This Row],[Month Base Allow]],VLOOKUP(TOU_CTabulation[[#This Row],[Season+ Daypart]],TOUC,2),VLOOKUP(TOU_CTabulation[[#This Row],[Season+ Daypart]],TOUC,2)+0.07584) -> 0.22788 | N170: =TOU_CTabulation[[#This Row],[AC System Output (kW)]]*TOU_CTabulation[[#This Row],[Rate]] -> 0
A171: 1 | B171: 6 | C171: 22 | D171: =DAY(EOMONTH(DATE(2021,TOU_CTabulation[[#This Row],[Month]],TOU_CTabulation[[#This Row],[Day]]),0)) -> 31 | E171: =VLOOKUP(TOU_CTabulation[[#This Row],[Month]],SeasonTable,2) -> Winter | F171: 0 | G171: =VLOOKUP(TOU_CTabulation[[#This Row],[Hour]],daypart,2) -> Off | H171: =CONCATENATE(TOU_CTabulation[[#This Row],[Season]],TOU_CTabulation[[#This Row],[Day-Part]]) -> WinterOff | I171: 0 | J171: =TOU_CTabulation[[#This Row],[AC System Output (W)]]/1000 -> 0 | K171: =IF(TOU_CTabulation[[#This Row],[Month]]=A169,K170+TOU_CTabulation[[#This Row],[AC System Output (kW)]],TOU_CTabulation[[#This Row],[AC System Output (kW)]]) -> 86.089494 | L171: =VLOOKUP(TOU_CTabulation[[#This Row],[Season]],Baseline,2)*TOU_CTabulation[[#This Row],[Days in month]] -> 325.5 | M171: =IF(TOU_CTabulation[[#This Row],[Month Cumm]]<=TOU_CTabulation[[#This Row],[Month Base Allow]],VLOOKUP(TOU_CTabulation[[#This Row],[Season+ Daypart]],TOUC,2),VLOOKUP(TOU_CTabulation[[#This Row],[Season+ Daypart]],TOUC,2)+0.07584) -> 0.22788 | N171: =TOU_CTabulation[[#This Row],[AC System Output (kW)]]*TOU_CTabulation[[#This Row],[Rate]] -> 0
A172: 1 | B172: 6 | C172: 23 | D172: =DAY(EOMONTH(DATE(2021,TOU_CTabulation[[#This Row],[Month]],TOU_CTabulation[[#This Row],[Day]]),0)) -> 31 | E172: =VLOOKUP(TOU_CTabulation[[#This Row],[Month]],SeasonTable,2) -> Winter | F172: 0 | G172: =VLOOKUP(TOU_CTabulation[[#This Row],[Hour]],daypart,2) -> Off | H172: =CONCATENATE(TOU_CTabulation[[#This Row],[Season]],TOU_CTabulation[[#This Row],[Day-Part]]) -> WinterOff | I172: 0 | J172: =TOU_CTabulation[[#This Row],[AC System Output (W)]]/1000 -> 0 | K172: =IF(TOU_CTabulation[[#This Row],[Month]]=A170,K171+TOU_CTabulation[[#This Row],[AC System Output (kW)]],TOU_CTabulation[[#This Row],[AC System Output (kW)]]) -> 86.089494 | L172: =VLOOKUP(TOU_CTabulation[[#This Row],[Season]],Baseline,2)*TOU_CTabulation[[#This Row],[Days in month]] -> 325.5 | M172: =IF(TOU_CTabulation[[#This Row],[Month Cumm]]<=TOU_CTabulation[[#This Row],[Month Base Allow]],VLOOKUP(TOU_CTabulation[[#This Row],[Season+ Daypart]],TOUC,2),VLOOKUP(TOU_CTabulation[[#This Row],[Season+ Daypart]],TOUC,2)+0.07584) -> 0.22788 | N172: =TOU_CTabulation[[#This Row],[AC System Output (kW)]]*TOU_CTabulation[[#This Row],[Rate]] -> 0
A173: 1 | B173: 7 | C173: 0 | D173: =DAY(EOMONTH(DATE(2021,TOU_CTabulation[[#This Row],[Month]],TOU_CTabulation[[#This Row],[Day]]),0)) -> 31 | E173: =VLOOKUP(TOU_CTabulation[[#This Row],[Month]],SeasonTable,2) -> Winter | F173: 0 | G173: =VLOOKUP(TOU_CTabulation[[#This Row],[Hour]],daypart,2) -> Off | H173: =CONCATENATE(TOU_CTabulation[[#This Row],[Season]],TOU_CTabulation[[#This Row],[Day-Part]]) -> WinterOff | I173: 0 | J173: =TOU_CTabulation[[#This Row],[AC System Output (W)]]/1000 -> 0 | K173: =IF(TOU_CTabulation[[#This Row],[Month]]=A171,K172+TOU_CTabulation[[#This Row],[AC System Output (kW)]],TOU_CTabulation[[#This Row],[AC System Output (kW)]]) -> 86.089494 | L173: =VLOOKUP(TOU_CTabulation[[#This Row],[Season]],Baseline,2)*TOU_CTabulation[[#This Row],[Days in month]] -> 325.5 | M173: =IF(TOU_CTabulation[[#This Row],[Month Cumm]]<=TOU_CTabulation[[#This Row],[Month Base Allow]],VLOOKUP(TOU_CTabulation[[#This Row],[Season+ Daypart]],TOUC,2),VLOOKUP(TOU_CTabulation[[#This Row],[Season+ Daypart]],TOUC,2)+0.07584) -> 0.22788 | N173: =TOU_CTabulation[[#This Row],[AC System Output (kW)]]*TOU_CTabulation[[#This Row],[Rate]] -> 0
A174: 1 | B174: 7 | C174: 1 | D174: =DAY(EOMONTH(DATE(2021,TOU_CTabulation[[#This Row],[Month]],TOU_CTabulation[[#This Row],[Day]]),0)) -> 31 | E174: =VLOOKUP(TOU_CTabulation[[#This Row],[Month]],SeasonTable,2) -> Winter | F174: 0 | G174: =VLOOKUP(TOU_CTabulation[[#This Row],[Hour]],daypart,2) -> Off | H174: =CONCATENATE(TOU_CTabulation[[#This Row],[Season]],TOU_CTabulation[[#This Row],[Day-Part]]) -> WinterOff | I174: 0 | J174: =TOU_CTabulation[[#This Row],[AC System Output (W)]]/1000 -> 0 | K174: =IF(TOU_CTabulation[[#This Row],[Month]]=A172,K173+TOU_CTabulation[[#This Row],[AC System Output (kW)]],TOU_CTabulation[[#This Row],[AC System Output (kW)]]) -> 86.089494 | L174: =VLOOKUP(TOU_CTabulation[[#This Row],[Season]],Baseline,2)*TOU_CTabulation[[#This Row],[Days in month]] -> 325.5 | M174: =IF(TOU_CTabulation[[#This Row],[Month Cumm]]<=TOU_CTabulation[[#This Row],[Month Base Allow]],VLOOKUP(TOU_CTabulation[[#This Row],[Season+ Daypart]],TOUC,2),VLOOKUP(TOU_CTabulation[[#This Row],[Season+ Daypart]],TOUC,2)+0.07584) -> 0.22788 | N174: =TOU_CTabulation[[#This Row],[AC System Output (kW)]]*TOU_CTabulation[[#This Row],[Rate]] -> 0
A175: 1 | B175: 7 | C175: 2 | D175: =DAY(EOMONTH(DATE(2021,TOU_CTabulation[[#This Row],[Month]],TOU_CTabulation[[#This Row],[Day]]),0)) -> 31 | E175: =VLOOKUP(TOU_CTabulation[[#This Row],[Month]],SeasonTable,2) -> Winter | F175: 0 | G175: =VLOOKUP(TOU_CTabulation[[#This Row],[Hour]],daypart,2) -> Off | H175: =CONCATENATE(TOU_CTabulation[[#This Row],[Season]],TOU_CTabulation[[#This Row],[Day-Part]]) -> WinterOff | I175: 0 | J175: =TOU_CTabulation[[#This Row],[AC System Output (W)]]/1000 -> 0 | K175: =IF(TOU_CTabulation[[#This Row],[Month]]=A173,K174+TOU_CTabulation[[#This Row],[AC System Output (kW)]],TOU_CTabulation[[#This Row],[AC System Output (kW)]]) -> 86.089494 | L175: =VLOOKUP(TOU_CTabulation[[#This Row],[Season]],Baseline,2)*TOU_CTabulation[[#This Row],[Days in month]] -> 325.5 | M175: =IF(TOU_CTabulation[[#This Row],[Month Cumm]]<=TOU_CTabulation[[#This Row],[Month Base Allow]],VLOOKUP(TOU_CTabulation[[#This Row],[Season+ Daypart]],TOUC,2),VLOOKUP(TOU_CTabulation[[#This Row],[Season+ Daypart]],TOUC,2)+0.07584) -> 0.22788 | N175: =TOU_CTabulation[[#This Row],[AC System Output (kW)]]*TOU_CTabulation[[#This Row],[Rate]] -> 0
A176: 1 | B176: 7 | C176: 3 | D176: =DAY(EOMONTH(DATE(2021,TOU_CTabulation[[#This Row],[Month]],TOU_CTabulation[[#This Row],[Day]]),0)) -> 31 | E176: =VLOOKUP(TOU_CTabulation[[#This Row],[Month]],SeasonTable,2) -> Winter | F176: 0 | G176: =VLOOKUP(TOU_CTabulation[[#This Row],[Hour]],daypart,2) -> Off | H176: =CONCATENATE(TOU_CTabulation[[#This Row],[Season]],TOU_CTabulation[[#This Row],[Day-Part]]) -> WinterOff | I176: 0 | J176: =TOU_CTabulation[[#This Row],[AC System Output (W)]]/1000 -> 0 | K176: =IF(TOU_CTabulation[[#This Row],[Month]]=A174,K175+TOU_CTabulation[[#This Row],[AC System Output (kW)]],TOU_CTabulation[[#This Row],[AC System Output (kW)]]) -> 86.089494 | L176: =VLOOKUP(TOU_CTabulation[[#This Row],[Season]],Baseline,2)*TOU_CTabulation[[#This Row],[Days in month]] -> 325.5 | M176: =IF(TOU_CTabulation[[#This Row],[Month Cumm]]<=TOU_CTabulation[[#This Row],[Month Base Allow]],VLOOKUP(TOU_CTabulation[[#This Row],[Season+ Daypart]],TOUC,2),VLOOKUP(TOU_CTabulation[[#This Row],[Season+ Daypart]],TOUC,2)+0.07584) -> 0.22788 | N176: =TOU_CTabulation[[#This Row],[AC System Output (kW)]]*TOU_CTabulation[[#This Row],[Rate]] -> 0
A177: 1 | B177: 7 | C177: 4 | D177: =DAY(EOMONTH(DATE(2021,TOU_CTabulation[[#This Row],[Month]],TOU_CTabulation[[#This Row],[Day]]),0)) -> 31 | E177: =VLOOKUP(TOU_CTabulation[[#This Row],[Month]],SeasonTable,2) -> Winter | F177: 0 | G177: =VLOOKUP(TOU_CTabulation[[#This Row],[Hour]],daypart,2) -> Off | H177: =CONCATENATE(TOU_CTabulation[[#This Row],[Season]],TOU_CTabulation[[#This Row],[Day-Part]]) -> WinterOff | I177: 0 | J177: =TOU_CTabulation[[#This Row],[AC System Output (W)]]/1000 -> 0 | K177: =IF(TOU_CTabulation[[#This Row],[Month]]=A175,K176+TOU_CTabulation[[#This Row],[AC System Output (kW)]],TOU_CTabulation[[#This Row],[AC System Output (kW)]]) -> 86.089494 | L177: =VLOOKUP(TOU_CTabulation[[#This Row],[Season]],Baseline,2)*TOU_CTabulation[[#This Row],[Days in month]] -> 325.5 | M177: =IF(TOU_CTabulation[[#This Row],[Month Cumm]]<=TOU_CTabulation[[#This Row],[Month Base Allow]],VLOOKUP(TOU_CTabulation[[#This Row],[Season+ Daypart]],TOUC,2),VLOOKUP(TOU_CTabulation[[#This Row],[Season+ Daypart]],TOUC,2)+0.07584) -> 0.22788 | N177: =TOU_CTabulation[[#This Row],[AC System Output (kW)]]*TOU_CTabulation[[#This Row],[Rate]] -> 0
A178: 1 | B178: 7 | C178: 5 | D178: =DAY(EOMONTH(DATE(2021,TOU_CTabulation[[#This Row],[Month]],TOU_CTabulation[[#This Row],[Day]]),0)) -> 31 | E178: =VLOOKUP(TOU_CTabulation[[#This Row],[Month]],SeasonTable,2) -> Winter | F178: 0 | G178: =VLOOKUP(TOU_CTabulation[[#This Row],[Hour]],daypart,2) -> Off | H178: =CONCATENATE(TOU_CTabulation[[#This Row],[Season]],TOU_CTabulation[[#This Row],[Day-Part]]) -> WinterOff | I178: 0 | J178: =TOU_CTabulation[[#This Row],[AC System Output (W)]]/1000 -> 0 | K178: =IF(TOU_CTabulation[[#This Row],[Month]]=A176,K177+TOU_CTabulation[[#This Row],[AC System Output (kW)]],TOU_CTabulation[[#This Row],[AC System Output (kW)]]) -> 86.089494 | L178: =VLOOKUP(TOU_CTabulation[[#This Row],[Season]],Baseline,2)*TOU_CTabulation[[#This Row],[Days in month]] -> 325.5 | M178: =IF(TOU_CTabulation[[#This Row],[Month Cumm]]<=TOU_CTabulation[[#This Row],[Month Base Allow]],VLOOKUP(TOU_CTabulation[[#This Row],[Season+ Daypart]],TOUC,2),VLOOKUP(TOU_CTabulation[[#This Row],[Season+ Daypart]],TOUC,2)+0.07584) -> 0.22788 | N178: =TOU_CTabulation[[#This Row],[AC System Output (kW)]]*TOU_CTabulation[[#This Row],[Rate]] -> 0
A179: 1 | B179: 7 | C179: 6 | D179: =DAY(EOMONTH(DATE(2021,TOU_CTabulation[[#This Row],[Month]],TOU_CTabulation[[#This Row],[Day]]),0)) -> 31 | E179: =VLOOKUP(TOU_CTabulation[[#This Row],[Month]],SeasonTable,2) -> Winter | F179: 0 | G179: =VLOOKUP(TOU_CTabulation[[#This Row],[Hour]],daypart,2) -> Off | H179: =CONCATENATE(TOU_CTabulation[[#This Row],[Season]],TOU_CTabulation[[#This Row],[Day-Part]]) -> WinterOff | I179: 0 | J179: =TOU_CTabulation[[#This Row],[AC System Output (W)]]/1000 -> 0 | K179: =IF(TOU_CTabulation[[#This Row],[Month]]=A177,K178+TOU_CTabulation[[#This Row],[AC System Output (kW)]],TOU_CTabulation[[#This Row],[AC System Output (kW)]]) -> 86.089494 | L179: =VLOOKUP(TOU_CTabulation[[#This Row],[Season]],Baseline,2)*TOU_CTabulation[[#This Row],[Days in month]] -> 325.5 | M179: =IF(TOU_CTabulation[[#This Row],[Month Cumm]]<=TOU_CTabulation[[#This Row],[Month Base Allow]],VLOOKUP(TOU_CTabulation[[#This Row],[Season+ Daypart]],TOUC,2),VLOOKUP(TOU_CTabulation[[#This Row],[Season+ Daypart]],TOUC,2)+0.07584) -> 0.22788 | N179: =TOU_CTabulation[[#This Row],[AC System Output (kW)]]*TOU_CTabulation[[#This Row],[Rate]] -> 0
A180: 1 | B180: 7 | C180: 7 | D180: =DAY(EOMONTH(DATE(2021,TOU_CTabulation[[#This Row],[Month]],TOU_CTabulation[[#This Row],[Day]]),0)) -> 31 | E180: =VLOOKUP(TOU_CTabulation[[#This Row],[Month]],SeasonTable,2) -> Winter | F180: 109.926 | G180: =VLOOKUP(TOU_CTabulation[[#This Row],[Hour]],daypart,2) -> Off | H180: =CONCATENATE(TOU_CTabulation[[#This Row],[Season]],TOU_CTabulation[[#This Row],[Day-Part]]) -> WinterOff | I180: 87.486 | J180: =TOU_CTabulation[[#This Row],[AC System Output (W)]]/1000 -> 0.087486 | K180: =IF(TOU_CTabulation[[#This Row],[Month]]=A178,K179+TOU_CTabulation[[#This Row],[AC System Output (kW)]],TOU_CTabulation[[#This Row],[AC System Output (kW)]]) -> 86.17698 | L180: =VLOOKUP(TOU_CTabulation[[#This Row],[Season]],Baseline,2)*TOU_CTabulation[[#This Row],[Days in month]] -> 325.5 | M180: =IF(TOU_CTabulation[[#This Row],[Month Cumm]]<=TOU_CTabulation[[#This Row],[Month Base Allow]],VLOOKUP(TOU_CTabulation[[#This Row],[Season+ Daypart]],TOUC,2),VLOOKUP(TOU_CTabulation[[#This Row],[Season+ Daypart]],TOUC,2)+0.07584) -> 0.22788 | N180: =TOU_CTabulation[[#This Row],[AC System Output (kW)]]*TOU_CTabulation[[#This Row],[Rate]] -> 0.01993630968
A181: 1 | B181: 7 | C181: 8 | D181: =DAY(EOMONTH(DATE(2021,TOU_CTabulation[[#This Row],[Month]],TOU_CTabulation[[#This Row],[Day]]),0)) -> 31 | E181: =VLOOKUP(TOU_CTabulation[[#This Row],[Month]],SeasonTable,2) -> Winter | F181: 465.88 | G181: =VLOOKUP(TOU_CTabulation[[#This Row],[Hour]],daypart,2) -> Off | H181: =CONCATENATE(TOU_CTabulation[[#This Row],[Season]],TOU_CTabulation[[#This Row],[Day-Part]]) -> WinterOff | I181: 436.085 | J181: =TOU_CTabulation[[#This Row],[AC System Output (W)]]/1000 -> 0.436085 | K181: =IF(TOU_CTabulation[[#This Row],[Month]]=A179,K180+TOU_CTabulation[[#This Row],[AC System Output (kW)]],TOU_CTabulation[[#This Row],[AC System Output (kW)]]) -> 86.613065 | L181: =VLOOKUP(TOU_CTabulation[[#This Row],[Season]],Baseline,2)*TOU_CTabulation[[#This Row],[Days in month]] -> 325.5 | M181: =IF(TOU_CTabulation[[#This Row],[Month Cumm]]<=TOU_CTabulation[[#This Row],[Month Base Allow]],VLOOKUP(TOU_CTabulation[[#This Row],[Season+ Daypart]],TOUC,2),VLOOKUP(TOU_CTabulation[[#This Row],[Season+ Daypart]],TOUC,2)+0.07584) -> 0.22788 | N181: =TOU_CTabulation[[#This Row],[AC System Output (kW)]]*TOU_CTabulation[[#This Row],[Rate]] -> 0.0993750498
A182: 1 | B182: 7 | C182: 9 | D182: =DAY(EOMONTH(DATE(2021,TOU_CTabulation[[#This Row],[Month]],TOU_CTabulation[[#This Row],[Day]]),0)) -> 31 | E182: =VLOOKUP(TOU_CTabulation[[#This Row],[Month]],SeasonTable,2) -> Winter | F182: 1904.406 | G182: =VLOOKUP(TOU_CTabulation[[#This Row],[Hour]],daypart,2) -> Off | H182: =CONCATENATE(TOU_CTabulation[[#This Row],[Season]],TOU_CTabulation[[#This Row],[Day-Part]]) -> WinterOff | I182: 1832.892 | J182: =TOU_CTabulation[[#This Row],[AC System Output (W)]]/1000 -> 1.832892 | K182: =IF(TOU_CTabulation[[#This Row],[Month]]=A180,K181+TOU_CTabulation[[#This Row],[AC System Output (kW)]],TOU_CTabulation[[#This Row],[AC System Output (kW)]]) -> 88.445957 | L182: =VLOOKUP(TOU_CTabulation[[#This Row],[Season]],Baseline,2)*TOU_CTabulation[[#This Row],[Days in month]] -> 325.5 | M182: =IF(TOU_CTabulation[[#This Row],[Month Cumm]]<=TOU_CTabulation[[#This Row],[Month Base Allow]],VLOOKUP(TOU_CTabulation[[#This Row],[Season+ Daypart]],TOUC,2),VLOOKUP(TOU_CTabulation[[#This Row],[Season+ Daypart]],TOUC,2)+0.07584) -> 0.22788 | N182: =TOU_CTabulation[[#This Row],[AC System Output (kW)]]*TOU_CTabulation[[#This Row],[Rate]] -> 0.417679429
A183: 1 | B183: 7 | C183: 10 | D183: =DAY(EOMONTH(DATE(2021,TOU_CTabulation[[#This Row],[Month]],TOU_CTabulation[[#This Row],[Day]]),0)) -> 31 | E183: =VLOOKUP(TOU_CTabulation[[#This Row],[Month]],SeasonTable,2) -> Winter | F183: 2350.444 | G183: =VLOOKUP(TOU_CTabulation[[#This Row],[Hour]],daypart,2) -> Off | H183: =CONCATENATE(TOU_CTabulation[[#This Row],[Season]],TOU_CTabulation[[#This Row],[Day-Part]]) -> WinterOff | I183: 2262.087 | J183: =TOU_CTabulation[[#This Row],[AC System Output (W)]]/1000 -> 2.262087 | K183: =IF(TOU_CTabulation[[#This Row],[Month]]=A181,K182+TOU_CTabulation[[#This Row],[AC System Output (kW)]],TOU_CTabulation[[#This Row],[AC System Output (kW)]]) -> 90.708044 | L183: =VLOOKUP(TOU_CTabulation[[#This Row],[Season]],Baseline,2)*TOU_CTabulation[[#This Row],[Days in month]] -> 325.5 | M183: =IF(TOU_CTabulation[[#This Row],[Month Cumm]]<=TOU_CTabulation[[#This Row],[Month Base Allow]],VLOOKUP(TOU_CTabulation[[#This Row],[Season+ Daypart]],TOUC,2),VLOOKUP(TOU_CTabulation[[#This Row],[Season+ Daypart]],TOUC,2)+0.07584) -> 0.22788 | N183: =TOU_CTabulation[[#This Row],[AC System Output (kW)]]*TOU_CTabulation[[#This Row],[Rate]] -> 0.5154843856
A184: 1 | B184: 7 | C184: 11 | D184: =DAY(EOMONTH(DATE(2021,TOU_CTabulation[[#This Row],[Month]],TOU_CTabulation[[#This Row],[Day]]),0)) -> 31 | E184: =VLOOKUP(TOU_CTabulation[[#This Row],[Month]],SeasonTable,2) -> Winter | F184: 2644.8 | G184: =VLOOKUP(TOU_CTabulation[[#This Row],[Hour]],daypart,2) -> Off | H184: =CONCATENATE(TOU_CTabulation[[#This Row],[Season]],TOU_CTabulation[[#This Row],[Day-Part]]) -> WinterOff | I184: 2544.315 | J184: =TOU_CTabulation[[#This Row],[AC System Output (W)]]/1000 -> 2.544315 | K184: =IF(TOU_CTabulation[[#This Row],[Month]]=A182,K183+TOU_CTabulation[[#This Row],[AC System Output (kW)]],TOU_CTabulation[[#This Row],[AC System Output (kW)]]) -> 93.252359 | L184: =VLOOKUP(TOU_CTabulation[[#This Row],[Season]],Baseline,2)*TOU_CTabulation[[#This Row],[Days in month]] -> 325.5 | M184: =IF(TOU_CTabulation[[#This Row],[Month Cumm]]<=TOU_CTabulation[[#This Row],[Month Base Allow]],VLOOKUP(TOU_CTabulation[[#This Row],[Season+ Daypart]],TOUC,2),VLOOKUP(TOU_CTabulation[[#This Row],[Season+ Daypart]],TOUC,2)+0.07584) -> 0.22788 | N184: =TOU_CTabulation[[#This Row],[AC System Output (kW)]]*TOU_CTabulation[[#This Row],[Rate]] -> 0.5797985022
A185: 1 | B185: 7 | C185: 12 | D185: =DAY(EOMONTH(DATE(2021,TOU_CTabulation[[#This Row],[Month]],TOU_CTabulation[[#This Row],[Day]]),0)) -> 31 | E185: =VLOOKUP(TOU_CTabulation[[#This Row],[Month]],SeasonTable,2) -> Winter | F185: 2654.386 | G185: =VLOOKUP(TOU_CTabulation[[#This Row],[Hour]],daypart,2) -> Off | H185: =CONCATENATE(TOU_CTabulation[[#This Row],[Season]],TOU_CTabulation[[#This Row],[Day-Part]]) -> WinterOff | I185: 2553.494 | J185: =TOU_CTabulation[[#This Row],[AC System Output (W)]]/1000 -> 2.553494 | K185: =IF(TOU_CTabulation[[#This Row],[Month]]=A183,K184+TOU_CTabulation[[#This Row],[AC System Output (kW)]],TOU_CTabulation[[#This Row],[AC System Output (kW)]]) -> 95.805853 | L185: =VLOOKUP(TOU_CTabulation[[#This Row],[Season]],Baseline,2)*TOU_CTabulation[[#This Row],[Days in month]] -> 325.5 | M185: =IF(TOU_CTabulation[[#This Row],[Month Cumm]]<=TOU_CTabulation[[#This Row],[Month Base Allow]],VLOOKUP(TOU_CTabulation[[#This Row],[Season+ Daypart]],TOUC,2),VLOOKUP(TOU_CTabulation[[#This Row],[Season+ Daypart]],TOUC,2)+0.07584) -> 0.22788 | N185: =TOU_CTabulation[[#This Row],[AC System Output (kW)]]*TOU_CTabulation[[#This Row],[Rate]] -> 0.5818902127
A186: 1 | B186: 7 | C186: 13 | D186: =DAY(EOMONTH(DATE(2021,TOU_CTabulation[[#This Row],[Month]],TOU_CTabulation[[#This Row],[Day]]),0)) -> 31 | E186: =VLOOKUP(TOU_CTabulation[[#This Row],[Month]],SeasonTable,2) -> Winter | F186: 2432.171 | G186: =VLOOKUP(TOU_CTabulation[[#This Row],[Hour]],daypart,2) -> Off | H186: =CONCATENATE(TOU_CTabulation[[#This Row],[Season]],TOU_CTabulation[[#This Row],[Day-Part]]) -> WinterOff | I186: 2340.529 | J186: =TOU_CTabulation[[#This Row],[AC System Output (W)]]/1000 -> 2.340529 | K186: =IF(TOU_CTabulation[[#This Row],[Month]]=A184,K185+TOU_CTabulation[[#This Row],[AC System Output (kW)]],TOU_CTabulation[[#This Row],[AC System Output (kW)]]) -> 98.146382 | L186: =VLOOKUP(TOU_CTabulation[[#This Row],[Season]],Baseline,2)*TOU_CTabulation[[#This Row],[Days in month]] -> 325.5 | M186: =IF(TOU_CTabulation[[#This Row],[Month Cumm]]<=TOU_CTabulation[[#This Row],[Month Base Allow]],VLOOKUP(TOU_CTabulation[[#This Row],[Season+ Daypart]],TOUC,2),VLOOKUP(TOU_CTabulation[[#This Row],[Season+ Daypart]],TOUC,2)+0.07584) -> 0.22788 | N186: =TOU_CTabulation[[#This Row],[AC System Output (kW)]]*TOU_CTabulation[[#This Row],[Rate]] -> 0.5333597485
A187: 1 | B187: 7 | C187: 14 | D187: =DAY(EOMONTH(DATE(2021,TOU_CTabulation[[#This Row],[Month]],TOU_CTabulation[[#This Row],[Day]]),0)) -> 31 | E187: =VLOOKUP(TOU_CTabulation[[#This Row],[Month]],SeasonTable,2) -> Winter | F187: 1973.874 | G187: =VLOOKUP(TOU_CTabulation[[#This Row],[Hour]],daypart,2) -> Off | H187: =CONCATENATE(TOU_CTabulation[[#This Row],[Season]],TOU_CTabulation[[#This Row],[Day-Part]]) -> WinterOff | I187: 1899.859 | J187: =TOU_CTabulation[[#This Row],[AC System Output (W)]]/1000 -> 1.899859 | K187: =IF(TOU_CTabulation[[#This Row],[Month]]=A185,K186+TOU_CTabulation[[#This Row],[AC System Output (kW)]],TOU_CTabulation[[#This Row],[AC System Output (kW)]]) -> 100.046241 | L187: =VLOOKUP(TOU_CTabulation[[#This Row],[Season]],Baseline,2)*TOU_CTabulation[[#This Row],[Days in month]] -> 325.5 | M187: =IF(TOU_CTabulation[[#This Row],[Month Cumm]]<=TOU_CTabulation[[#This Row],[Month Base Allow]],VLOOKUP(TOU_CTabulation[[#This Row],[Season+ Daypart]],TOUC,2),VLOOKUP(TOU_CTabulation[[#This Row],[Season+ Daypart]],TOUC,2)+0.07584) -> 0.22788 | N187: =TOU_CTabulation[[#This Row],[AC System Output (kW)]]*TOU_CTabulation[[#This Row],[Rate]] -> 0.4329398689
A188: 1 | B188: 7 | C188: 15 | D188: =DAY(EOMONTH(DATE(2021,TOU_CTabulation[[#This Row],[Month]],TOU_CTabulation[[#This Row],[Day]]),0)) -> 31 | E188: =VLOOKUP(TOU_CTabulation[[#This Row],[Month]],SeasonTable,2) -> Winter | F188: 1324.858 | G188: =VLOOKUP(TOU_CTabulation[[#This Row],[Hour]],daypart,2) -> Off | H188: =CONCATENATE(TOU_CTabulation[[#This Row],[Season]],TOU_CTabulation[[#This Row],[Day-Part]]) -> WinterOff | I188: 1272.466 | J188: =TOU_CTabulation[[#This Row],[AC System Output (W)]]/1000 -> 1.272466 | K188: =IF(TOU_CTabulation[[#This Row],[Month]]=A186,K187+TOU_CTabulation[[#This Row],[AC System Output (kW)]],TOU_CTabulation[[#This Row],[AC System Output (kW)]]) -> 101.318707 | L188: =VLOOKUP(TOU_CTabulation[[#This Row],[Season]],Baseline,2)*TOU_CTabulation[[#This Row],[Days in month]] -> 325.5 | M188: =IF(TOU_CTabulation[[#This Row],[Month Cumm]]<=TOU_CTabulation[[#This Row],[Month Base Allow]],VLOOKUP(TOU_CTabulation[[#This Row],[Season+ Daypart]],TOUC,2),VLOOKUP(TOU_CTabulation[[#This Row],[Season+ Daypart]],TOUC,2)+0.07584) -> 0.22788 | N188: =TOU_CTabulation[[#This Row],[AC System Output (kW)]]*TOU_CTabulation[[#This Row],[Rate]] -> 0.2899695521
A189: 1 | B189: 7 | C189: 16 | D189: =DAY(EOMONTH(DATE(2021,TOU_CTabulation[[#This Row],[Month]],TOU_CTabulation[[#This Row],[Day]]),0)) -> 31 | E189: =VLOOKUP(TOU_CTabulation[[#This Row],[Month]],SeasonTable,2) -> Winter | F189: 185.421 | G189: =VLOOKUP(TOU_CTabulation[[#This Row],[Hour]],daypart,2) -> Peak | H189: =CONCATENATE(TOU_CTabulation[[#This Row],[Season]],TOU_CTabulation[[#This Row],[Day-Part]]) -> WinterPeak | I189: 161.519 | J189: =TOU_CTabulation[[#This Row],[AC System Output (W)]]/1000 -> 0.161519 | K189: =IF(TOU_CTabulation[[#This Row],[Month]]=A187,K188+TOU_CTabulation[[#This Row],[AC System Output (kW)]],TOU_CTabulation[[#This Row],[AC System Output (kW)]]) -> 101.480226 | L189: =VLOOKUP(TOU_CTabulation[[#This Row],[Season]],Baseline,2)*TOU_CTabulation[[#This Row],[Days in month]] -> 325.5 | M189: =IF(TOU_CTabulation[[#This Row],[Month Cumm]]<=TOU_CTabulation[[#This Row],[Month Base Allow]],VLOOKUP(TOU_CTabulation[[#This Row],[Season+ Daypart]],TOUC,2),VLOOKUP(TOU_CTabulation[[#This Row],[Season+ Daypart]],TOUC,2)+0.07584) -> 0.2452 | N189: =TOU_CTabulation[[#This Row],[AC System Output (kW)]]*TOU_CTabulation[[#This Row],[Rate]] -> 0.0396044588
A190: 1 | B190: 7 | C190: 17 | D190: =DAY(EOMONTH(DATE(2021,TOU_CTabulation[[#This Row],[Month]],TOU_CTabulation[[#This Row],[Day]]),0)) -> 31 | E190: =VLOOKUP(TOU_CTabulation[[#This Row],[Month]],SeasonTable,2) -> Winter | F190: 0 | G190: =VLOOKUP(TOU_CTabulation[[#This Row],[Hour]],daypart,2) -> Peak | H190: =CONCATENATE(TOU_CTabulation[[#This Row],[Season]],TOU_CTabulation[[#This Row],[Day-Part]]) -> WinterPeak | I190: 0 | J190: =TOU_CTabulation[[#This Row],[AC System Output (W)]]/1000 -> 0 | K190: =IF(TOU_CTabulation[[#This Row],[Month]]=A188,K189+TOU_CTabulation[[#This Row],[AC System Output (kW)]],TOU_CTabulation[[#This Row],[AC System Output (kW)]]) -> 101.480226 | L190: =VLOOKUP(TOU_CTabulation[[#This Row],[Season]],Baseline,2)*TOU_CTabulation[[#This Row],[Days in month]] -> 325.5 | M190: =IF(TOU_CTabulation[[#This Row],[Month Cumm]]<=TOU_CTabulation[[#This Row],[Month Base Allow]],VLOOKUP(TOU_CTabulation[[#This Row],[Season+ Daypart]],TOUC,2),VLOOKUP(TOU_CTabulation[[#This Row],[Season+ Daypart]],TOUC,2)+0.07584) -> 0.2452 | N190: =TOU_CTabulation[[#This Row],[AC System Output (kW)]]*TOU_CTabulation[[#This Row],[Rate]] -> 0
A191: 1 | B191: 7 | C191: 18 | D191: =DAY(EOMONTH(DATE(2021,TOU_CTabulation[[#This Row],[Month]],TOU_CTabulation[[#This Row],[Day]]),0)) -> 31 | E191: =VLOOKUP(TOU_CTabulation[[#This Row],[Month]],SeasonTable,2) -> Winter | F191: 0 | G191: =VLOOKUP(TOU_CTabulation[[#This Row],[Hour]],daypart,2) -> Peak | H191: =CONCATENATE(TOU_CTabulation[[#This Row],[Season]],TOU_CTabulation[[#This Row],[Day-Part]]) -> WinterPeak | I191: 0 | J191: =TOU_CTabulation[[#This Row],[AC System Output (W)]]/1000 -> 0 | K191: =IF(TOU_CTabulation[[#This Row],[Month]]=A189,K190+TOU_CTabulation[[#This Row],[AC System Output (kW)]],TOU_CTabulation[[#This Row],[AC System Output (kW)]]) -> 101.480226 | L191: =VLOOKUP(TOU_CTabulation[[#This Row],[Season]],Baseline,2)*TOU_CTabulation[[#This Row],[Days in month]] -> 325.5 | M191: =IF(TOU_CTabulation[[#This Row],[Month Cumm]]<=TOU_CTabulation[[#This Row],[Month Base Allow]],VLOOKUP(TOU_CTabulation[[#This Row],[Season+ Daypart]],TOUC,2),VLOOKUP(TOU_CTabulation[[#This Row],[Season+ Daypart]],TOUC,2)+0.07584) -> 0.2452 | N191: =TOU_CTabulation[[#This Row],[AC System Output (kW)]]*TOU_CTabulation[[#This Row],[Rate]] -> 0
A192: 1 | B192: 7 | C192: 19 | D192: =DAY(EOMONTH(DATE(2021,TOU_CTabulation[[#This Row],[Month]],TOU_CTabulation[[#This Row],[Day]]),0)) -> 31 | E192: =VLOOKUP(TOU_CTabulation[[#This Row],[Month]],SeasonTable,2) -> Winter | F192: 0 | G192: =VLOOKUP(TOU_CTabulation[[#This Row],[Hour]],daypart,2) -> Peak | H192: =CONCATENATE(TOU_CTabulation[[#This Row],[Season]],TOU_CTabulation[[#This Row],[Day-Part]]) -> WinterPeak | I192: 0 | J192: =TOU_CTabulation[[#This Row],[AC System Output (W)]]/1000 -> 0 | K192: =IF(TOU_CTabulation[[#This Row],[Month]]=A190,K191+TOU_CTabulation[[#This Row],[AC System Output (kW)]],TOU_CTabulation[[#This Row],[AC System Output (kW)]]) -> 101.480226 | L192: =VLOOKUP(TOU_CTabulation[[#This Row],[Season]],Baseline,2)*TOU_CTabulation[[#This Row],[Days in month]] -> 325.5 | M192: =IF(TOU_CTabulation[[#This Row],[Month Cumm]]<=TOU_CTabulation[[#This Row],[Month Base Allow]],VLOOKUP(TOU_CTabulation[[#This Row],[Season+ Daypart]],TOUC,2),VLOOKUP(TOU_CTabulation[[#This Row],[Season+ Daypart]],TOUC,2)+0.07584) -> 0.2452 | N192: =TOU_CTabulation[[#This Row],[AC System Output (kW)]]*TOU_CTabulation[[#This Row],[Rate]] -> 0
A193: 1 | B193: 7 | C193: 20 | D193: =DAY(EOMONTH(DATE(2021,TOU_CTabulation[[#This Row],[Month]],TOU_CTabulation[[#This Row],[Day]]),0)) -> 31 | E193: =VLOOKUP(TOU_CTabulation[[#This Row],[Month]],SeasonTable,2) -> Winter | F193: 0 | G193: =VLOOKUP(TOU_CTabulation[[#This Row],[Hour]],daypart,2) -> Peak | H193: =CONCATENATE(TOU_CTabulation[[#This Row],[Season]],TOU_CTabulation[[#This Row],[Day-Part]]) -> WinterPeak | I193: 0 | J193: =TOU_CTabulation[[#This Row],[AC System Output (W)]]/1000 -> 0 | K193: =IF(TOU_CTabulation[[#This Row],[Month]]=A191,K192+TOU_CTabulation[[#This Row],[AC System Output (kW)]],TOU_CTabulation[[#This Row],[AC System Output (kW)]]) -> 101.480226 | L193: =VLOOKUP(TOU_CTabulation[[#This Row],[Season]],Baseline,2)*TOU_CTabulation[[#This Row],[Days in month]] -> 325.5 | M193: =IF(TOU_CTabulation[[#This Row],[Month Cumm]]<=TOU_CTabulation[[#This Row],[Month Base Allow]],VLOOKUP(TOU_CTabulation[[#This Row],[Season+ Daypart]],TOUC,2),VLOOKUP(TOU_CTabulation[[#This Row],[Season+ Daypart]],TOUC,2)+0.07584) -> 0.2452 | N193: =TOU_CTabulation[[#This Row],[AC System Output (kW)]]*TOU_CTabulation[[#This Row],[Rate]] -> 0
A194: 1 | B194: 7 | C194: 21 | D194: =DAY(EOMONTH(DATE(2021,TOU_CTabulation[[#This Row],[Month]],TOU_CTabulation[[#This Row],[Day]]),0)) -> 31 | E194: =VLOOKUP(TOU_CTabulation[[#This Row],[Month]],SeasonTable,2) -> Winter | F194: 0 | G194: =VLOOKUP(TOU_CTabulation[[#This Row],[Hour]],daypart,2) -> Off | H194: =CONCATENATE(TOU_CTabulation[[#This Row],[Season]],TOU_CTabulation[[#This Row],[Day-Part]]) -> WinterOff | I194: 0 | J194: =TOU_CTabulation[[#This Row],[AC System Output (W)]]/1000 -> 0 | K194: =IF(TOU_CTabulation[[#This Row],[Month]]=A192,K193+TOU_CTabulation[[#This Row],[AC System Output (kW)]],TOU_CTabulation[[#This Row],[AC System Output (kW)]]) -> 101.480226 | L194: =VLOOKUP(TOU_CTabulation[[#This Row],[Season]],Baseline,2)*TOU_CTabulation[[#This Row],[Days in month]] -> 325.5 | M194: =IF(TOU_CTabulation[[#This Row],[Month Cumm]]<=TOU_CTabulation[[#This Row],[Month Base Allow]],VLOOKUP(TOU_CTabulation[[#This Row],[Season+ Daypart]],TOUC,2),VLOOKUP(TOU_CTabulation[[#This Row],[Season+ Daypart]],TOUC,2)+0.07584) -> 0.22788 | N194: =TOU_CTabulation[[#This Row],[AC System Output (kW)]]*TOU_CTabulation[[#This Row],[Rate]] -> 0
A195: 1 | B195: 7 | C195: 22 | D195: =DAY(EOMONTH(DATE(2021,TOU_CTabulation[[#This Row],[Month]],TOU_CTabulation[[#This Row],[Day]]),0)) -> 31 | E195: =VLOOKUP(TOU_CTabulation[[#This Row],[Month]],SeasonTable,2) -> Winter | F195: 0 | G195: =VLOOKUP(TOU_CTabulation[[#This Row],[Hour]],daypart,2) -> Off | H195: =CONCATENATE(TOU_CTabulation[[#This Row],[Season]],TOU_CTabulation[[#This Row],[Day-Part]]) -> WinterOff | I195: 0 | J195: =TOU_CTabulation[[#This Row],[AC System Output (W)]]/1000 -> 0 | K195: =IF(TOU_CTabulation[[#This Row],[Month]]=A193,K194+TOU_CTabulation[[#This Row],[AC System Output (kW)]],TOU_CTabulation[[#This Row],[AC System Output (kW)]]) -> 101.480226 | L195: =VLOOKUP(TOU_CTabulation[[#This Row],[Season]],Baseline,2)*TOU_CTabulation[[#This Row],[Days in month]] -> 325.5 | M195: =IF(TOU_CTabulation[[#This Row],[Month Cumm]]<=TOU_CTabulation[[#This Row],[Month Base Allow]],VLOOKUP(TOU_CTabulation[[#This Row],[Season+ Daypart]],TOUC,2),VLOOKUP(TOU_CTabulation[[#This Row],[Season+ Daypart]],TOUC,2)+0.07584) -> 0.22788 | N195: =TOU_CTabulation[[#This Row],[AC System Output (kW)]]*TOU_CTabulation[[#This Row],[Rate]] -> 0
A196: 1 | B196: 7 | C196: 23 | D196: =DAY(EOMONTH(DATE(2021,TOU_CTabulation[[#This Row],[Month]],TOU_CTabulation[[#This Row],[Day]]),0)) -> 31 | E196: =VLOOKUP(TOU_CTabulation[[#This Row],[Month]],SeasonTable,2) -> Winter | F196: 0 | G196: =VLOOKUP(TOU_CTabulation[[#This Row],[Hour]],daypart,2) -> Off | H196: =CONCATENATE(TOU_CTabulation[[#This Row],[Season]],TOU_CTabulation[[#This Row],[Day-Part]]) -> WinterOff | I196: 0 | J196: =TOU_CTabulation[[#This Row],[AC System Output (W)]]/1000 -> 0 | K196: =IF(TOU_CTabulation[[#This Row],[Month]]=A194,K195+TOU_CTabulation[[#This Row],[AC System Output (kW)]],TOU_CTabulation[[#This Row],[AC System Output (kW)]]) -> 101.480226 | L196: =VLOOKUP(TOU_CTabulation[[#This Row],[Season]],Baseline,2)*TOU_CTabulation[[#This Row],[Days in month]] -> 325.5 | M196: =IF(TOU_CTabulation[[#This Row],[Month Cumm]]<=TOU_CTabulation[[#This Row],[Month Base Allow]],VLOOKUP(TOU_CTabulation[[#This Row],[Season+ Daypart]],TOUC,2),VLOOKUP(TOU_CTabulation[[#This Row],[Season+ Daypart]],TOUC,2)+0.07584) -> 0.22788 | N196: =TOU_CTabulation[[#This Row],[AC System Output (kW)]]*TOU_CTabulation[[#This Row],[Rate]] -> 0
A197: 1 | B197: 8 | C197: 0 | D197: =DAY(EOMONTH(DATE(2021,TOU_CTabulation[[#This Row],[Month]],TOU_CTabulation[[#This Row],[Day]]),0)) -> 31 | E197: =VLOOKUP(TOU_CTabulation[[#This Row],[Month]],SeasonTable,2) -> Winter | F197: 0 | G197: =VLOOKUP(TOU_CTabulation[[#This Row],[Hour]],daypart,2) -> Off | H197: =CONCATENATE(TOU_CTabulation[[#This Row],[Season]],TOU_CTabulation[[#This Row],[Day-Part]]) -> WinterOff | I197: 0 | J197: =TOU_CTabulation[[#This Row],[AC System Output (W)]]/1000 -> 0 | K197: =IF(TOU_CTabulation[[#This Row],[Month]]=A195,K196+TOU_CTabulation[[#This Row],[AC System Output (kW)]],TOU_CTabulation[[#This Row],[AC System Output (kW)]]) -> 101.480226 | L197: =VLOOKUP(TOU_CTabulation[[#This Row],[Season]],Baseline,2)*TOU_CTabulation[[#This Row],[Days in month]] -> 325.5 | M197: =IF(TOU_CTabulation[[#This Row],[Month Cumm]]<=TOU_CTabulation[[#This Row],[Month Base Allow]],VLOOKUP(TOU_CTabulation[[#This Row],[Season+ Daypart]],TOUC,2),VLOOKUP(TOU_CTabulation[[#This Row],[Season+ Daypart]],TOUC,2)+0.07584) -> 0.22788 | N197: =TOU_CTabulation[[#This Row],[AC System Output (kW)]]*TOU_CTabulation[[#This Row],[Rate]] -> 0
A198: 1 | B198: 8 | C198: 1 | D198: =DAY(EOMONTH(DATE(2021,TOU_CTabulation[[#This Row],[Month]],TOU_CTabulation[[#This Row],[Day]]),0)) -> 31 | E198: =VLOOKUP(TOU_CTabulation[[#This Row],[Month]],SeasonTable,2) -> Winter | F198: 0 | G198: =VLOOKUP(TOU_CTabulation[[#This Row],[Hour]],daypart,2) -> Off | H198: =CONCATENATE(TOU_CTabulation[[#This Row],[Season]],TOU_CTabulation[[#This Row],[Day-Part]]) -> WinterOff | I198: 0 | J198: =TOU_CTabulation[[#This Row],[AC System Output (W)]]/1000 -> 0 | K198: =IF(TOU_CTabulation[[#This Row],[Month]]=A196,K197+TOU_CTabulation[[#This Row],[AC System Output (kW)]],TOU_CTabulation[[#This Row],[AC System Output (kW)]]) -> 101.480226 | L198: =VLOOKUP(TOU_CTabulation[[#This Row],[Season]],Baseline,2)*TOU_CTabulation[[#This Row],[Days in month]] -> 325.5 | M198: =IF(TOU_CTabulation[[#This Row],[Month Cumm]]<=TOU_CTabulation[[#This Row],[Month Base Allow]],VLOOKUP(TOU_CTabulation[[#This Row],[Season+ Daypart]],TOUC,2),VLOOKUP(TOU_CTabulation[[#This Row],[Season+ Daypart]],TOUC,2)+0.07584) -> 0.22788 | N198: =TOU_CTabulation[[#This Row],[AC System Output (kW)]]*TOU_CTabulation[[#This Row],[Rate]] -> 0
A199: 1 | B199: 8 | C199: 2 | D199: =DAY(EOMONTH(DATE(2021,TOU_CTabulation[[#This Row],[Month]],TOU_CTabulation[[#This Row],[Day]]),0)) -> 31 | E199: =VLOOKUP(TOU_CTabulation[[#This Row],[Month]],SeasonTable,2) -> Winter | F199: 0 | G199: =VLOOKUP(TOU_CTabulation[[#This Row],[Hour]],daypart,2) -> Off | H199: =CONCATENATE(TOU_CTabulation[[#This Row],[Season]],TOU_CTabulation[[#This Row],[Day-Part]]) -> WinterOff | I199: 0 | J199: =TOU_CTabulation[[#This Row],[AC System Output (W)]]/1000 -> 0 | K199: =IF(TOU_CTabulation[[#This Row],[Month]]=A197,K198+TOU_CTabulation[[#This Row],[AC System Output (kW)]],TOU_CTabulation[[#This Row],[AC System Output (kW)]]) -> 101.480226 | L199: =VLOOKUP(TOU_CTabulation[[#This Row],[Season]],Baseline,2)*TOU_CTabulation[[#This Row],[Days in month]] -> 325.5 | M199: =IF(TOU_CTabulation[[#This Row],[Month Cumm]]<=TOU_CTabulation[[#This Row],[Month Base Allow]],VLOOKUP(TOU_CTabulation[[#This Row],[Season+ Daypart]],TOUC,2),VLOOKUP(TOU_CTabulation[[#This Row],[Season+ Daypart]],TOUC,2)+0.07584) -> 0.22788 | N199: =TOU_CTabulation[[#This Row],[AC System Output (kW)]]*TOU_CTabulation[[#This Row],[Rate]] -> 0
A200: 1 | B200: 8 | C200: 3 | D200: =DAY(EOMONTH(DATE(2021,TOU_CTabulation[[#This Row],[Month]],TOU_CTabulation[[#This Row],[Day]]),0)) -> 31 | E200: =VLOOKUP(TOU_CTabulation[[#This Row],[Month]],SeasonTable,2) -> Winter | F200: 0 | G200: =VLOOKUP(TOU_CTabulation[[#This Row],[Hour]],daypart,2) -> Off | H200: =CONCATENATE(TOU_CTabulation[[#This Row],[Season]],TOU_CTabulation[[#This Row],[Day-Part]]) -> WinterOff | I200: 0 | J200: =TOU_CTabulation[[#This Row],[AC System Output (W)]]/1000 -> 0 | K200: =IF(TOU_CTabulation[[#This Row],[Month]]=A198,K199+TOU_CTabulation[[#This Row],[AC System Output (kW)]],TOU_CTabulation[[#This Row],[AC System Output (kW)]]) -> 101.480226 | L200: =VLOOKUP(TOU_CTabulation[[#This Row],[Season]],Baseline,2)*TOU_CTabulation[[#This Row],[Days in month]] -> 325.5 | M200: =IF(TOU_CTabulation[[#This Row],[Month Cumm]]<=TOU_CTabulation[[#This Row],[Month Base Allow]],VLOOKUP(TOU_CTabulation[[#This Row],[Season+ Daypart]],TOUC,2),VLOOKUP(TOU_CTabulation[[#This Row],[Season+ Daypart]],TOUC,2)+0.07584) -> 0.22788 | N200: =TOU_CTabulation[[#This Row],[AC System Output (kW)]]*TOU_CTabulation[[#This Row],[Rate]] -> 0
A201: 1 | B201: 8 | C201: 4 | D201: =DAY(EOMONTH(DATE(2021,TOU_CTabulation[[#This Row],[Month]],TOU_CTabulation[[#This Row],[Day]]),0)) -> 31 | E201: =VLOOKUP(TOU_CTabulation[[#This Row],[Month]],SeasonTable,2) -> Winter | F201: 0 | G201: =VLOOKUP(TOU_CTabulation[[#This Row],[Hour]],daypart,2) -> Off | H201: =CONCATENATE(TOU_CTabulation[[#This Row],[Season]],TOU_CTabulation[[#This Row],[Day-Part]]) -> WinterOff | I201: 0 | J201: =TOU_CTabulation[[#This Row],[AC System Output (W)]]/1000 -> 0 | K201: =IF(TOU_CTabulation[[#This Row],[Month]]=A199,K200+TOU_CTabulation[[#This Row],[AC System Output (kW)]],TOU_CTabulation[[#This Row],[AC System Output (kW)]]) -> 101.480226 | L201: =VLOOKUP(TOU_CTabulation[[#This Row],[Season]],Baseline,2)*TOU_CTabulation[[#This Row],[Days in month]] -> 325.5 | M201: =IF(TOU_CTabulation[[#This Row],[Month Cumm]]<=TOU_CTabulation[[#This Row],[Month Base Allow]],VLOOKUP(TOU_CTabulation[[#This Row],[Season+ Daypart]],TOUC,2),VLOOKUP(TOU_CTabulation[[#This Row],[Season+ Daypart]],TOUC,2)+0.07584) -> 0.22788 | N201: =TOU_CTabulation[[#This Row],[AC System Output (kW)]]*TOU_CTabulation[[#This Row],[Rate]] -> 0
A202: 1 | B202: 8 | C202: 5 | D202: =DAY(EOMONTH(DATE(2021,TOU_CTabulation[[#This Row],[Month]],TOU_CTabulation[[#This Row],[Day]]),0)) -> 31 | E202: =VLOOKUP(TOU_CTabulation[[#This Row],[Month]],SeasonTable,2) -> Winter | F202: 0 | G202: =VLOOKUP(TOU_CTabulation[[#This Row],[Hour]],daypart,2) -> Off | H202: =CONCATENATE(TOU_CTabulation[[#This Row],[Season]],TOU_CTabulation[[#This Row],[Day-Part]]) -> WinterOff | I202: 0 | J202: =TOU_CTabulation[[#This Row],[AC System Output (W)]]/1000 -> 0 | K202: =IF(TOU_CTabulation[[#This Row],[Month]]=A200,K201+TOU_CTabulation[[#This Row],[AC System Output (kW)]],TOU_CTabulation[[#This Row],[AC System Output (kW)]]) -> 101.480226 | L202: =VLOOKUP(TOU_CTabulation[[#This Row],[Season]],Baseline,2)*TOU_CTabulation[[#This Row],[Days in month]] -> 325.5 | M202: =IF(TOU_CTabulation[[#This Row],[Month Cumm]]<=TOU_CTabulation[[#This Row],[Month Base Allow]],VLOOKUP(TOU_CTabulation[[#This Row],[Season+ Daypart]],TOUC,2),VLOOKUP(TOU_CTabulation[[#This Row],[Season+ Daypart]],TOUC,2)+0.07584) -> 0.22788 | N202: =TOU_CTabulation[[#This Row],[AC System Output (kW)]]*TOU_CTabulation[[#This Row],[Rate]] -> 0
A203: 1 | B203: 8 | C203: 6 | D203: =DAY(EOMONTH(DATE(2021,TOU_CTabulation[[#This Row],[Month]],TOU_CTabulation[[#This Row],[Day]]),0)) -> 31 | E203: =VLOOKUP(TOU_CTabulation[[#This Row],[Month]],SeasonTable,2) -> Winter | F203: 0 | G203: =VLOOKUP(TOU_CTabulation[[#This Row],[Hour]],daypart,2) -> Off | H203: =CONCATENATE(TOU_CTabulation[[#This Row],[Season]],TOU_CTabulation[[#This Row],[Day-Part]]) -> WinterOff | I203: 0 | J203: =TOU_CTabulation[[#This Row],[AC System Output (W)]]/1000 -> 0 | K203: =IF(TOU_CTabulation[[#This Row],[Month]]=A201,K202+TOU_CTabulation[[#This Row],[AC System Output (kW)]],TOU_CTabulation[[#This Row],[AC System Output (kW)]]) -> 101.480226 | L203: =VLOOKUP(TOU_CTabulation[[#This Row],[Season]],Baseline,2)*TOU_CTabulation[[#This Row],[Days in month]] -> 325.5 | M203: =IF(TOU_CTabulation[[#This Row],[Month Cumm]]<=TOU_CTabulation[[#This Row],[Month Base Allow]],VLOOKUP(TOU_CTabulation[[#This Row],[Season+ Daypart]],TOUC,2),VLOOKUP(TOU_CTabulation[[#This Row],[Season+ Daypart]],TOUC,2)+0.07584) -> 0.22788 | N203: =TOU_CTabulation[[#This Row],[AC System Output (kW)]]*TOU_CTabulation[[#This Row],[Rate]] -> 0
... 4297 more rows

Sheet Supporting
A1: Miller Solar
A2: 17395 Oak Rd. Atascadero, CA 93422
A3: WORKSHEET
A5: Client:
A6: Project: | B6: TOU C Supporting Data
A7: Date: | D7: Revision:
A11: TOU-C | B11: Base | C11: OverBase
A12: SummerOff | B12: =C12-0.07584 -> 0.27885 | C12: 0.35469 | D12: =C12-B12 -> 0.07584
A13: SummerPeak | B13: =C13-0.07584 -> 0.34229 | C13: 0.41813 | D13: =C13-B13 -> 0.07584
A14: WinterOff | B14: 0.22788 | C14: 0.30372 | D14: 0.07584
A15: WinterPeak | B15: 0.2452 | C15: 0.32104 | D15: 0.07584
A17: Summer
A18: 2021-06-01 | B18: 2021-09-30
A19: Peak | B19: 16:00:00 | C19: 21:00:00
A20: Off | B20: 21:00:00 | C20: 16:00:00
A21: Winter
A22: 2021-10-01 | B22: 2022-05-31
A23: Peak | B23: 16:00:00 | C23: 21:00:00
A24: Off | B24: 21:00:00 | C24: 16:00:00
A26: Season
A27: Month | B27: Season
A28: 1 | B28: Winter
A29: 2 | B29: Winter
A30: 3 | B30: Winter
A31: 4 | B31: Winter
A32: 5 | B32: Winter
A33: 6 | B33: Summer
A34: 7 | B34: Summer
A35: 8 | B35: Summer
A36: 9 | B36: Summer
A37: 10 | B37: Winter
A38: 11 | B38: Winter
A39: 12 | B39: Winter
A41: Day Part
A42: Hour | B42: Summer | C42: Winter
A43: 0 | B43: Off | C43: Off
A44: 1 | B44: Off | C44: Off
A45: 2 | B45: Off | C45: Off
A46: 3 | B46: Off | C46: Off
A47: 4 | B47: Off | C47: Off
A48: 5 | B48: Off | C48: Off
A49: 6 | B49: Off | C49: Off
A50: 7 | B50: Off | C50: Off
A51: 8 | B51: Off | C51: Off
A52: 9 | B52: Off | C52: Off
A53: 10 | B53: Off | C53: Off
A54: 11 | B54: Off | C54: Off
A55: 12 | B55: Off | C55: Off
A56: 13 | B56: Off | C56: Off
A57: 14 | B57: Off | C57: Off
A58: 15 | B58: Off | C58: Off
A59: 16 | B59: Peak | C59: Peak
A60: 17 | B60: Peak | C60: Peak
A61: 18 | B61: Peak | C61: Peak
A62: 19 | B62: Peak | C62: Peak
A63: 20 | B63: Peak | C63: Peak
A64: 21 | B64: Off | C64: Off
A65: 22 | B65: Off | C65: Off
A66: 23 | B66: Off | C66: Off
A67: 24 | B67: Off | C67: Off
A70: Baseline
A71: Region | B71: X
A72: Summer | B72: 10.3
A73: Winter | B73: 10.5
